Workbook

Sheet 1. Info
AB1: Alectra Utilities Corporation-Brampton Rate Zone | AC1: 2027 RTSR Workform for Electricity Distributors
AB2: Alectra Utilities Corporation-Enersource Rate Zone | AC2: v 1.0
AB3: Alectra Utilities Corporation-Horizon Utilities Rate Zone
AB4: Alectra Utilities Corporation-PowerStream Rate Zone
AB5: Alectra Utilities Corporation-Guelph Rate Zone
AB6: Algoma Power Inc.
AB7: Atikokan Hydro Inc.
AB8: Bluewater Power Distribution Corporation
AB9: Burlington Hydro Inc.
AB10: Canadian Niagara Power Inc.
AB11: Centre Wellington Hydro Ltd.
AB12: Chapleau Public Utilities Corporation
A13: Drop-down lists are shaded blue; Input cells are shaded green. | AB13: Cooperative Hydro Embrun Inc.
AB14: E.L.K. Energy Inc.
C15: Utility Name | D15: Alectra Utilities Corporation-Horizon Utilities Rate Zone | AB15: Elexicon Energy Inc.-Whitby Rate Zone
AB16: Elexicon Energy Inc.-Veridian Rate Zone
C17: Assigned EB Number | D17: EB-2025-0252 | AB17: Enova Power Corp.-Kitchener-Wilmot Hydro Rate Zone
AB18: Enova Power Corp.-Waterloo North Rate Zone
C19: Name and Title of Contact | AB19: Entegrus Powerlines Inc.-For Entegrus-Main Rate Zone
AB20: Entegrus Powerlines Inc.-For Former St. Thomas Energy Rate Zone
C21: Phone Number | AB21: ENWIN Utilities Ltd.
AB22: EPCOR Electricity Distribution Ontario Inc.
C23: Email Address | AB23: ERTH Power Corporation - ERTH Power Main Rate Zone
AB24: ERTH POWER CORPORATION – GODERICH RATE ZONE
C25: Last COS Re-based Year | AB25: Espanola Regional Hydro Distribution Corporation
AB26: Essex Powerlines Corporation
C27: Test Year | D27: 2027 | AB27: Festival Hydro Inc.
AB28: Fort Frances Power Corporation
AB29: GrandBridge Energy Inc.-Brantford Power Rate Zone
AB30: GrandBridge Energy Inc.-Energy+ Rate Zone
AB31: Greater Sudbury Hydro Inc.
AB32: Grimsby Power Incorporated
AB33: Halton Hills Hydro Inc.
AB34: Hearst Power Distribution Co. Ltd.
AB35: Hydro 2000 Inc.
AB36: Hydro Hawkesbury Inc.
AB37: Hydro One Networks Inc.
AB38: Hydro One Networks Inc.-Former Orillia Power Distribution Corporation Service Area
AB39: Hydro One Networks Inc.-Former Peterborough Distribution Inc. Service Area
AB40: Hydro One Networks Inc.-Former Haldimand County Hydro Inc. Service Area
AB41: Hydro One Networks Inc.-Former Norfolk Power Distribution Inc. Service Area
AB42: Hydro One Networks Inc.-Former Woodstock Hydro Services Inc. Service Area
AB43: Hydro One Remote Communites Inc.
AB44: Hydro Ottawa Limited
AB45: InnPower Corporation
AB46: Kingston Hydro Corporation
AB47: Lakefront Utilities Inc.
AB48: Lakeland Power Distribution Ltd.
AB49: London Hydro Inc.
AB50: Milton Hydro Distribution Inc.
AB51: Newmarket-Tay Power Distribution Ltd.-For Former Midland Power Utility Rate Zone
AB52: Newmarket-Tay Power Distribution Ltd.-For Newmarket-Tay Power Main Rate Zone
AB53: Niagara Peninsula Energy Inc.
AB54: Niagara-on-the-Lake Hydro Inc.
AB55: North Bay Hydro Distribution Limited
AB56: Northern Ontario Wires Inc.
AB57: Oakville Hydro Electricity Distribution Inc.
AB58: Orangeville Hydro Limited
AB59: Oshawa PUC Networks Inc.
AB60: Ottawa River Power Corporation
AB61: PUC Distribution Inc.
AB62: Renfrew Hydro Inc.
AB63: Rideau St. Lawrence Distribution Inc.
AB64: Sioux Lookout Hydro Inc.
AB65: Synergy North Corporation-Kenora Rate Zone
AB66: Synergy North Corporation-Thunder Bay Rate Zone
AB67: Tillsonburg Hydro Inc.
AB68: Toronto Hydro-Electric System Limited
AB69: Wasaga Distribution Inc.
AB70: Welland Hydro-Electric System Corp.
AB71: Wellington North Power Inc.
AB72: Westario Power Inc.

Sheet 2021 List (hidden)
A1: Alectra Utilities Corporation-Brampton Rate Zone | B1: HHPNS717
A2: Alectra Utilities Corporation-Enersource Rate Zone | B2: HHPNS717
A3: Alectra Utilities Corporation-Horizon Utilities Rate Zone | B3: HHPNS717
A4: Alectra Utilities Corporation-PowerStream Rate Zone | B4: HHPNS717
A5: Alectra Utilities Corporation-Guelph Rate Zone | B5: HHPNS717
A6: Algoma Power Inc. | B6: WKBSV849
A7: Atikokan Hydro Inc. | B7: NJYBW716
A8: Bluewater Power Distribution Corporation | B8: GQQHM388
A9: Burlington Hydro Inc. | B9: OARZC118
A10: Canadian Niagara Power Inc. | B10: HJHBH994
A11: Centre Wellington Hydro Ltd. | B11: KQEEH473
A12: Chapleau Public Utilities Corporation | B12: CPEFQ593
A13: Cooperative Hydro Embrun Inc. | B13: QXHJU641
A14: E.L.K. Energy Inc. | B14: AVXSO594
A15: Elexicon Energy Inc.-Whitby Rate Zone | B15: JMNNR431
A16: Elexicon Energy Inc.-Veridian Rate Zone | B16: JMNNR431
A17: Enova Power Corp.-Kitchener-Wilmot Hydro Rate Zone | B17: JMNNR432
A18: Enova Power Corp.-Waterloo North Rate Zone | B18: JMNNR432
A19: Entegrus Powerlines Inc.-For Entegrus-Main Rate Zone | B19: YEOQG654
A20: Entegrus Powerlines Inc.-For Former St. Thomas Energy Rate Zone | B20: YEOQG654
A21: ENWIN Utilities Ltd. | B21: PTLUC812
A22: EPCOR Electricity Distribution Ontario Inc. | B22: ADICB565
A23: ERTH Power Corporation - ERTH Power Main Rate Zone | B23: LRECV427
A24: ERTH POWER CORPORATION – GODERICH RATE ZONE | B24: KTCNY552
A25: Espanola Regional Hydro Distribution Corporation | B25: YEPCI143
A26: Essex Powerlines Corporation | B26: GRHTW113
A27: Festival Hydro Inc. | B27: GMGHU415
A28: Fort Frances Power Corporation | B28: YTPWF351
A29: GrandBridge Energy Inc.-Brantford Power Rate Zone | B29: YTPWF352
A30: GrandBridge Energy Inc.-Energy+ Rate Zone | B30: YTPWF352
A31: Greater Sudbury Hydro Inc. | B31: YCYKQ642
A32: Grimsby Power Incorporated | B32: ADZFM459
A33: Halton Hills Hydro Inc. | B33: RVWKN794
A34: Hearst Power Distribution Co. Ltd. | B34: KESKM585
A35: Hydro 2000 Inc. | B35: MQFNL784
A36: Hydro Hawkesbury Inc. | B36: FNDHH648
A37: Hydro One Networks Inc. | B37: PTREM828
A38: Hydro One Networks Inc.-Former Orillia Power Distribution Corporation Service Area | B38: PTREM829
A39: Hydro One Networks Inc.-Former Peterborough Distribution Inc. Service Area | B39: PTREM829
A40: Hydro One Networks Inc.-Former Haldimand County Hydro Inc. Service Area | B40: PTREM828
A41: Hydro One Networks Inc.-Former Norfolk Power Distribution Inc. Service Area | B41: PTREM828
A42: Hydro One Networks Inc.-Former Woodstock Hydro Services Inc. Service Area | B42: PTREM828
A43: Hydro One Remote Communites Inc. | B43: UBBYF452
A44: Hydro Ottawa Limited | B44: NSBED625
A45: InnPower Corporation | B45: TXKTT167
A46: Kingston Hydro Corporation | B46: ZHKLA874
A47: Lakefront Utilities Inc. | B47: YLCEC559
A48: Lakeland Power Distribution Ltd. | B48: NHKJF259
A49: London Hydro Inc. | B49: SLRXO177
A50: Milton Hydro Distribution Inc. | B50: UIFEM157
A51: Newmarket-Tay Power Distribution Ltd.-For Former Midland Power Utility Rate Zone | B51: RUZIU984
A52: Newmarket-Tay Power Distribution Ltd.-For Newmarket-Tay Power Main Rate Zone | B52: RUZIU984
A53: Niagara Peninsula Energy Inc. | B53: KSUYD122
A54: Niagara-on-the-Lake Hydro Inc. | B54: QHCKN852
A55: North Bay Hydro Distribution Limited | B55: FUIJX538
A56: Northern Ontario Wires Inc. | B56: PWKJP953
A57: Oakville Hydro Electricity Distribution Inc. | B57: JEGGW178
A58: Orangeville Hydro Limited | B58: TVKSH414
A59: Oshawa PUC Networks Inc. | B59: PQZCY963
A60: Ottawa River Power Corporation | B60: GTLBW445
A61: PUC Distribution Inc. | B61: MLWYG784
A62: Renfrew Hydro Inc. | B62: QDKIF127
A63: Rideau St. Lawrence Distribution Inc. | B63: AMZEN437
A64: Sioux Lookout Hydro Inc. | B64: ACEVX242
A65: Synergy North Corporation-Kenora Rate Zone | B65: DSPWZ318
A66: Synergy North Corporation-Thunder Bay Rate Zone | B66: DSPWZ318
A67: Tillsonburg Hydro Inc. | B67: OLIUU862
A68: Toronto Hydro-Electric System Limited | B68: NIOJF461
A69: Wasaga Distribution Inc. | B69: ZYZFO848
A70: Welland Hydro-Electric System Corp. | B70: IOKHC383
A71: Wellington North Power Inc. | B71: SKVKJ649
A72: Westario Power Inc. | B72: TPFNQ593

Sheet Sheet1 (hidden)
A5: 2. Table of Contents | B5: X
A6: 3. RRR Data | B6: X
A7: 4. UTRs and Sub-Transmission | B7: X
A8: 5. Historical Wholesale | B8: X
A9: 6. Current Wholesale | B9: X
A10: 7. Forecast Wholesale | B10: X
A11: 8. RTSR Rates to Forecast | B11: X

Sheet 2. Table of Contents
D20: 1. Info | I20: 5. Historical Wholesale
D22: 2. Table of Contents | I22: 6. Current Wholesale
D24: 3. RRR Data | I24: 7. Forecast Wholesale
D26: 4. UTRs and Sub-Transmission | I26: 8. RTSR Rates to Forecast
I28: 9. LV Rates

Sheet 3. RRR Data
AZ1: 1
B13: Instructions: This tab is to be completed using 2024 data. When entering 2024 data, please enter 2024 load that would currently be expected to qualify for the EV Charging Rates in the EV Charging rows. The main class should exclude the EV load.
B14: EV Multiplier: | C14: 0.17
B15: Rate Class | C15: Rate Description | D15: Unit | E15: Rate | F15: Non-Loss Adjusted Metered kWh | G15: Non-Loss Adjusted Metered kW | H15: Applicable Loss Factor eg: (1.0325) | I15: Loss Adjusted Billed kWh
B17: RESIDENTIAL SERVICE CLASSIFICATION | C17: Retail Transmission Rate - Network Service Rate | D17: $/kWh | E17: 0.0127074273 | F17: 8291607415 | H17: 1.035848397 | I17: =F17*H17 -> 8588848247
B18: RESIDENTIAL SERVICE CLASSIFICATION | C18: Retail Transmission Rate - Line and Transformation Connection Service Rate | D18: $/kWh | E18: 0.007607656956 | F18: 8291607415 | H18: 1.035848397 | I18: 8588848247
B19: GENERAL SERVICE LESS THAN 50 KW SERVICE CLASSIFICATION | C19: Retail Transmission Rate - Network Service Rate | D19: $/kWh | E19: 0.01146971084 | F19: 2798123426 | H19: 1.035980066 | I19: 2898800092
B20: GENERAL SERVICE LESS THAN 50 KW SERVICE CLASSIFICATION | C20: Retail Transmission Rate - Line and Transformation Connection Service Rate | D20: $/kWh | E20: 0.006792031625 | F20: 2798123426 | H20: 1.035980066 | I20: 2898800092
B21: GENERAL SERVICE 50 to 4,999 kW SERVICE CLASSIFICATION | C21: Retail Transmission Rate - Network Service Rate | D21: $/kW | E21: 4.663197871 | G21: 33652794.09 | H21: 1 | I21: 0
B22: GENERAL SERVICE 50 to 4,999 kW SERVICE CLASSIFICATION | C22: Retail Transmission Rate - Line and Transformation Connection Service Rate | D22: $/kW | E22: 2.773265071 | G22: 33652794.09 | H22: 1 | I22: 0
B23: GENERAL SERVICE 50 to 4,999 kW SERVICE CLASSIFICATION | C23: Retail Transmission Rate - Network Service Rate - EV CHARGING | D23: $/kW | E23: 0.8129418641 | G23: 153743.54 | H23: 1 | I23: 0
B24: GENERAL SERVICE 50 to 4,999 kW SERVICE CLASSIFICATION | C24: Retail Transmission Rate - Line and Transformation Connection Service Rate - EV CHARGING | D24: $/kW | E24: 0.4269120511 | G24: 153743.54 | H24: 1 | I24: 0
B25: LARGE USE SERVICE CLASSIFICATION | C25: Retail Transmission Rate - Network Service Rate | D25: $/kW | E25: 5.180165238 | G25: 3575954.698 | H25: 1 | I25: 0
B26: LARGE USE SERVICE CLASSIFICATION | C26: Retail Transmission Rate - Line and Transformation Connection Service Rate | D26: $/kW | E26: 3.506484737 | G26: 3575954.698 | H26: 1 | I26: 0
B27: LARGE USE WITH DEDICATED ASSETS SERVICE CLASSIFICATION | C27: Retail Transmission Rate - Network Service Rate | D27: $/kW | E27: 5.065047222 | G27: 1601505.341 | H27: 1 | I27: 0
B28: LARGE USE WITH DEDICATED ASSETS SERVICE CLASSIFICATION | C28: Retail Transmission Rate - Line and Transformation Connection Service Rate | D28: $/kW | E28: 3.801472504 | G28: 1601505.341 | H28: 1 | I28: 0
B29: UNMETERED SCATTERED LOAD SERVICE CLASSIFICATION | C29: Retail Transmission Rate - Network Service Rate | D29: $/kWh | E29: 0.01243076991 | F29: 46497230.47 | H29: 1.036078257 | I29: 48174769.47
B30: UNMETERED SCATTERED LOAD SERVICE CLASSIFICATION | C30: Retail Transmission Rate - Line and Transformation Connection Service Rate | D30: $/kWh | E30: 0.007711481928 | F30: 46497230.47 | H30: 1.036078257 | I30: 48174769.47
B31: SENTINEL LIGHTING SERVICE CLASSIFICATION | C31: Retail Transmission Rate - Network Service Rate | D31: $/kW | E31: 3.622098678 | G31: 1987.753686 | H31: 1 | I31: 0
B32: SENTINEL LIGHTING SERVICE CLASSIFICATION | C32: Retail Transmission Rate - Line and Transformation Connection Service Rate | D32: $/kW | E32: 2.20556502 | G32: 1987.753686 | H32: 1 | I32: 0
B33: STREET LIGHTING SERVICE CLASSIFICATION | C33: Retail Transmission Rate - Network Service Rate | D33: $/kW | E33: 3.967563023 | G33: 262019.1876 | H33: 1 | I33: 0
B34: STREET LIGHTING SERVICE CLASSIFICATION | C34: Retail Transmission Rate - Line and Transformation Connection Service Rate | D34: $/kW | E34: 2.213935381 | G34: 262019.1876 | H34: 1 | I34: 0

Sheet 4. UTRs and Sub-Transmission
B18: Uniform Transmission Rates | C18: Unit | E18: 2025 Jan to Jun | G18: 2025 Jul to Dec | I18: 2026 Jan to Jun | J18: 2026 Jul to Dec | L18: 2027 | N18: 2028 | O18: 2029 | P18: 2030 | Q18: 2031
B20: Rate Description | E20: Rate | I20: Rate | L20: Rate | N20: Rate | O20: Rate | P20: Rate | Q20: Rate
B22: Network Service Rate | C22: kW | E22: 6.37 | G22: 6.37 | I22: 6.39 | J22: 6.39 | L22: 6.5178 | N22: 6.648156 | O22: 6.78111912 | P22: 6.916741502 | Q22: 7.055076332
B24: Line Connection Service Rate | C24: kW | E24: 1 | G24: 1 | I24: 1.03 | J24: 1.03 | L24: 1.0506 | N24: 1.071612 | O24: 1.09304424 | P24: 1.114905125 | Q24: 1.137203227
B26: Transformation Connection Service Rate | C26: kW | E26: 3.39 | G26: 3.39 | I26: 3.47 | J26: 3.47 | L26: 3.5394 | N26: 3.610188 | O26: 3.68239176 | P26: 3.756039595 | Q26: 3.831160387
B29: Hydro One Sub-Transmission Rates | C29: Unit | E29: 2025 | I29: 2026 | L29: 2027 | N29: 2028 | O29: 2029 | P29: 2030 | Q29: 2031
B33: Rate Description | E33: Rate | I33: Rate | L33: Rate | N33: Rate | O33: Rate | P33: Rate | Q33: Rate
B35: Network Service Rate | C35: kW | E35: 5.328 | I35: 5.4708 | L35: 5.580216 | N35: 5.69182032 | O35: 5.805656726 | P35: 5.921769861 | Q35: 6.040205258
B37: Line Connection Service Rate | C37: kW | E37: 0.6882 | I37: 0.7054 | L37: 0.719508 | N37: 0.73389816 | O37: 0.7485761232 | P37: 0.7635476457 | Q37: 0.7788185986
B39: Transformation Connection Service Rate | C39: kW | E39: 3.4894 | I39: 3.5764 | L39: 3.647928 | N39: 3.72088656 | O39: 3.795304291 | P39: 3.871210377 | Q39: 3.948634585
B41: Both Line and Transformation Connection Service Rate | C41: kW | E41: 4.1776 | I41: 4.2818 | L41: 4.367436 | N41: 4.45478472 | O41: 4.543880414 | P41: 4.634758023 | Q41: 4.727453183
B44: If needed, add extra host here. (I) | C44: Unit | E44: 2025 | I44: 2026 | L44: 2027 | N44: 2028 | O44: 2029 | P44: 2030 | Q44: 2031
B48: Rate Description | E48: Rate | H48: Rate | L48: Rate | N48: Rate | O48: Rate | P48: Rate | Q48: Rate
B50: Network Service Rate | C50: kW
B52: Line Connection Service Rate | C52: kW
B54: Transformation Connection Service Rate | C54: kW
B56: Both Line and Transformation Connection Service Rate | C56: kW | E56: =E54+E52 -> 0 | I56: =J54+J52 -> 0 | L56: =L54+L52 -> 0 | N56: =N54+N52 -> 0 | O56: 0 | P56: 0 | Q56: =Q54+Q52 -> 0
B59: If needed, add extra host here. (II) | C59: Unit | E59: 2025 | I59: 2026 | L59: 2027 | N59: 2028 | O59: 2029 | P59: 2030 | Q59: 2031
B63: Rate Description | E63: Rate | H63: Rate | L63: Rate | N63: Rate | O63: Rate | P63: Rate | Q63: Rate
B65: Network Service Rate | C65: kW
B67: Line Connection Service Rate | C67: kW
B69: Transformation Connection Service Rate | C69: kW
B71: Both Line and Transformation Connection Service Rate | C71: kW | E71: =E69+E67 -> 0 | I71: =J69+J67 -> 0 | L71: =L69+L67 -> 0 | N71: =N69+N67 -> 0 | O71: 0 | P71: 0 | Q71: =Q69+Q67 -> 0
E73: Historical 2025 | I73: Current 2026 | L73: Forecast 2027 | N73: Forecast 2027 | O73: Forecast 2027 | P73: Forecast 2027 | Q73: Forecast 2027
B74: Low Voltage Switchgear Credit (if applicable, enter as a negative value) | C74: $

Sheet 5. Historical Wholesale
B21: IESO | D21: Network | H21: Line Connection | L21: Transformation Connection | P21: Total Connection
B22: Month | D22: Units Billed | E22: Rate | F22: Amount | H22: Units Billed | I22: Rate | J22: Amount | L22: Units Billed | M22: Rate | N22: Amount | P22: Amount
B24: January | D24: 3766732 | E24: =IF(D24<>0,F24/D24,0) -> 6.37 | F24: 23994082.84 | H24: 3889756 | I24: =IF(H24<>0,J24/H24,0) -> 1 | J24: 3889756 | L24: 2863167 | M24: =IF(L24<>0,N24/L24,0) -> 3.39 | N24: 9706136.13 | P24: =J24+N24 -> 13595892.13
B25: February | D25: 3639411 | E25: 6.37 | F25: 23183048.07 | H25: 3787274 | I25: 1 | J25: 3787274 | L25: 2801691 | M25: 3.39 | N25: 9497732.49 | P25: 13285006.49
B26: March | D26: 3462429 | E26: 6.37 | F26: 22055672.73 | H26: 3674401 | I26: 1 | J26: 3674401 | L26: 2724825 | M26: 3.39 | N26: 9237156.75 | P26: 12911557.75
B27: April | D27: 3340986 | E27: 6.37 | F27: 21282080.82 | H27: 3684114.59 | I27: 1 | J27: 3684114.59 | L27: 2719968.799 | M27: 3.39 | N27: 9220694.23 | P27: 12904808.82
B28: May | D28: 3392475 | E28: 6.37 | F28: 21610065.75 | H28: 3543073 | I28: 1 | J28: 3543073 | L28: 2564560 | M28: 3.39 | N28: 8693858.4 | P28: 12236931.4
B29: June | D29: 5276744 | E29: 6.37 | F29: 33612859.28 | H29: 5365102 | I29: 1 | J29: 5365102 | L29: 3838850 | M29: 3.39 | N29: 13013701.5 | P29: 18378803.5
B30: July | D30: 5056272 | E30: 6.37 | F30: 32208452.64 | H30: 5219584 | I30: 1 | J30: 5219584 | L30: 3771381 | M30: 3.39 | N30: 12784981.59 | P30: 18004565.59
B31: August | D31: 4921869 | E31: 6.37 | F31: 31352305.53 | H31: 5152628 | I31: 1 | J31: 5152628 | L31: 3735622 | M31: 3.39 | N31: 12663758.58 | P31: 17816386.58
B32: September | D32: 3882484 | E32: 6.37 | F32: 24731423.08 | H32: 3968733 | I32: 1 | J32: 3968733 | L32: 2914061 | M32: 3.39 | N32: 9878666.79 | P32: 13847399.79
B33: October | D33: 3846211 | E33: 6.37 | F33: 24500364.07 | H33: 3965204 | I33: 1 | J33: 3965204 | L33: 2927549 | M33: 3.39 | N33: 9924391.11 | P33: 13889595.11
B34: November | D34: 3507961 | E34: 6.37 | F34: 22345711.57 | H34: 3683552 | I34: 1 | J34: 3683552 | L34: 2704557 | M34: 3.39 | N34: 9168448.23 | P34: 12852000.23
B35: December | D35: 3640729 | E35: 6.37 | F35: 23191443.73 | H35: 3904280 | I35: 1 | J35: 3904280 | L35: 2869124 | M35: 3.39 | N35: 9726330.36 | P35: 13630610.36
B37: Total | D37: =SUM(D24:D35) -> 47734303 | E37: =IF(D37<>0,F37/D37,0) -> 6.37 | F37: =SUM(F24:F35) -> 304067510.1 | H37: =SUM(H24:H35) -> 49837701.59 | I37: =IF(H37<>0,J37/H37,0) -> 1 | J37: =SUM(J24:J35) -> 49837701.59 | L37: =SUM(L24:L35) -> 36435355.8 | M37: =IF(L37<>0,N37/L37,0) -> 3.39 | N37: =SUM(N24:N35) -> 123515856.2 | P37: =SUM(P24:P35) -> 173353557.8
B39: Hydro One | D39: Network | H39: Line Connection | L39: Transformation Connection | P39: Total Connection
B41: Month | D41: Units Billed | E41: Rate | F41: Amount | H41: Units Billed | I41: Rate | J41: Amount | L41: Units Billed | M41: Rate | N41: Amount | P41: Amount
B43: January | D43: 453788.0905 | E43: =ROUND(IF(D43<>0,F43/D43,0),4) -> 5.328 | F43: 2417782.94 | H43: 455387.4352 | I43: =ROUND(IF(H43<>0,J43/H43,0),4) -> 0.6882 | J43: 313397.65 | L43: 482707.7752 | M43: =ROUND(IF(L43<>0,N43/L43,0),4) -> 3.4894 | N43: 1684360.54 | P43: =J43+N43 -> 1997758.19
B44: February | D44: 449162.6004 | E44: =ROUND(IF(D44<>0,F44/D44,0),4) -> 5.328 | F44: 2393138.32 | H44: 424662.4113 | I44: =ROUND(IF(H44<>0,J44/H44,0),4) -> 0.6882 | J44: 292252.69 | L44: 452221.4372 | M44: =ROUND(IF(L44<>0,N44/L44,0),4) -> 3.4894 | N44: 1577981.54 | P44: 1870234.23
B45: March | D45: 441400.26 | E45: 5.328 | F45: 2351780.59 | H45: 436806.2316 | I45: 0.6882 | J45: 300610.04 | L45: 463508.3616 | M45: 3.4894 | N45: 1617366.1 | P45: 1917976.14
B46: April | D46: 440533.56 | E46: 5.328 | F46: 2347162.83 | H46: 417235.5457 | I46: 0.6882 | J46: 287141.5 | L46: 442341.9057 | M46: 3.4894 | N46: 1543507.87 | P46: 1830649.37
B47: May | D47: 437765.53 | E47: 5.328 | F47: 2332414.7 | H47: 414501.4032 | I47: 0.6882 | J47: 285259.87 | L47: 439509.4032 | M47: 3.4894 | N47: 1533624.07 | P47: 1818883.94
B48: June | D48: 629252.91 | E48: 5.328 | F48: 3352659.41 | H48: 641477.225 | I48: 0.6882 | J48: 441464.64 | L48: 669509.535 | M48: 3.4894 | N48: 2336186.51 | P48: 2777651.15
B49: July | D49: 598575.14 | E49: 5.328 | F49: 3189208.41 | H49: 594461.1386 | I49: 0.6882 | J49: 409108.16 | L49: 623050.0386 | M49: 3.4894 | N49: 2174070.85 | P49: 2583179.01
B50: August | D50: 569551.38 | E50: 5.328 | F50: 3034569.75 | H50: 582314.349 | I50: 0.6882 | J50: 400748.75 | L50: 609497.6876 | M50: 3.4894 | N50: 2126781.25 | P50: 2527530
B51: September | D51: 482532.6 | E51: 5.328 | F51: 2570933.699 | H51: 461104.5544 | I51: 0.6882 | J51: 317332.15 | L51: 486482.7743 | M51: 3.4894 | N51: 1697533 | P51: 2014865.15
B52: October | D52: 475908.07 | E52: 5.328 | F52: 2535638.15 | H52: 459258.7799 | I52: 0.6882 | J52: 316061.89 | L52: 484377.7249 | M52: 3.4894 | N52: 1690187.58 | P52: 2006249.47
B53: November | D53: 426770.03 | E53: 5.328 | F53: 2273830.75 | H53: 422160.8197 | I53: 0.6882 | J53: 290531.08 | L53: 447779.8429 | M53: 3.4894 | N53: 1562483.06 | P53: 1853014.14
B54: December | D54: 463291.73 | E54: 5.328 | F54: 2468418.43 | H54: 458185.7843 | I54: 0.6882 | J54: 315323.44 | L54: 492759.1443 | M54: 3.4894 | N54: 1719433.79 | P54: 2034757.23
B56: Total | D56: =SUM(D43:D54) -> 5868531.901 | E56: =IF(D56<>0,F56/D56,0) -> 5.328000002 | F56: =SUM(F43:F54) -> 31267537.98 | H56: =SUM(H43:H54) -> 5767555.678 | I56: =IF(H56<>0,J56/H56,0) -> 0.6882000074 | J56: =SUM(J43:J54) -> 3969231.86 | L56: =SUM(L43:L54) -> 6093745.631 | M56: =IF(L56<>0,N56/L56,0) -> 3.489400026 | N56: =SUM(N43:N54) -> 21263516.16 | P56: =SUM(P43:P54) -> 25232748.02
B58: Add Extra Host Here (I) | D58: Network | H58: Line Connection | L58: Transformation Connection | P58: Total Connection
B59: (if needed)
B60: Month | D60: Units Billed | E60: Rate | F60: Amount | H60: Units Billed | I60: Rate | J60: Amount | L60: Units Billed | M60: Rate | N60: Amount | P60: Amount
B62: January | E62: =IF(D62<>0,F62/D62,0) -> 0 | I62: =IF(H62<>0,J62/H62,0) -> 0 | M62: =IF(L62<>0,N62/L62,0) -> 0 | P62: =J62+N62 -> 0
B63: February | E63: 0 | I63: 0 | M63: 0 | P63: 0
B64: March | E64: 0 | I64: 0 | M64: 0 | P64: 0
B65: April | E65: 0 | I65: 0 | M65: 0 | P65: 0
B66: May | E66: 0 | I66: 0 | M66: 0 | P66: 0
B67: June | E67: 0 | I67: 0 | M67: 0 | P67: 0
B68: July | E68: 0 | I68: 0 | M68: 0 | P68: 0
B69: August | E69: 0 | I69: 0 | M69: 0 | P69: 0
B70: September | E70: 0 | I70: 0 | M70: 0 | P70: 0
B71: October | E71: 0 | I71: 0 | M71: 0 | P71: 0
B72: November | E72: 0 | I72: 0 | M72: 0 | P72: 0
B73: December | E73: 0 | I73: 0 | M73: 0 | P73: 0
B75: Total | D75: =SUM(D62:D73) -> 0 | E75: =IF(D75<>0,F75/D75,0) -> 0 | F75: =SUM(F62:F73) -> 0 | H75: =SUM(H62:H73) -> 0 | I75: =IF(H75<>0,J75/H75,0) -> 0 | J75: =SUM(J62:J73) -> 0 | L75: =SUM(L62:L73) -> 0 | M75: =IF(L75<>0,N75/L75,0) -> 0 | N75: =SUM(N62:N73) -> 0 | P75: =SUM(P62:P73) -> 0
B77: Add Extra Host Here (II) | D77: Network | H77: Line Connection | L77: Transformation Connection | P77: Total Connection
B78: (if needed)
B79: Month | D79: Units Billed | E79: Rate | F79: Amount | H79: Units Billed | I79: Rate | J79: Amount | L79: Units Billed | M79: Rate | N79: Amount | P79: Amount
B81: January | E81: =IF(D81<>0,F81/D81,0) -> 0 | I81: =IF(H81<>0,J81/H81,0) -> 0 | M81: =IF(L81<>0,N81/L81,0) -> 0 | P81: =J81+N81 -> 0
B82: February | E82: 0 | I82: 0 | M82: 0 | P82: 0
B83: March | E83: 0 | I83: 0 | M83: 0 | P83: 0
B84: April | E84: 0 | I84: 0 | M84: 0 | P84: 0
B85: May | E85: 0 | I85: 0 | M85: 0 | P85: 0
B86: June | E86: 0 | I86: 0 | M86: 0 | P86: 0
B87: July | E87: 0 | I87: 0 | M87: 0 | P87: 0
B88: August | E88: 0 | I88: 0 | M88: 0 | P88: 0
B89: September | E89: 0 | I89: 0 | M89: 0 | P89: 0
B90: October | E90: 0 | I90: 0 | M90: 0 | P90: 0
B91: November | E91: 0 | I91: 0 | M91: 0 | P91: 0
B92: December | E92: 0 | I92: 0 | M92: 0 | P92: 0
B94: Total | D94: =SUM(D81:D92) -> 0 | E94: =IF(D94<>0,F94/D94,0) -> 0 | F94: =SUM(F81:F92) -> 0 | H94: =SUM(H81:H92) -> 0 | I94: =IF(H94<>0,J94/H94,0) -> 0 | J94: =SUM(J81:J92) -> 0 | L94: =SUM(L81:L92) -> 0 | M94: =IF(L94<>0,N94/L94,0) -> 0 | N94: =SUM(N81:N92) -> 0 | P94: =SUM(P81:P92) -> 0
B96: Total | D96: Network | H96: Line Connection | L96: Transformation Connection | P96: Total Connection
B98: Month | D98: Units Billed | E98: Rate | F98: Amount | H98: Units Billed | I98: Rate | J98: Amount | L98: Units Billed | M98: Rate | N98: Amount | P98: Amount
B100: January | D100: =D24+D43+D62+D81 -> 4220520.091 | E100: =IF(D100<>0,F100/D100,0) -> 6.257964709 | F100: =F24+F43+F62+F81 -> 26411865.78 | H100: =H24+H43+H62+H81 -> 4345143.435 | I100: =IF(H100<>0,J100/H100,0) -> 0.9673221869 | J100: =J24+J43+J62+J81 -> 4203153.65 | L100: =L24+L43+L62+L81 -> 3345874.775 | M100: =IF(L100<>0,N100/L100,0) -> 3.4043404 | N100: =N24+N43+N62+N81 -> 11390496.67 | P100: =J100+N100 -> 15593650.32
B101: February | D101: =D25+D44+D63+D82 -> 4088573.6 | E101: 6.255527939 | F101: =F25+F44+F63+F82 -> 25576186.39 | H101: =H25+H44+H63+H82 -> 4211936.411 | I101: 0.9685632193 | J101: =J25+J44+J63+J82 -> 4079526.69 | L101: =L25+L44+L63+L82 -> 3253912.437 | M101: 3.403814406 | N101: =N25+N44+N63+N82 -> 11075714.03 | P101: 15155240.72
B102: March | D102: 3903829.26 | E102: 6.252182586 | F102: 24407453.32 | H102: 4111207.232 | I102: 0.9668719712 | J102: 3975011.04 | L102: 3188333.362 | M102: 3.404450419 | N102: 10854522.85 | P102: 14829533.89
B103: April | D103: 3781519.56 | E103: 6.248610717 | F103: 23629243.65 | H103: 4101350.136 | I103: 0.9682801903 | J103: 3971256.09 | L103: 3162310.705 | M103: 3.403904013 | N103: 10764202.1 | P103: 14735458.19
B104: May | D104: 3830240.53 | E104: 6.250907812 | F104: 23942480.45 | H104: 3957574.403 | I104: 0.9673432461 | J104: 3828332.87 | L104: 3004069.403 | M104: 3.404542671 | N104: 10227482.47 | P104: 14055815.34
B105: June | D105: 5905996.91 | E105: 6.258980364 | F105: 36965518.69 | H105: 6006579.225 | I105: 0.9667010827 | J105: 5806566.64 | L105: 4508359.535 | M105: 3.404761286 | N105: 15349888.01 | P105: 21156454.65
B106: July | D106: 5654847.14 | E106: 6.259702548 | F106: 35397661.05 | H106: 5814045.139 | I106: 0.9681197902 | J106: 5628692.16 | L106: 4394431.039 | M106: 3.404093114 | N106: 14959052.44 | P106: 20587744.6
B107: August | D107: 5491420.38 | E107: 6.261927316 | F107: 34386875.28 | H107: 5734942.349 | I107: 0.9683404666 | J107: 5553376.75 | L107: 4345119.688 | M107: 3.40394302 | N107: 14790539.83 | P107: 20343916.58
B108: September | D108: 4365016.6 | E108: 6.254811672 | F108: 27302356.78 | H108: 4429837.554 | I108: 0.9675445425 | J108: 4286065.15 | L108: 3400543.774 | M108: 3.404220195 | N108: 11576199.79 | P108: 15862264.94
B109: October | D109: 4322119.07 | E109: 6.25526548 | F109: 27036002.22 | H109: 4424462.78 | I109: 0.9676351917 | J109: 4281265.89 | L109: 3411926.725 | M109: 3.404111409 | N109: 11614578.69 | P109: 15895844.58
B110: November | D110: 3934731.03 | E110: 6.256982277 | F110: 24619542.32 | H110: 4105712.82 | I110: 0.9679398571 | J110: 3974083.08 | L110: 3152336.843 | M110: 3.404119491 | N110: 10730931.29 | P110: 14705014.37
B111: December | D111: 4104020.73 | E111: 6.252371479 | F111: 25659862.16 | H111: 4362465.784 | I111: 0.9672519279 | J111: 4219603.44 | L111: 3361883.144 | M111: 3.404569302 | N111: 11445764.15 | P111: 15665367.59
B113: Total | D113: =SUM(D100:D111) -> 53602834.9 | E113: =IF(D113<>0,F113/D113,0) -> 6.255920022 | F113: =SUM(F100:F111) -> 335335048.1 | H113: =SUM(H100:H111) -> 55605257.27 | I113: =IF(H113<>0,J113/H113,0) -> 0.9676591044 | J113: =SUM(J100:J111) -> 53806933.45 | L113: =SUM(L100:L111) -> 42529101.43 | M113: =IF(L113<>0,N113/L113,0) -> 3.404242447 | N113: =SUM(N100:N111) -> 144779372.3 | P113: =SUM(P100:P111) -> 198586305.8
N115: Low Voltage Switchgear Credit (if applicable) | P115: ='4. UTRs and Sub-Transmission'!E76 -> 0
N117: Total including deduction for Low Voltage Switchgear Credit | P117: =P113+P115 -> 198586305.8

Sheet 6. Current Wholesale
B13: The purpose of this sheet is to calculate the expected billing when current 2026 Uniform Transmission Rates and Hydro One Sub-transmission Rates are applied against historical 2025 transmission units.
B20: IESO | D20: Network | H20: Line Connection | L20: Transformation Connection | P20: Total Connection
B22: Month | D22: Units Billed | E22: Rate | F22: Amount | H22: Units Billed | I22: Rate | J22: Amount | L22: Units Billed | M22: Rate | N22: Amount | P22: Amount
B24: January | D24: ='5. Historical Wholesale'!D24 -> 3766732 | E24: ='4. UTRs and Sub-Transmission'!I22 -> 6.39 | F24: =D24*E24 -> 24069417.48 | H24: ='5. Historical Wholesale'!H24 -> 3889756 | I24: ='4. UTRs and Sub-Transmission'!I24 -> 1.03 | J24: =H24*I24 -> 4006448.68 | L24: ='5. Historical Wholesale'!L24 -> 2863167 | M24: ='4. UTRs and Sub-Transmission'!I26 -> 3.47 | N24: =L24*M24 -> 9935189.49 | P24: =J24+N24 -> 13941638.17
B25: February | D25: ='5. Historical Wholesale'!D25 -> 3639411 | E25: =E24 -> 6.39 | F25: =D25*E25 -> 23255836.29 | H25: ='5. Historical Wholesale'!H25 -> 3787274 | I25: =I24 -> 1.03 | J25: =H25*I25 -> 3900892.22 | L25: ='5. Historical Wholesale'!L25 -> 2801691 | M25: =M24 -> 3.47 | N25: =L25*M25 -> 9721867.77 | P25: 13622759.99
B26: March | D26: ='5. Historical Wholesale'!D26 -> 3462429 | E26: =E25 -> 6.39 | F26: 22124921.31 | H26: ='5. Historical Wholesale'!H26 -> 3674401 | I26: =I25 -> 1.03 | J26: 3784633.03 | L26: ='5. Historical Wholesale'!L26 -> 2724825 | M26: =M25 -> 3.47 | N26: 9455142.75 | P26: 13239775.78
B27: April | D27: ='5. Historical Wholesale'!D27 -> 3340986 | E27: 6.39 | F27: 21348900.54 | H27: ='5. Historical Wholesale'!H27 -> 3684114.59 | I27: 1.03 | J27: 3794638.028 | L27: ='5. Historical Wholesale'!L27 -> 2719968.799 | M27: 3.47 | N27: 9438291.734 | P27: 13232929.76
B28: May | D28: ='5. Historical Wholesale'!D28 -> 3392475 | E28: 6.39 | F28: 21677915.25 | H28: ='5. Historical Wholesale'!H28 -> 3543073 | I28: 1.03 | J28: 3649365.19 | L28: ='5. Historical Wholesale'!L28 -> 2564560 | M28: 3.47 | N28: 8899023.2 | P28: 12548388.39
B29: June | D29: ='5. Historical Wholesale'!D29 -> 5276744 | E29: 6.39 | F29: 33718394.16 | H29: ='5. Historical Wholesale'!H29 -> 5365102 | I29: 1.03 | J29: 5526055.06 | L29: ='5. Historical Wholesale'!L29 -> 3838850 | M29: 3.47 | N29: 13320809.5 | P29: 18846864.56
B30: July | D30: ='5. Historical Wholesale'!D30 -> 5056272 | E30: ='4. UTRs and Sub-Transmission'!J22 -> 6.39 | F30: 32309578.08 | H30: ='5. Historical Wholesale'!H30 -> 5219584 | I30: ='4. UTRs and Sub-Transmission'!J24 -> 1.03 | J30: 5376171.52 | L30: ='5. Historical Wholesale'!L30 -> 3771381 | M30: ='4. UTRs and Sub-Transmission'!J26 -> 3.47 | N30: 13086692.07 | P30: 18462863.59
B31: August | D31: ='5. Historical Wholesale'!D31 -> 4921869 | E31: 6.39 | F31: 31450742.91 | H31: ='5. Historical Wholesale'!H31 -> 5152628 | I31: 1.03 | J31: 5307206.84 | L31: ='5. Historical Wholesale'!L31 -> 3735622 | M31: 3.47 | N31: 12962608.34 | P31: 18269815.18
B32: September | D32: ='5. Historical Wholesale'!D32 -> 3882484 | E32: 6.39 | F32: 24809072.76 | H32: ='5. Historical Wholesale'!H32 -> 3968733 | I32: 1.03 | J32: 4087794.99 | L32: ='5. Historical Wholesale'!L32 -> 2914061 | M32: 3.47 | N32: 10111791.67 | P32: 14199586.66
B33: October | D33: ='5. Historical Wholesale'!D33 -> 3846211 | E33: 6.39 | F33: 24577288.29 | H33: ='5. Historical Wholesale'!H33 -> 3965204 | I33: 1.03 | J33: 4084160.12 | L33: ='5. Historical Wholesale'!L33 -> 2927549 | M33: 3.47 | N33: 10158595.03 | P33: 14242755.15
B34: November | D34: ='5. Historical Wholesale'!D34 -> 3507961 | E34: 6.39 | F34: 22415870.79 | H34: ='5. Historical Wholesale'!H34 -> 3683552 | I34: 1.03 | J34: 3794058.56 | L34: ='5. Historical Wholesale'!L34 -> 2704557 | M34: 3.47 | N34: 9384812.79 | P34: 13178871.35
B35: December | D35: ='5. Historical Wholesale'!D35 -> 3640729 | E35: 6.39 | F35: 23264258.31 | H35: ='5. Historical Wholesale'!H35 -> 3904280 | I35: 1.03 | J35: 4021408.4 | L35: ='5. Historical Wholesale'!L35 -> 2869124 | M35: 3.47 | N35: 9955860.28 | P35: 13977268.68
B37: Total | D37: =SUM(D24:D35) -> 47734303 | E37: =IF(D37<>0,F37/D37,0) -> 6.39 | F37: =SUM(F24:F35) -> 305022196.2 | H37: =SUM(H24:H35) -> 49837701.59 | I37: =IF(H37<>0,J37/H37,0) -> 1.03 | J37: =SUM(J24:J35) -> 51332832.64 | L37: =SUM(L24:L35) -> 36435355.8 | M37: =IF(L37<>0,N37/L37,0) -> 3.47 | N37: =SUM(N24:N35) -> 126430684.6 | P37: =SUM(P24:P35) -> 177763517.3
B39: Hydro One | D39: Network | H39: Line Connection | L39: Transformation Connection | P39: Total Connection
B41: Month | D41: Units Billed | E41: Rate | F41: Amount | H41: Units Billed | I41: Rate | J41: Amount | L41: Units Billed | M41: Rate | N41: Amount | P41: Amount
B43: January | D43: ='5. Historical Wholesale'!D43 -> 453788.0905 | E43: ='4. UTRs and Sub-Transmission'!I35 -> 5.4708 | F43: =D43*E43 -> 2482583.886 | H43: ='5. Historical Wholesale'!H43 -> 455387.4352 | I43: ='4. UTRs and Sub-Transmission'!I37 -> 0.7054 | J43: =H43*I43 -> 321230.2968 | L43: ='5. Historical Wholesale'!L43 -> 482707.7752 | M43: ='4. UTRs and Sub-Transmission'!I39 -> 3.5764 | N43: =L43*M43 -> 1726356.087 | P43: =J43+N43 -> 2047586.384
B44: February | D44: ='5. Historical Wholesale'!D44 -> 449162.6004 | E44: =E43 -> 5.4708 | F44: =D44*E44 -> 2457278.754 | H44: ='5. Historical Wholesale'!H44 -> 424662.4113 | I44: =I43 -> 0.7054 | J44: =H44*I44 -> 299556.8649 | L44: ='5. Historical Wholesale'!L44 -> 452221.4372 | M44: =M43 -> 3.5764 | N44: =L44*M44 -> 1617324.748 | P44: 1916881.613
B45: March | D45: ='5. Historical Wholesale'!D45 -> 441400.26 | E45: 5.4708 | F45: 2414812.542 | H45: ='5. Historical Wholesale'!H45 -> 436806.2316 | I45: 0.7054 | J45: 308123.1158 | L45: ='5. Historical Wholesale'!L45 -> 463508.3616 | M45: =M44 -> 3.5764 | N45: 1657691.304 | P45: 1965814.42
B46: April | D46: ='5. Historical Wholesale'!D46 -> 440533.56 | E46: 5.4708 | F46: 2410071 | H46: ='5. Historical Wholesale'!H46 -> 417235.5457 | I46: 0.7054 | J46: 294317.954 | L46: ='5. Historical Wholesale'!L46 -> 442341.9057 | M46: =M45 -> 3.5764 | N46: 1581991.592 | P46: 1876309.546
B47: May | D47: ='5. Historical Wholesale'!D47 -> 437765.53 | E47: 5.4708 | F47: 2394927.662 | H47: ='5. Historical Wholesale'!H47 -> 414501.4032 | I47: 0.7054 | J47: 292389.2898 | L47: ='5. Historical Wholesale'!L47 -> 439509.4032 | M47: 3.5764 | N47: 1571861.43 | P47: 1864250.719
B48: June | D48: ='5. Historical Wholesale'!D48 -> 629252.91 | E48: 5.4708 | F48: 3442516.82 | H48: ='5. Historical Wholesale'!H48 -> 641477.225 | I48: 0.7054 | J48: 452498.0345 | L48: ='5. Historical Wholesale'!L48 -> 669509.535 | M48: 3.5764 | N48: 2394433.901 | P48: 2846931.935
B49: July | D49: ='5. Historical Wholesale'!D49 -> 598575.14 | E49: 5.4708 | F49: 3274684.876 | H49: ='5. Historical Wholesale'!H49 -> 594461.1386 | I49: 0.7054 | J49: 419332.8872 | L49: ='5. Historical Wholesale'!L49 -> 623050.0386 | M49: 3.5764 | N49: 2228276.158 | P49: 2647609.045
B50: August | D50: ='5. Historical Wholesale'!D50 -> 569551.38 | E50: 5.4708 | F50: 3115901.69 | H50: ='5. Historical Wholesale'!H50 -> 582314.349 | I50: 0.7054 | J50: 410764.5418 | L50: ='5. Historical Wholesale'!L50 -> 609497.6876 | M50: 3.5764 | N50: 2179807.53 | P50: 2590572.072
B51: September | D51: ='5. Historical Wholesale'!D51 -> 482532.6 | E51: 5.4708 | F51: 2639839.348 | H51: ='5. Historical Wholesale'!H51 -> 461104.5544 | I51: 0.7054 | J51: 325263.1527 | L51: ='5. Historical Wholesale'!L51 -> 486482.7743 | M51: 3.5764 | N51: 1739856.994 | P51: 2065120.147
B52: October | D52: ='5. Historical Wholesale'!D52 -> 475908.07 | E52: 5.4708 | F52: 2603597.869 | H52: ='5. Historical Wholesale'!H52 -> 459258.7799 | I52: 0.7054 | J52: 323961.1433 | L52: ='5. Historical Wholesale'!L52 -> 484377.7249 | M52: 3.5764 | N52: 1732328.495 | P52: 2056289.639
B53: November | D53: ='5. Historical Wholesale'!D53 -> 426770.03 | E53: 5.4708 | F53: 2334773.48 | H53: ='5. Historical Wholesale'!H53 -> 422160.8197 | I53: 0.7054 | J53: 297792.2422 | L53: ='5. Historical Wholesale'!L53 -> 447779.8429 | M53: 3.5764 | N53: 1601439.83 | P53: 1899232.073
B54: December | D54: ='5. Historical Wholesale'!D54 -> 463291.73 | E54: 5.4708 | F54: 2534576.396 | H54: ='5. Historical Wholesale'!H54 -> 458185.7843 | I54: 0.7054 | J54: 323204.2522 | L54: ='5. Historical Wholesale'!L54 -> 492759.1443 | M54: 3.5764 | N54: 1762303.804 | P54: 2085508.056
B56: Total | D56: =SUM(D43:D54) -> 5868531.901 | E56: =IF(D56<>0,F56/D56,0) -> 5.4708 | F56: =SUM(F43:F54) -> 32105564.32 | H56: =SUM(H43:H54) -> 5767555.678 | I56: =IF(H56<>0,J56/H56,0) -> 0.7054 | J56: =SUM(J43:J54) -> 4068433.775 | L56: =SUM(L43:L54) -> 6093745.631 | M56: =IF(L56<>0,N56/L56,0) -> 3.5764 | N56: =SUM(N43:N54) -> 21793671.87 | P56: =SUM(P43:P54) -> 25862105.65
B58: ='5. Historical Wholesale'!B58 -> Add Extra Host Here (I) | D58: Network | H58: Line Connection | L58: Transformation Connection | P58: Total Connection
B60: Month | D60: Units Billed | E60: Rate | F60: Amount | H60: Units Billed | I60: Rate | J60: Amount | L60: Units Billed | M60: Rate | N60: Amount | P60: Amount
B62: January | D62: ='5. Historical Wholesale'!D62 -> 0 | E62: ='4. UTRs and Sub-Transmission'!H52 -> 0 | F62: =D62*E62 -> 0 | H62: ='5. Historical Wholesale'!H62 -> 0 | I62: ='4. UTRs and Sub-Transmission'!H54 -> 0 | J62: =H62*I62 -> 0 | L62: ='5. Historical Wholesale'!L62 -> 0 | M62: ='4. UTRs and Sub-Transmission'!H56 -> 0 | N62: =L62*M62 -> 0 | P62: =J62+N62 -> 0
B63: February | D63: ='5. Historical Wholesale'!D63 -> 0 | E63: =E62 -> 0 | F63: =D63*E63 -> 0 | H63: ='5. Historical Wholesale'!H63 -> 0 | I63: =I62 -> 0 | J63: =H63*I63 -> 0 | L63: ='5. Historical Wholesale'!L63 -> 0 | M63: =M62 -> 0 | N63: =L63*M63 -> 0 | P63: 0
B64: March | D64: ='5. Historical Wholesale'!D64 -> 0 | E64: =E63 -> 0 | F64: 0 | H64: ='5. Historical Wholesale'!H64 -> 0 | I64: =I63 -> 0 | J64: 0 | L64: ='5. Historical Wholesale'!L64 -> 0 | M64: =M63 -> 0 | N64: 0 | P64: 0
B65: April | D65: ='5. Historical Wholesale'!D65 -> 0 | E65: 0 | F65: 0 | H65: ='5. Historical Wholesale'!H65 -> 0 | I65: 0 | J65: 0 | L65: ='5. Historical Wholesale'!L65 -> 0 | M65: =M64 -> 0 | N65: 0 | P65: 0
B66: May | D66: ='5. Historical Wholesale'!D66 -> 0 | E66: 0 | F66: 0 | H66: ='5. Historical Wholesale'!H66 -> 0 | I66: 0 | J66: 0 | L66: ='5. Historical Wholesale'!L66 -> 0 | M66: 0 | N66: 0 | P66: 0
B67: June | D67: ='5. Historical Wholesale'!D67 -> 0 | E67: 0 | F67: 0 | H67: ='5. Historical Wholesale'!H67 -> 0 | I67: 0 | J67: 0 | L67: ='5. Historical Wholesale'!L67 -> 0 | M67: 0 | N67: 0 | P67: 0
B68: July | D68: ='5. Historical Wholesale'!D68 -> 0 | E68: 0 | F68: 0 | H68: ='5. Historical Wholesale'!H68 -> 0 | I68: 0 | J68: 0 | L68: ='5. Historical Wholesale'!L68 -> 0 | M68: 0 | N68: 0 | P68: 0
B69: August | D69: ='5. Historical Wholesale'!D69 -> 0 | E69: 0 | F69: 0 | H69: ='5. Historical Wholesale'!H69 -> 0 | I69: 0 | J69: 0 | L69: ='5. Historical Wholesale'!L69 -> 0 | M69: 0 | N69: 0 | P69: 0
B70: September | D70: ='5. Historical Wholesale'!D70 -> 0 | E70: 0 | F70: 0 | H70: ='5. Historical Wholesale'!H70 -> 0 | I70: 0 | J70: 0 | L70: ='5. Historical Wholesale'!L70 -> 0 | M70: 0 | N70: 0 | P70: 0
B71: October | D71: ='5. Historical Wholesale'!D71 -> 0 | E71: 0 | F71: 0 | H71: ='5. Historical Wholesale'!H71 -> 0 | I71: 0 | J71: 0 | L71: ='5. Historical Wholesale'!L71 -> 0 | M71: 0 | N71: 0 | P71: 0
B72: November | D72: ='5. Historical Wholesale'!D72 -> 0 | E72: 0 | F72: 0 | H72: ='5. Historical Wholesale'!H72 -> 0 | I72: 0 | J72: 0 | L72: ='5. Historical Wholesale'!L72 -> 0 | M72: 0 | N72: 0 | P72: 0
B73: December | D73: ='5. Historical Wholesale'!D73 -> 0 | E73: 0 | F73: 0 | H73: ='5. Historical Wholesale'!H73 -> 0 | I73: 0 | J73: 0 | L73: ='5. Historical Wholesale'!L73 -> 0 | M73: 0 | N73: 0 | P73: 0
B75: Total | D75: =SUM(D62:D73) -> 0 | E75: =IF(D75<>0,F75/D75,0) -> 0 | F75: =SUM(F62:F73) -> 0 | H75: =SUM(H62:H73) -> 0 | I75: =IF(H75<>0,J75/H75,0) -> 0 | J75: =SUM(J62:J73) -> 0 | L75: =SUM(L62:L73) -> 0 | M75: =IF(L75<>0,N75/L75,0) -> 0 | N75: =SUM(N62:N73) -> 0 | P75: =SUM(P62:P73) -> 0
B77: ='5. Historical Wholesale'!B77 -> Add Extra Host Here (II) | D77: Network | H77: Line Connection | L77: Transformation Connection | P77: Total Connection
B79: Month | D79: Units Billed | E79: Rate | F79: Amount | H79: Units Billed | I79: Rate | J79: Amount | L79: Units Billed | M79: Rate | N79: Amount | P79: Amount
B81: January | D81: ='5. Historical Wholesale'!D81 -> 0 | E81: ='4. UTRs and Sub-Transmission'!H67 -> 0 | F81: =D81*E81 -> 0 | H81: ='5. Historical Wholesale'!H81 -> 0 | I81: ='4. UTRs and Sub-Transmission'!H69 -> 0 | J81: =H81*I81 -> 0 | L81: ='5. Historical Wholesale'!L81 -> 0 | M81: ='4. UTRs and Sub-Transmission'!H71 -> 0 | N81: =L81*M81 -> 0 | P81: =J81+N81 -> 0
B82: February | D82: ='5. Historical Wholesale'!D82 -> 0 | E82: =E81 -> 0 | F82: =D82*E82 -> 0 | H82: ='5. Historical Wholesale'!H82 -> 0 | I82: =I81 -> 0 | J82: =H82*I82 -> 0 | L82: ='5. Historical Wholesale'!L82 -> 0 | M82: =M81 -> 0 | N82: =L82*M82 -> 0 | P82: 0
B83: March | D83: ='5. Historical Wholesale'!D83 -> 0 | E83: =E82 -> 0 | F83: 0 | H83: ='5. Historical Wholesale'!H83 -> 0 | I83: =I82 -> 0 | J83: 0 | L83: ='5. Historical Wholesale'!L83 -> 0 | M83: =M82 -> 0 | N83: 0 | P83: 0
B84: April | D84: ='5. Historical Wholesale'!D84 -> 0 | E84: 0 | F84: 0 | H84: ='5. Historical Wholesale'!H84 -> 0 | I84: 0 | J84: 0 | L84: ='5. Historical Wholesale'!L84 -> 0 | M84: =M83 -> 0 | N84: 0 | P84: 0
B85: May | D85: ='5. Historical Wholesale'!D85 -> 0 | E85: 0 | F85: 0 | H85: ='5. Historical Wholesale'!H85 -> 0 | I85: 0 | J85: 0 | L85: ='5. Historical Wholesale'!L85 -> 0 | M85: 0 | N85: 0 | P85: 0
B86: June | D86: ='5. Historical Wholesale'!D86 -> 0 | E86: 0 | F86: 0 | H86: ='5. Historical Wholesale'!H86 -> 0 | I86: 0 | J86: 0 | L86: ='5. Historical Wholesale'!L86 -> 0 | M86: 0 | N86: 0 | P86: 0
B87: July | D87: ='5. Historical Wholesale'!D87 -> 0 | E87: 0 | F87: 0 | H87: ='5. Historical Wholesale'!H87 -> 0 | I87: 0 | J87: 0 | L87: ='5. Historical Wholesale'!L87 -> 0 | M87: 0 | N87: 0 | P87: 0
B88: August | D88: ='5. Historical Wholesale'!D88 -> 0 | E88: 0 | F88: 0 | H88: ='5. Historical Wholesale'!H88 -> 0 | I88: 0 | J88: 0 | L88: ='5. Historical Wholesale'!L88 -> 0 | M88: 0 | N88: 0 | P88: 0
B89: September | D89: ='5. Historical Wholesale'!D89 -> 0 | E89: 0 | F89: 0 | H89: ='5. Historical Wholesale'!H89 -> 0 | I89: 0 | J89: 0 | L89: ='5. Historical Wholesale'!L89 -> 0 | M89: 0 | N89: 0 | P89: 0
B90: October | D90: ='5. Historical Wholesale'!D90 -> 0 | E90: 0 | F90: 0 | H90: ='5. Historical Wholesale'!H90 -> 0 | I90: 0 | J90: 0 | L90: ='5. Historical Wholesale'!L90 -> 0 | M90: 0 | N90: 0 | P90: 0
B91: November | D91: ='5. Historical Wholesale'!D91 -> 0 | E91: 0 | F91: 0 | H91: ='5. Historical Wholesale'!H91 -> 0 | I91: 0 | J91: 0 | L91: ='5. Historical Wholesale'!L91 -> 0 | M91: 0 | N91: 0 | P91: 0
B92: December | D92: ='5. Historical Wholesale'!D92 -> 0 | E92: 0 | F92: 0 | H92: ='5. Historical Wholesale'!H92 -> 0 | I92: 0 | J92: 0 | L92: ='5. Historical Wholesale'!L92 -> 0 | M92: 0 | N92: 0 | P92: 0
B94: Total | D94: =SUM(D81:D92) -> 0 | E94: =IF(D94<>0,F94/D94,0) -> 0 | F94: =SUM(F81:F92) -> 0 | H94: =SUM(H81:H92) -> 0 | I94: =IF(H94<>0,J94/H94,0) -> 0 | J94: =SUM(J81:J92) -> 0 | L94: =SUM(L81:L92) -> 0 | M94: =IF(L94<>0,N94/L94,0) -> 0 | N94: =SUM(N81:N92) -> 0 | P94: =SUM(P81:P92) -> 0
B96: Total | D96: Network | H96: Line Connection | L96: Transformation Connection | P96: Total Connection
B98: Month | D98: Units Billed | E98: Rate | F98: Amount | H98: Units Billed | I98: Rate | J98: Amount | L98: Units Billed | M98: Rate | N98: Amount | P98: Amount
B100: January | D100: =D24+D43+D62+D81 -> 4220520.091 | E100: =IF(D100<>0,F100/D100,0) -> 6.291168102 | F100: =F24+F43+F62+F81 -> 26552001.37 | H100: =H24+H43+H62+H81 -> 4345143.435 | I100: =IF(H100<>0,J100/H100,0) -> 0.9959806946 | J100: =J24+J43+J62+J81 -> 4327678.977 | L100: =L24+L43+L62+L81 -> 3345874.775 | M100: =IF(L100<>0,N100/L100,0) -> 3.485350278 | N100: =N24+N43+N62+N81 -> 11661545.58 | P100: =J100+N100 -> 15989224.55
B101: February | D101: =D25+D44+D63+D82 -> 4088573.6 | E101: 6.289018508 | F101: =F25+F44+F63+F82 -> 25713115.04 | H101: =H25+H44+H63+H82 -> 4211936.411 | I101: 0.9972726734 | J101: =J25+J44+J63+J82 -> 4200449.085 | L101: =L25+L44+L63+L82 -> 3253912.437 | M101: 3.484787233 | N101: =N25+N44+N63+N82 -> 11339192.52 | P101: 15539641.6
B102: March | D102: 3903829.26 | E102: 6.286067402 | F102: 24539733.85 | H102: 4111207.232 | I102: 0.995512003 | J102: 4092756.146 | L102: 3188333.362 | M102: 3.485468047 | N102: 11112834.05 | P102: 15205590.2
B103: April | D103: 3781519.56 | E103: 6.282916474 | F103: 23758971.54 | H103: 4101350.136 | I103: 0.9969780307 | J103: 4088955.982 | L103: 3162310.705 | M103: 3.484883161 | N103: 11020283.33 | P103: 15109239.31
B104: May | D104: 3830240.53 | E104: 6.284942871 | F104: 24072842.91 | H104: 3957574.403 | I104: 0.9960026214 | J104: 3941754.48 | L104: 3004069.403 | M104: 3.485566818 | N104: 10470884.63 | P104: 14412639.11
B105: June | D105: 5905996.91 | E105: 6.292064074 | F105: 37160910.98 | H105: 6006579.225 | I105: 0.9953340946 | J105: 5978553.095 | L105: 4508359.535 | M105: 3.485800828 | N105: 15715243.4 | P105: 21693796.5
B106: July | D106: 5654847.14 | E106: 6.292701124 | F106: 35584262.96 | H106: 5814045.139 | I106: 0.9968110445 | J106: 5795504.407 | L106: 4394431.039 | M106: 3.485085576 | N106: 15314968.23 | P106: 21110472.64
B107: August | D107: 5491420.38 | E107: 6.294663713 | F107: 34566644.6 | H107: 5734942.349 | I107: 0.9970407781 | J107: 5717971.382 | L107: 4345119.688 | M107: 3.484924918 | N107: 15142415.87 | P107: 20860387.25
B108: September | D108: 4365016.6 | E108: 6.288386649 | F108: 27448912.11 | H108: 4429837.554 | I108: 0.9962121835 | J108: 4413058.143 | L108: 3400543.774 | M108: 3.485221615 | N108: 11851648.66 | P108: 16264706.81
B109: October | D109: 4322119.07 | E109: 6.288786986 | F109: 27180886.16 | H109: 4424462.78 | I109: 0.9963065535 | J109: 4408121.263 | L109: 3411926.725 | M109: 3.485105187 | N109: 11890923.53 | P109: 16299044.79
B110: November | D110: 3934731.03 | E110: 6.290301442 | F110: 24750644.27 | H110: 4105712.82 | I110: 0.9966237245 | J110: 4091850.802 | L110: 3152336.843 | M110: 3.485113796 | N110: 10986252.62 | P110: 15078103.42
B111: December | D111: 4104020.73 | E111: 6.286234014 | F111: 25798834.71 | H111: 4362465.784 | I111: 0.9959075594 | J111: 4344612.652 | L111: 3361883.144 | M111: 3.485595299 | N111: 11718164.08 | P111: 16062776.74
B113: Total | D113: =SUM(D100:D111) -> 53602834.9 | E113: =IF(D113<>0,F113/D113,0) -> 6.28936438 | F113: =SUM(F100:F111) -> 337127760.5 | H113: =SUM(H100:H111) -> 55605257.27 | I113: =IF(H113<>0,J113/H113,0) -> 0.9963314466 | J113: =SUM(J100:J111) -> 55401266.41 | L113: =SUM(L100:L111) -> 42529101.43 | M113: =IF(L113<>0,N113/L113,0) -> 3.485245432 | N113: =SUM(N100:N111) -> 148224356.5 | P113: =SUM(P100:P111) -> 203625622.9
N115: Low Voltage Switchgear Credit (if applicable) | P115: ='4. UTRs and Sub-Transmission'!J76 -> 0
N117: Total including deduction for Low Voltage Switchgear Credit | P117: =P113+P115 -> 203625622.9

Sheet 7. Forecast Wholesale - 27
B13: The purpose of this sheet is to calculate the expected billing when forecasted 2027 Uniform Transmission Rates and Hydro One Sub-transmission Rates are applied against historical 2025 transmission units.
B20: IESO | D20: Network | H20: Line Connection | L20: Transformation Connection | P20: Total Connection
B22: Month | D22: Units Billed | E22: Rate | F22: Amount | H22: Units Billed | I22: Rate | J22: Amount | L22: Units Billed | M22: Rate | N22: Amount | P22: Amount
B24: January | D24: ='5. Historical Wholesale'!D24 -> 3766732 | E24: ='4. UTRs and Sub-Transmission'!L22 -> 6.5178 | F24: =D24*E24 -> 24550805.83 | H24: ='5. Historical Wholesale'!H24 -> 3889756 | I24: ='4. UTRs and Sub-Transmission'!L24 -> 1.0506 | J24: =H24*I24 -> 4086577.654 | L24: ='5. Historical Wholesale'!L24 -> 2863167 | M24: ='4. UTRs and Sub-Transmission'!L26 -> 3.5394 | N24: =L24*M24 -> 10133893.28 | P24: =J24+N24 -> 14220470.93
B25: February | D25: ='5. Historical Wholesale'!D25 -> 3639411 | E25: =E24 -> 6.5178 | F25: 23720953.02 | H25: ='5. Historical Wholesale'!H25 -> 3787274 | I25: =I24 -> 1.0506 | J25: 3978910.064 | L25: ='5. Historical Wholesale'!L25 -> 2801691 | M25: =M24 -> 3.5394 | N25: 9916305.125 | P25: 13895215.19
B26: March | D26: ='5. Historical Wholesale'!D26 -> 3462429 | E26: 6.5178 | F26: 22567419.74 | H26: ='5. Historical Wholesale'!H26 -> 3674401 | I26: 1.0506 | J26: 3860325.691 | L26: ='5. Historical Wholesale'!L26 -> 2724825 | M26: 3.5394 | N26: 9644245.605 | P26: 13504571.3
B27: April | D27: ='5. Historical Wholesale'!D27 -> 3340986 | E27: 6.5178 | F27: 21775878.55 | H27: ='5. Historical Wholesale'!H27 -> 3684114.59 | I27: 1.0506 | J27: 3870530.788 | L27: ='5. Historical Wholesale'!L27 -> 2719968.799 | M27: 3.5394 | N27: 9627057.569 | P27: 13497588.36
B28: May | D28: ='5. Historical Wholesale'!D28 -> 3392475 | E28: 6.5178 | F28: 22111473.55 | H28: ='5. Historical Wholesale'!H28 -> 3543073 | I28: 1.0506 | J28: 3722352.494 | L28: ='5. Historical Wholesale'!L28 -> 2564560 | M28: 3.5394 | N28: 9077003.664 | P28: 12799356.16
B29: June | D29: ='5. Historical Wholesale'!D29 -> 5276744 | E29: 6.5178 | F29: 34392762.04 | H29: ='5. Historical Wholesale'!H29 -> 5365102 | I29: 1.0506 | J29: 5636576.161 | L29: ='5. Historical Wholesale'!L29 -> 3838850 | M29: 3.5394 | N29: 13587225.69 | P29: 19223801.85
B30: July | D30: ='5. Historical Wholesale'!D30 -> 5056272 | E30: 6.5178 | F30: 32955769.64 | H30: ='5. Historical Wholesale'!H30 -> 5219584 | I30: 1.0506 | J30: 5483694.95 | L30: ='5. Historical Wholesale'!L30 -> 3771381 | M30: 3.5394 | N30: 13348425.91 | P30: 18832120.86
B31: August | D31: ='5. Historical Wholesale'!D31 -> 4921869 | E31: 6.5178 | F31: 32079757.77 | H31: ='5. Historical Wholesale'!H31 -> 5152628 | I31: 1.0506 | J31: 5413350.977 | L31: ='5. Historical Wholesale'!L31 -> 3735622 | M31: 3.5394 | N31: 13221860.51 | P31: 18635211.48
B32: September | D32: ='5. Historical Wholesale'!D32 -> 3882484 | E32: 6.5178 | F32: 25305254.22 | H32: ='5. Historical Wholesale'!H32 -> 3968733 | I32: 1.0506 | J32: 4169550.89 | L32: ='5. Historical Wholesale'!L32 -> 2914061 | M32: 3.5394 | N32: 10314027.5 | P32: 14483578.39
B33: October | D33: ='5. Historical Wholesale'!D33 -> 3846211 | E33: 6.5178 | F33: 25068834.06 | H33: ='5. Historical Wholesale'!H33 -> 3965204 | I33: 1.0506 | J33: 4165843.322 | L33: ='5. Historical Wholesale'!L33 -> 2927549 | M33: 3.5394 | N33: 10361766.93 | P33: 14527610.25
B34: November | D34: ='5. Historical Wholesale'!D34 -> 3507961 | E34: 6.5178 | F34: 22864188.21 | H34: ='5. Historical Wholesale'!H34 -> 3683552 | I34: 1.0506 | J34: 3869939.731 | L34: ='5. Historical Wholesale'!L34 -> 2704557 | M34: 3.5394 | N34: 9572509.046 | P34: 13442448.78
B35: December | D35: ='5. Historical Wholesale'!D35 -> 3640729 | E35: 6.5178 | F35: 23729543.48 | H35: ='5. Historical Wholesale'!H35 -> 3904280 | I35: 1.0506 | J35: 4101836.568 | L35: ='5. Historical Wholesale'!L35 -> 2869124 | M35: 3.5394 | N35: 10154977.49 | P35: 14256814.05
B37: Total | D37: =SUM(D24:D35) -> 47734303 | E37: =IF(D37<>0,F37/D37,0) -> 6.5178 | F37: =SUM(F24:F35) -> 311122640.1 | H37: =SUM(H24:H35) -> 49837701.59 | I37: =IF(H37<>0,J37/H37,0) -> 1.0506 | J37: =SUM(J24:J35) -> 52359489.29 | L37: =SUM(L24:L35) -> 36435355.8 | M37: =IF(L37<>0,N37/L37,0) -> 3.5394 | N37: =SUM(N24:N35) -> 128959298.3 | P37: =SUM(P24:P35) -> 181318787.6
B39: Hydro One | D39: Network | H39: Line Connection | L39: Transformation Connection | P39: Total Connection
B41: Month | D41: Units Billed | E41: Rate | F41: Amount | H41: Units Billed | I41: Rate | J41: Amount | L41: Units Billed | M41: Rate | N41: Amount | P41: Amount
B43: January | D43: ='5. Historical Wholesale'!D43 -> 453788.0905 | E43: ='4. UTRs and Sub-Transmission'!L35 -> 5.580216 | F43: =D43*E43 -> 2532235.563 | H43: ='5. Historical Wholesale'!H43 -> 455387.4352 | I43: ='4. UTRs and Sub-Transmission'!L37 -> 0.719508 | J43: =H43*I43 -> 327654.9028 | L43: ='5. Historical Wholesale'!L43 -> 482707.7752 | M43: ='4. UTRs and Sub-Transmission'!L39 -> 3.647928 | N43: =L43*M43 -> 1760883.209 | P43: =J43+N43 -> 2088538.112
B44: February | D44: ='5. Historical Wholesale'!D44 -> 449162.6004 | E44: =E43 -> 5.580216 | F44: 2506424.33 | H44: ='5. Historical Wholesale'!H44 -> 424662.4113 | I44: =I43 -> 0.719508 | J44: 305548.0022 | L44: ='5. Historical Wholesale'!L44 -> 452221.4372 | M44: =M43 -> 3.647928 | N44: 1649671.243 | P44: 1955219.245
B45: March | D45: ='5. Historical Wholesale'!D45 -> 441400.26 | E45: 5.580216 | F45: 2463108.793 | H45: ='5. Historical Wholesale'!H45 -> 436806.2316 | I45: 0.719508 | J45: 314285.5781 | L45: ='5. Historical Wholesale'!L45 -> 463508.3616 | M45: 3.647928 | N45: 1690845.131 | P45: 2005130.709
B46: April | D46: ='5. Historical Wholesale'!D46 -> 440533.56 | E46: 5.580216 | F46: 2458272.42 | H46: ='5. Historical Wholesale'!H46 -> 417235.5457 | I46: 0.719508 | J46: 300204.3131 | L46: ='5. Historical Wholesale'!L46 -> 442341.9057 | M46: 3.647928 | N46: 1613631.424 | P46: 1913835.737
B47: May | D47: ='5. Historical Wholesale'!D47 -> 437765.53 | E47: 5.580216 | F47: 2442826.215 | H47: ='5. Historical Wholesale'!H47 -> 414501.4032 | I47: 0.719508 | J47: 298237.0756 | L47: ='5. Historical Wholesale'!L47 -> 439509.4032 | M47: 3.647928 | N47: 1603298.658 | P47: 1901535.734
B48: June | D48: ='5. Historical Wholesale'!D48 -> 629252.91 | E48: 5.580216 | F48: 3511367.156 | H48: ='5. Historical Wholesale'!H48 -> 641477.225 | I48: 0.719508 | J48: 461547.9952 | L48: ='5. Historical Wholesale'!L48 -> 669509.535 | M48: 3.647928 | N48: 2442322.579 | P48: 2903870.574
B49: July | D49: ='5. Historical Wholesale'!D49 -> 598575.14 | E49: 5.580216 | F49: 3340178.573 | H49: ='5. Historical Wholesale'!H49 -> 594461.1386 | I49: 0.719508 | J49: 427719.5449 | L49: ='5. Historical Wholesale'!L49 -> 623050.0386 | M49: 3.647928 | N49: 2272841.681 | P49: 2700561.226
B50: August | D50: ='5. Historical Wholesale'!D50 -> 569551.38 | E50: 5.580216 | F50: 3178219.723 | H50: ='5. Historical Wholesale'!H50 -> 582314.349 | I50: 0.719508 | J50: 418979.8326 | L50: ='5. Historical Wholesale'!L50 -> 609497.6876 | M50: 3.647928 | N50: 2223403.681 | P50: 2642383.513
B51: September | D51: ='5. Historical Wholesale'!D51 -> 482532.6 | E51: 5.580216 | F51: 2692636.135 | H51: ='5. Historical Wholesale'!H51 -> 461104.5544 | I51: 0.719508 | J51: 331768.4157 | L51: ='5. Historical Wholesale'!L51 -> 486482.7743 | M51: 3.647928 | N51: 1774654.134 | P51: 2106422.55
B52: October | D52: ='5. Historical Wholesale'!D52 -> 475908.07 | E52: 5.580216 | F52: 2655669.827 | H52: ='5. Historical Wholesale'!H52 -> 459258.7799 | I52: 0.719508 | J52: 330440.3662 | L52: ='5. Historical Wholesale'!L52 -> 484377.7249 | M52: 3.647928 | N52: 1766975.065 | P52: 2097415.431
B53: November | D53: ='5. Historical Wholesale'!D53 -> 426770.03 | E53: 5.580216 | F53: 2381468.95 | H53: ='5. Historical Wholesale'!H53 -> 422160.8197 | I53: 0.719508 | J53: 303748.0871 | L53: ='5. Historical Wholesale'!L53 -> 447779.8429 | M53: 3.647928 | N53: 1633468.627 | P53: 1937216.714
B54: December | D54: ='5. Historical Wholesale'!D54 -> 463291.73 | E54: 5.580216 | F54: 2585267.924 | H54: ='5. Historical Wholesale'!H54 -> 458185.7843 | I54: 0.719508 | J54: 329668.3373 | L54: ='5. Historical Wholesale'!L54 -> 492759.1443 | M54: 3.647928 | N54: 1797549.88 | P54: 2127218.217
B56: Total | D56: =SUM(D43:D54) -> 5868531.901 | E56: =IF(D56<>0,F56/D56,0) -> 5.580216 | F56: =SUM(F43:F54) -> 32747675.61 | H56: =SUM(H43:H54) -> 5767555.678 | I56: =IF(H56<>0,J56/H56,0) -> 0.719508 | J56: =SUM(J43:J54) -> 4149802.451 | L56: =SUM(L43:L54) -> 6093745.631 | M56: =IF(L56<>0,N56/L56,0) -> 3.647928 | N56: =SUM(N43:N54) -> 22229545.31 | P56: =SUM(P43:P54) -> 26379347.76
B58: ='5. Historical Wholesale'!B58 -> Add Extra Host Here (I) | D58: Network | H58: Line Connection | L58: Transformation Connection | P58: Total Connection
B60: Month | D60: Units Billed | E60: Rate | F60: Amount | H60: Units Billed | I60: Rate | J60: Amount | L60: Units Billed | M60: Rate | N60: Amount | P60: Amount
B62: January | D62: ='5. Historical Wholesale'!D62 -> 0 | E62: ='4. UTRs and Sub-Transmission'!L52 -> 0 | F62: =D62*E62 -> 0 | H62: ='5. Historical Wholesale'!H62 -> 0 | I62: ='4. UTRs and Sub-Transmission'!L54 -> 0 | J62: =H62*I62 -> 0 | L62: ='5. Historical Wholesale'!L62 -> 0 | M62: ='4. UTRs and Sub-Transmission'!L56 -> 0 | N62: =L62*M62 -> 0 | P62: =J62+N62 -> 0
B63: February | D63: ='5. Historical Wholesale'!D63 -> 0 | E63: =E62 -> 0 | F63: 0 | H63: ='5. Historical Wholesale'!H63 -> 0 | I63: =I62 -> 0 | J63: 0 | L63: ='5. Historical Wholesale'!L63 -> 0 | M63: =M62 -> 0 | N63: 0 | P63: 0
B64: March | D64: ='5. Historical Wholesale'!D64 -> 0 | E64: 0 | F64: 0 | H64: ='5. Historical Wholesale'!H64 -> 0 | I64: 0 | J64: 0 | L64: ='5. Historical Wholesale'!L64 -> 0 | M64: 0 | N64: 0 | P64: 0
B65: April | D65: ='5. Historical Wholesale'!D65 -> 0 | E65: 0 | F65: 0 | H65: ='5. Historical Wholesale'!H65 -> 0 | I65: 0 | J65: 0 | L65: ='5. Historical Wholesale'!L65 -> 0 | M65: 0 | N65: 0 | P65: 0
B66: May | D66: ='5. Historical Wholesale'!D66 -> 0 | E66: 0 | F66: 0 | H66: ='5. Historical Wholesale'!H66 -> 0 | I66: 0 | J66: 0 | L66: ='5. Historical Wholesale'!L66 -> 0 | M66: 0 | N66: 0 | P66: 0
B67: June | D67: ='5. Historical Wholesale'!D67 -> 0 | E67: 0 | F67: 0 | H67: ='5. Historical Wholesale'!H67 -> 0 | I67: 0 | J67: 0 | L67: ='5. Historical Wholesale'!L67 -> 0 | M67: 0 | N67: 0 | P67: 0
B68: July | D68: ='5. Historical Wholesale'!D68 -> 0 | E68: 0 | F68: 0 | H68: ='5. Historical Wholesale'!H68 -> 0 | I68: 0 | J68: 0 | L68: ='5. Historical Wholesale'!L68 -> 0 | M68: 0 | N68: 0 | P68: 0
B69: August | D69: ='5. Historical Wholesale'!D69 -> 0 | E69: 0 | F69: 0 | H69: ='5. Historical Wholesale'!H69 -> 0 | I69: 0 | J69: 0 | L69: ='5. Historical Wholesale'!L69 -> 0 | M69: 0 | N69: 0 | P69: 0
B70: September | D70: ='5. Historical Wholesale'!D70 -> 0 | E70: 0 | F70: 0 | H70: ='5. Historical Wholesale'!H70 -> 0 | I70: 0 | J70: 0 | L70: ='5. Historical Wholesale'!L70 -> 0 | M70: 0 | N70: 0 | P70: 0
B71: October | D71: ='5. Historical Wholesale'!D71 -> 0 | E71: 0 | F71: 0 | H71: ='5. Historical Wholesale'!H71 -> 0 | I71: 0 | J71: 0 | L71: ='5. Historical Wholesale'!L71 -> 0 | M71: 0 | N71: 0 | P71: 0
B72: November | D72: ='5. Historical Wholesale'!D72 -> 0 | E72: 0 | F72: 0 | H72: ='5. Historical Wholesale'!H72 -> 0 | I72: 0 | J72: 0 | L72: ='5. Historical Wholesale'!L72 -> 0 | M72: 0 | N72: 0 | P72: 0
B73: December | D73: ='5. Historical Wholesale'!D73 -> 0 | E73: 0 | F73: 0 | H73: ='5. Historical Wholesale'!H73 -> 0 | I73: 0 | J73: 0 | L73: ='5. Historical Wholesale'!L73 -> 0 | M73: 0 | N73: 0 | P73: 0
B75: Total | D75: =SUM(D62:D73) -> 0 | E75: =IF(D75<>0,F75/D75,0) -> 0 | F75: =SUM(F62:F73) -> 0 | H75: =SUM(H62:H73) -> 0 | I75: =IF(H75<>0,J75/H75,0) -> 0 | J75: =SUM(J62:J73) -> 0 | L75: =SUM(L62:L73) -> 0 | M75: =IF(L75<>0,N75/L75,0) -> 0 | N75: =SUM(N62:N73) -> 0 | P75: =SUM(P62:P73) -> 0
B77: ='5. Historical Wholesale'!B77 -> Add Extra Host Here (II) | D77: Network | H77: Line Connection | L77: Transformation Connection | P77: Total Connection
B79: Month | D79: Units Billed | E79: Rate | F79: Amount | H79: Units Billed | I79: Rate | J79: Amount | L79: Units Billed | M79: Rate | N79: Amount | P79: Amount
B81: January | D81: ='5. Historical Wholesale'!D81 -> 0 | E81: ='4. UTRs and Sub-Transmission'!L67 -> 0 | F81: =D81*E81 -> 0 | H81: ='5. Historical Wholesale'!H81 -> 0 | I81: ='4. UTRs and Sub-Transmission'!L69 -> 0 | J81: =H81*I81 -> 0 | L81: ='5. Historical Wholesale'!L81 -> 0 | M81: ='4. UTRs and Sub-Transmission'!L71 -> 0 | N81: =L81*M81 -> 0 | P81: =J81+N81 -> 0
B82: February | D82: ='5. Historical Wholesale'!D82 -> 0 | E82: =E81 -> 0 | F82: 0 | H82: ='5. Historical Wholesale'!H82 -> 0 | I82: =I81 -> 0 | J82: 0 | L82: ='5. Historical Wholesale'!L82 -> 0 | M82: =M81 -> 0 | N82: 0 | P82: 0
B83: March | D83: ='5. Historical Wholesale'!D83 -> 0 | E83: 0 | F83: 0 | H83: ='5. Historical Wholesale'!H83 -> 0 | I83: 0 | J83: 0 | L83: ='5. Historical Wholesale'!L83 -> 0 | M83: 0 | N83: 0 | P83: 0
B84: April | D84: ='5. Historical Wholesale'!D84 -> 0 | E84: 0 | F84: 0 | H84: ='5. Historical Wholesale'!H84 -> 0 | I84: 0 | J84: 0 | L84: ='5. Historical Wholesale'!L84 -> 0 | M84: 0 | N84: 0 | P84: 0
B85: May | D85: ='5. Historical Wholesale'!D85 -> 0 | E85: 0 | F85: 0 | H85: ='5. Historical Wholesale'!H85 -> 0 | I85: 0 | J85: 0 | L85: ='5. Historical Wholesale'!L85 -> 0 | M85: 0 | N85: 0 | P85: 0
B86: June | D86: ='5. Historical Wholesale'!D86 -> 0 | E86: 0 | F86: 0 | H86: ='5. Historical Wholesale'!H86 -> 0 | I86: 0 | J86: 0 | L86: ='5. Historical Wholesale'!L86 -> 0 | M86: 0 | N86: 0 | P86: 0
B87: July | D87: ='5. Historical Wholesale'!D87 -> 0 | E87: 0 | F87: 0 | H87: ='5. Historical Wholesale'!H87 -> 0 | I87: 0 | J87: 0 | L87: ='5. Historical Wholesale'!L87 -> 0 | M87: 0 | N87: 0 | P87: 0
B88: August | D88: ='5. Historical Wholesale'!D88 -> 0 | E88: 0 | F88: 0 | H88: ='5. Historical Wholesale'!H88 -> 0 | I88: 0 | J88: 0 | L88: ='5. Historical Wholesale'!L88 -> 0 | M88: 0 | N88: 0 | P88: 0
B89: September | D89: ='5. Historical Wholesale'!D89 -> 0 | E89: 0 | F89: 0 | H89: ='5. Historical Wholesale'!H89 -> 0 | I89: 0 | J89: 0 | L89: ='5. Historical Wholesale'!L89 -> 0 | M89: 0 | N89: 0 | P89: 0
B90: October | D90: ='5. Historical Wholesale'!D90 -> 0 | E90: 0 | F90: 0 | H90: ='5. Historical Wholesale'!H90 -> 0 | I90: 0 | J90: 0 | L90: ='5. Historical Wholesale'!L90 -> 0 | M90: 0 | N90: 0 | P90: 0
B91: November | D91: ='5. Historical Wholesale'!D91 -> 0 | E91: 0 | F91: 0 | H91: ='5. Historical Wholesale'!H91 -> 0 | I91: 0 | J91: 0 | L91: ='5. Historical Wholesale'!L91 -> 0 | M91: 0 | N91: 0 | P91: 0
B92: December | D92: ='5. Historical Wholesale'!D92 -> 0 | E92: 0 | F92: 0 | H92: ='5. Historical Wholesale'!H92 -> 0 | I92: 0 | J92: 0 | L92: ='5. Historical Wholesale'!L92 -> 0 | M92: 0 | N92: 0 | P92: 0
B94: Total | D94: =SUM(D81:D92) -> 0 | E94: =IF(D94<>0,F94/D94,0) -> 0 | F94: =SUM(F81:F92) -> 0 | H94: =SUM(H81:H92) -> 0 | I94: =IF(H94<>0,J94/H94,0) -> 0 | J94: =SUM(J81:J92) -> 0 | L94: =SUM(L81:L92) -> 0 | M94: =IF(L94<>0,N94/L94,0) -> 0 | N94: =SUM(N81:N92) -> 0 | P94: =SUM(P81:P92) -> 0
B96: Total | D96: Network | H96: Line Connection | L96: Transformation Connection | P96: Total Connection
B98: Month | D98: Units Billed | E98: Rate | F98: Amount | H98: Units Billed | I98: Rate | J98: Amount | L98: Units Billed | M98: Rate | N98: Amount | P98: Amount
B100: January | D100: =D24+D43+D62+D81 -> 4220520.091 | E100: =IF(D100<>0,F100/D100,0) -> 6.416991464 | F100: =F24+F43+F62+F81 -> 27083041.39 | H100: =H24+H43+H62+H81 -> 4345143.435 | I100: =IF(H100<>0,J100/H100,0) -> 1.015900309 | J100: =J24+J43+J62+J81 -> 4414232.556 | L100: =L24+L43+L62+L81 -> 3345874.775 | M100: =IF(L100<>0,N100/L100,0) -> 3.555057283 | N100: =N24+N43+N62+N81 -> 11894776.49 | P100: =J100+N100 -> 16309009.05
B101: February | D101: =D25+D44+D63+D82 -> 4088573.6 | E101: 6.414798878 | F101: 26227377.35 | H101: =H25+H44+H63+H82 -> 4211936.411 | I101: 1.017218127 | J101: =J25+J44+J63+J82 -> 4284458.067 | L101: =L25+L44+L63+L82 -> 3253912.437 | M101: 3.554482978 | N101: =N25+N44+N63+N82 -> 11565976.37 | P101: 15850434.43
B102: March | D102: 3903829.26 | E102: 6.41178875 | F102: 25030528.53 | H102: =H26+H45+H64+H83 -> 4111207.232 | I102: 1.015422243 | J102: =J26+J45+J64+J83 -> 4174611.269 | L102: =L26+L45+L64+L83 -> 3188333.362 | M102: 3.555177408 | N102: =N26+N45+N64+N83 -> 11335090.74 | P102: 15509702
B103: April | D103: 3781519.56 | E103: 6.408574803 | F103: 24234150.97 | H103: =H27+H46+H65+H84 -> 4101350.136 | I103: 1.016917591 | J103: =J27+J46+J65+J84 -> 4170735.101 | L103: =L27+L46+L65+L84 -> 3162310.705 | M103: 3.554580824 | N103: =N27+N46+N65+N84 -> 11240688.99 | P103: 15411424.09
B104: May | D104: 3830240.53 | E104: 6.410641728 | F104: 24554299.77 | H104: =H28+H47+H66+H85 -> 3957574.403 | I104: 1.015922674 | J104: =J28+J47+J66+J85 -> 4020589.569 | L104: =L28+L47+L66+L85 -> 3004069.403 | M104: 3.555278154 | N104: =N28+N47+N66+N85 -> 10680302.32 | P104: 14700891.89
B105: June | D105: 5905996.91 | E105: 6.417905356 | F105: 37904129.2 | H105: =H29+H48+H67+H86 -> 6006579.225 | I105: 1.015240776 | J105: =J29+J48+J67+J86 -> 6098124.156 | L105: =L29+L48+L67+L86 -> 4508359.535 | M105: 3.555516845 | N105: =N29+N48+N67+N86 -> 16029548.27 | P105: 22127672.43
B106: July | D106: 5654847.14 | E106: 6.418555147 | F106: 36295948.22 | H106: =H30+H49+H68+H87 -> 5814045.139 | I106: 1.016747265 | J106: =J30+J49+J68+J87 -> 5911414.495 | L106: =L30+L49+L68+L87 -> 4394431.039 | M106: 3.554787288 | N106: =N30+N49+N68+N87 -> 15621267.59 | P106: 21532682.09
B107: August | D107: 5491420.38 | E107: 6.420556987 | F107: 35257977.49 | H107: =H31+H50+H69+H88 -> 5734942.349 | I107: 1.016981594 | J107: =J31+J50+J69+J88 -> 5832330.809 | L107: =L31+L50+L69+L88 -> 4345119.688 | M107: 3.554623416 | N107: =N31+N50+N69+N88 -> 15445264.19 | P107: 21277595
B108: September | D108: 4365016.6 | E108: 6.414154382 | F108: 27997890.35 | H108: =H32+H51+H70+H89 -> 4429837.554 | I108: 1.016136427 | J108: =J32+J51+J70+J89 -> 4501319.306 | L108: =L32+L51+L70+L89 -> 3400543.774 | M108: 3.554926047 | N108: =N32+N51+N70+N89 -> 12088681.64 | P108: 16590000.94
B109: October | D109: 4322119.07 | E109: 6.414562726 | F109: 27724503.88 | H109: =H33+H52+H71+H90 -> 4424462.78 | I109: 1.016232685 | J109: =J33+J52+J71+J90 -> 4496283.689 | L109: =L33+L52+L71+L90 -> 3411926.725 | M109: 3.55480729 | N109: =N33+N52+N71+N90 -> 12128742 | P109: 16625025.68
B110: November | D110: 3934731.03 | E110: 6.41610747 | F110: 25245657.16 | H110: =H34+H53+H72+H91 -> 4105712.82 | I110: 1.016556199 | J110: =J34+J53+J72+J91 -> 4173687.818 | L110: =L34+L53+L72+L91 -> 3152336.843 | M110: 3.554816072 | N110: =N34+N53+N72+N91 -> 11205977.67 | P110: 15379665.49
B111: December | D111: 4104020.73 | E111: 6.411958694 | F111: 26314811.4 | H111: =H35+H54+H73+H92 -> 4362465.784 | I111: 1.015825711 | J111: =J35+J54+J73+J92 -> 4431504.905 | L111: =L35+L54+L73+L92 -> 3361883.144 | M111: 3.555307205 | N111: =N35+N54+N73+N92 -> 11952527.37 | P111: 16384032.27
B113: Total | D113: =SUM(D100:D111) -> 53602834.9 | E113: =IF(D113<>0,F113/D113,0) -> 6.415151668 | F113: =SUM(F100:F111) -> 343870315.7 | H113: =SUM(H100:H111) -> 55605257.27 | I113: =IF(H113<>0,J113/H113,0) -> 1.016258076 | J113: =SUM(J100:J111) -> 56509291.74 | L113: =SUM(L100:L111) -> 42529101.43 | M113: =IF(L113<>0,N113/L113,0) -> 3.554950341 | N113: =SUM(N100:N111) -> 151188843.6 | P113: =SUM(P100:P111) -> 207698135.4
N115: Low Voltage Switchgear Credit (if applicable) | P115: ='4. UTRs and Sub-Transmission'!L76 -> 0
N117: Total including deduction for Low Voltage Switchgear Credit | P117: =P113+P115 -> 207698135.4

Sheet 7. Forecast Wholesale - 28
B13: The purpose of this sheet is to calculate the expected billing when forecasted 2027 Uniform Transmission Rates and Hydro One Sub-transmission Rates are applied against historical 2025 transmission units.
B20: IESO | D20: Network | H20: Line Connection | L20: Transformation Connection | P20: Total Connection
B22: Month | D22: Units Billed | E22: Rate | F22: Amount | H22: Units Billed | I22: Rate | J22: Amount | L22: Units Billed | M22: Rate | N22: Amount | P22: Amount
B24: January | D24: ='5. Historical Wholesale'!D24 -> 3766732 | E24: ='4. UTRs and Sub-Transmission'!N22 -> 6.648156 | F24: =D24*E24 -> 25041821.95 | H24: ='5. Historical Wholesale'!H24 -> 3889756 | I24: ='4. UTRs and Sub-Transmission'!N24 -> 1.071612 | J24: =H24*I24 -> 4168309.207 | L24: ='5. Historical Wholesale'!L24 -> 2863167 | M24: ='4. UTRs and Sub-Transmission'!N26 -> 3.610188 | N24: =L24*M24 -> 10336571.15 | P24: =J24+N24 -> 14504880.35
B25: February | D25: ='5. Historical Wholesale'!D25 -> 3639411 | E25: =E24 -> 6.648156 | F25: 24195372.08 | H25: ='5. Historical Wholesale'!H25 -> 3787274 | I25: =I24 -> 1.071612 | J25: 4058488.266 | L25: ='5. Historical Wholesale'!L25 -> 2801691 | M25: =M24 -> 3.610188 | N25: 10114631.23 | P25: 14173119.49
B26: March | D26: ='5. Historical Wholesale'!D26 -> 3462429 | E26: 6.648156 | F26: 23018768.13 | H26: ='5. Historical Wholesale'!H26 -> 3674401 | I26: 1.071612 | J26: 3937532.204 | L26: ='5. Historical Wholesale'!L26 -> 2724825 | M26: 3.610188 | N26: 9837130.517 | P26: 13774662.72
B27: April | D27: ='5. Historical Wholesale'!D27 -> 3340986 | E27: 6.648156 | F27: 22211396.12 | H27: ='5. Historical Wholesale'!H27 -> 3684114.59 | I27: 1.071612 | J27: 3947941.404 | L27: ='5. Historical Wholesale'!L27 -> 2719968.799 | M27: 3.610188 | N27: 9819598.72 | P27: 13767540.12
B28: May | D28: ='5. Historical Wholesale'!D28 -> 3392475 | E28: 6.648156 | F28: 22553703.03 | H28: ='5. Historical Wholesale'!H28 -> 3543073 | I28: 1.071612 | J28: 3796799.544 | L28: ='5. Historical Wholesale'!L28 -> 2564560 | M28: 3.610188 | N28: 9258543.737 | P28: 13055343.28
B29: June | D29: ='5. Historical Wholesale'!D29 -> 5276744 | E29: 6.648156 | F29: 35080617.28 | H29: ='5. Historical Wholesale'!H29 -> 5365102 | I29: 1.071612 | J29: 5749307.684 | L29: ='5. Historical Wholesale'!L29 -> 3838850 | M29: 3.610188 | N29: 13858970.2 | P29: 19608277.89
B30: July | D30: ='5. Historical Wholesale'!D30 -> 5056272 | E30: 6.648156 | F30: 33614885.03 | H30: ='5. Historical Wholesale'!H30 -> 5219584 | I30: 1.071612 | J30: 5593368.849 | L30: ='5. Historical Wholesale'!L30 -> 3771381 | M30: 3.610188 | N30: 13615394.43 | P30: 19208763.28
B31: August | D31: ='5. Historical Wholesale'!D31 -> 4921869 | E31: 6.648156 | F31: 32721352.92 | H31: ='5. Historical Wholesale'!H31 -> 5152628 | I31: 1.071612 | J31: 5521617.996 | L31: ='5. Historical Wholesale'!L31 -> 3735622 | M31: 3.610188 | N31: 13486297.72 | P31: 19007915.71
B32: September | D32: ='5. Historical Wholesale'!D32 -> 3882484 | E32: 6.648156 | F32: 25811359.3 | H32: ='5. Historical Wholesale'!H32 -> 3968733 | I32: 1.071612 | J32: 4252941.908 | L32: ='5. Historical Wholesale'!L32 -> 2914061 | M32: 3.610188 | N32: 10520308.05 | P32: 14773249.96
B33: October | D33: ='5. Historical Wholesale'!D33 -> 3846211 | E33: 6.648156 | F33: 25570210.74 | H33: ='5. Historical Wholesale'!H33 -> 3965204 | I33: 1.071612 | J33: 4249160.189 | L33: ='5. Historical Wholesale'!L33 -> 2927549 | M33: 3.610188 | N33: 10569002.27 | P33: 14818162.46
B34: November | D34: ='5. Historical Wholesale'!D34 -> 3507961 | E34: 6.648156 | F34: 23321471.97 | H34: ='5. Historical Wholesale'!H34 -> 3683552 | I34: 1.071612 | J34: 3947338.526 | L34: ='5. Historical Wholesale'!L34 -> 2704557 | M34: 3.610188 | N34: 9763959.227 | P34: 13711297.75
B35: December | D35: ='5. Historical Wholesale'!D35 -> 3640729 | E35: 6.648156 | F35: 24204134.35 | H35: ='5. Historical Wholesale'!H35 -> 3904280 | I35: 1.071612 | J35: 4183873.299 | L35: ='5. Historical Wholesale'!L35 -> 2869124 | M35: 3.610188 | N35: 10358077.04 | P35: 14541950.33
B37: Total | D37: =SUM(D24:D35) -> 47734303 | E37: =IF(D37<>0,F37/D37,0) -> 6.648156 | F37: =SUM(F24:F35) -> 317345092.9 | H37: =SUM(H24:H35) -> 49837701.59 | I37: =IF(H37<>0,J37/H37,0) -> 1.071612 | J37: =SUM(J24:J35) -> 53406679.08 | L37: =SUM(L24:L35) -> 36435355.8 | M37: =IF(L37<>0,N37/L37,0) -> 3.610188 | N37: =SUM(N24:N35) -> 131538484.3 | P37: =SUM(P24:P35) -> 184945163.4
B39: Hydro One | D39: Network | H39: Line Connection | L39: Transformation Connection | P39: Total Connection
B41: Month | D41: Units Billed | E41: Rate | F41: Amount | H41: Units Billed | I41: Rate | J41: Amount | L41: Units Billed | M41: Rate | N41: Amount | P41: Amount
B43: January | D43: ='5. Historical Wholesale'!D43 -> 453788.0905 | E43: ='4. UTRs and Sub-Transmission'!N35 -> 5.69182032 | F43: =D43*E43 -> 2582880.275 | H43: ='5. Historical Wholesale'!H43 -> 455387.4352 | I43: ='4. UTRs and Sub-Transmission'!N37 -> 0.73389816 | J43: =H43*I43 -> 334208.0008 | L43: ='5. Historical Wholesale'!L43 -> 482707.7752 | M43: ='4. UTRs and Sub-Transmission'!N39 -> 3.72088656 | N43: =L43*M43 -> 1796100.873 | P43: =J43+N43 -> 2130308.874
B44: February | D44: ='5. Historical Wholesale'!D44 -> 449162.6004 | E44: =E43 -> 5.69182032 | F44: 2556552.816 | H44: ='5. Historical Wholesale'!H44 -> 424662.4113 | I44: =I43 -> 0.73389816 | J44: 311658.9623 | L44: ='5. Historical Wholesale'!L44 -> 452221.4372 | M44: =M43 -> 3.72088656 | N44: 1682664.668 | P44: 1994323.63
B45: March | D45: ='5. Historical Wholesale'!D45 -> 441400.26 | E45: 5.69182032 | F45: 2512370.969 | H45: ='5. Historical Wholesale'!H45 -> 436806.2316 | I45: 0.73389816 | J45: 320571.2897 | L45: ='5. Historical Wholesale'!L45 -> 463508.3616 | M45: 3.72088656 | N45: 1724662.033 | P45: 2045233.323
B46: April | D46: ='5. Historical Wholesale'!D46 -> 440533.56 | E46: 5.69182032 | F46: 2507437.868 | H46: ='5. Historical Wholesale'!H46 -> 417235.5457 | I46: 0.73389816 | J46: 306208.3993 | L46: ='5. Historical Wholesale'!L46 -> 442341.9057 | M46: 3.72088656 | N46: 1645904.052 | P46: 1952112.451
B47: May | D47: ='5. Historical Wholesale'!D47 -> 437765.53 | E47: 5.69182032 | F47: 2491682.739 | H47: ='5. Historical Wholesale'!H47 -> 414501.4032 | I47: 0.73389816 | J47: 304201.8171 | L47: ='5. Historical Wholesale'!L47 -> 439509.4032 | M47: 3.72088656 | N47: 1635364.631 | P47: 1939566.448
B48: June | D48: ='5. Historical Wholesale'!D48 -> 629252.91 | E48: 5.69182032 | F48: 3581594.5 | H48: ='5. Historical Wholesale'!H48 -> 641477.225 | I48: 0.73389816 | J48: 470778.9551 | L48: ='5. Historical Wholesale'!L48 -> 669509.535 | M48: 3.72088656 | N48: 2491169.031 | P48: 2961947.986
B49: July | D49: ='5. Historical Wholesale'!D49 -> 598575.14 | E49: 5.69182032 | F49: 3406982.145 | H49: ='5. Historical Wholesale'!H49 -> 594461.1386 | I49: 0.73389816 | J49: 436273.9358 | L49: ='5. Historical Wholesale'!L49 -> 623050.0386 | M49: 3.72088656 | N49: 2318298.515 | P49: 2754572.451
B50: August | D50: ='5. Historical Wholesale'!D50 -> 569551.38 | E50: 5.69182032 | F50: 3241784.118 | H50: ='5. Historical Wholesale'!H50 -> 582314.349 | I50: 0.73389816 | J50: 427359.4293 | L50: ='5. Historical Wholesale'!L50 -> 609497.6876 | M50: 3.72088656 | N50: 2267871.754 | P50: 2695231.184
B51: September | D51: ='5. Historical Wholesale'!D51 -> 482532.6 | E51: 5.69182032 | F51: 2746488.858 | H51: ='5. Historical Wholesale'!H51 -> 461104.5544 | I51: 0.73389816 | J51: 338403.784 | L51: ='5. Historical Wholesale'!L51 -> 486482.7743 | M51: 3.72088656 | N51: 1810147.217 | P51: 2148551.001
B52: October | D52: ='5. Historical Wholesale'!D52 -> 475908.07 | E52: 5.69182032 | F52: 2708783.223 | H52: ='5. Historical Wholesale'!H52 -> 459258.7799 | I52: 0.73389816 | J52: 337049.1735 | L52: ='5. Historical Wholesale'!L52 -> 484377.7249 | M52: 3.72088656 | N52: 1802314.567 | P52: 2139363.74
B53: November | D53: ='5. Historical Wholesale'!D53 -> 426770.03 | E53: 5.69182032 | F53: 2429098.329 | H53: ='5. Historical Wholesale'!H53 -> 422160.8197 | I53: 0.73389816 | J53: 309823.0488 | L53: ='5. Historical Wholesale'!L53 -> 447779.8429 | M53: 3.72088656 | N53: 1666137.999 | P53: 1975961.048
B54: December | D54: ='5. Historical Wholesale'!D54 -> 463291.73 | E54: 5.69182032 | F54: 2636973.283 | H54: ='5. Historical Wholesale'!H54 -> 458185.7843 | I54: 0.73389816 | J54: 336261.704 | L54: ='5. Historical Wholesale'!L54 -> 492759.1443 | M54: 3.72088656 | N54: 1833500.877 | P54: 2169762.581
B56: Total | D56: =SUM(D43:D54) -> 5868531.901 | E56: =IF(D56<>0,F56/D56,0) -> 5.69182032 | F56: =SUM(F43:F54) -> 33402629.12 | H56: =SUM(H43:H54) -> 5767555.678 | I56: =IF(H56<>0,J56/H56,0) -> 0.73389816 | J56: =SUM(J43:J54) -> 4232798.5 | L56: =SUM(L43:L54) -> 6093745.631 | M56: =IF(L56<>0,N56/L56,0) -> 3.72088656 | N56: =SUM(N43:N54) -> 22674136.22 | P56: =SUM(P43:P54) -> 26906934.72
B58: ='5. Historical Wholesale'!B58 -> Add Extra Host Here (I) | D58: Network | H58: Line Connection | L58: Transformation Connection | P58: Total Connection
B60: Month | D60: Units Billed | E60: Rate | F60: Amount | H60: Units Billed | I60: Rate | J60: Amount | L60: Units Billed | M60: Rate | N60: Amount | P60: Amount
B62: January | D62: ='5. Historical Wholesale'!D62 -> 0 | E62: ='4. UTRs and Sub-Transmission'!L52 -> 0 | F62: =D62*E62 -> 0 | H62: ='5. Historical Wholesale'!H62 -> 0 | I62: ='4. UTRs and Sub-Transmission'!L54 -> 0 | J62: =H62*I62 -> 0 | L62: ='5. Historical Wholesale'!L62 -> 0 | M62: ='4. UTRs and Sub-Transmission'!L56 -> 0 | N62: =L62*M62 -> 0 | P62: =J62+N62 -> 0
B63: February | D63: ='5. Historical Wholesale'!D63 -> 0 | E63: =E62 -> 0 | F63: 0 | H63: ='5. Historical Wholesale'!H63 -> 0 | I63: =I62 -> 0 | J63: 0 | L63: ='5. Historical Wholesale'!L63 -> 0 | M63: =M62 -> 0 | N63: 0 | P63: 0
B64: March | D64: ='5. Historical Wholesale'!D64 -> 0 | E64: 0 | F64: 0 | H64: ='5. Historical Wholesale'!H64 -> 0 | I64: 0 | J64: 0 | L64: ='5. Historical Wholesale'!L64 -> 0 | M64: 0 | N64: 0 | P64: 0
B65: April | D65: ='5. Historical Wholesale'!D65 -> 0 | E65: 0 | F65: 0 | H65: ='5. Historical Wholesale'!H65 -> 0 | I65: 0 | J65: 0 | L65: ='5. Historical Wholesale'!L65 -> 0 | M65: 0 | N65: 0 | P65: 0
B66: May | D66: ='5. Historical Wholesale'!D66 -> 0 | E66: 0 | F66: 0 | H66: ='5. Historical Wholesale'!H66 -> 0 | I66: 0 | J66: 0 | L66: ='5. Historical Wholesale'!L66 -> 0 | M66: 0 | N66: 0 | P66: 0
B67: June | D67: ='5. Historical Wholesale'!D67 -> 0 | E67: 0 | F67: 0 | H67: ='5. Historical Wholesale'!H67 -> 0 | I67: 0 | J67: 0 | L67: ='5. Historical Wholesale'!L67 -> 0 | M67: 0 | N67: 0 | P67: 0
B68: July | D68: ='5. Historical Wholesale'!D68 -> 0 | E68: 0 | F68: 0 | H68: ='5. Historical Wholesale'!H68 -> 0 | I68: 0 | J68: 0 | L68: ='5. Historical Wholesale'!L68 -> 0 | M68: 0 | N68: 0 | P68: 0
B69: August | D69: ='5. Historical Wholesale'!D69 -> 0 | E69: 0 | F69: 0 | H69: ='5. Historical Wholesale'!H69 -> 0 | I69: 0 | J69: 0 | L69: ='5. Historical Wholesale'!L69 -> 0 | M69: 0 | N69: 0 | P69: 0
B70: September | D70: ='5. Historical Wholesale'!D70 -> 0 | E70: 0 | F70: 0 | H70: ='5. Historical Wholesale'!H70 -> 0 | I70: 0 | J70: 0 | L70: ='5. Historical Wholesale'!L70 -> 0 | M70: 0 | N70: 0 | P70: 0
B71: October | D71: ='5. Historical Wholesale'!D71 -> 0 | E71: 0 | F71: 0 | H71: ='5. Historical Wholesale'!H71 -> 0 | I71: 0 | J71: 0 | L71: ='5. Historical Wholesale'!L71 -> 0 | M71: 0 | N71: 0 | P71: 0
B72: November | D72: ='5. Historical Wholesale'!D72 -> 0 | E72: 0 | F72: 0 | H72: ='5. Historical Wholesale'!H72 -> 0 | I72: 0 | J72: 0 | L72: ='5. Historical Wholesale'!L72 -> 0 | M72: 0 | N72: 0 | P72: 0
B73: December | D73: ='5. Historical Wholesale'!D73 -> 0 | E73: 0 | F73: 0 | H73: ='5. Historical Wholesale'!H73 -> 0 | I73: 0 | J73: 0 | L73: ='5. Historical Wholesale'!L73 -> 0 | M73: 0 | N73: 0 | P73: 0
B75: Total | D75: =SUM(D62:D73) -> 0 | E75: =IF(D75<>0,F75/D75,0) -> 0 | F75: =SUM(F62:F73) -> 0 | H75: =SUM(H62:H73) -> 0 | I75: =IF(H75<>0,J75/H75,0) -> 0 | J75: =SUM(J62:J73) -> 0 | L75: =SUM(L62:L73) -> 0 | M75: =IF(L75<>0,N75/L75,0) -> 0 | N75: =SUM(N62:N73) -> 0 | P75: =SUM(P62:P73) -> 0
B77: ='5. Historical Wholesale'!B77 -> Add Extra Host Here (II) | D77: Network | H77: Line Connection | L77: Transformation Connection | P77: Total Connection
B79: Month | D79: Units Billed | E79: Rate | F79: Amount | H79: Units Billed | I79: Rate | J79: Amount | L79: Units Billed | M79: Rate | N79: Amount | P79: Amount
B81: January | D81: ='5. Historical Wholesale'!D81 -> 0 | E81: ='4. UTRs and Sub-Transmission'!L67 -> 0 | F81: =D81*E81 -> 0 | H81: ='5. Historical Wholesale'!H81 -> 0 | I81: ='4. UTRs and Sub-Transmission'!L69 -> 0 | J81: =H81*I81 -> 0 | L81: ='5. Historical Wholesale'!L81 -> 0 | M81: ='4. UTRs and Sub-Transmission'!L71 -> 0 | N81: =L81*M81 -> 0 | P81: =J81+N81 -> 0
B82: February | D82: ='5. Historical Wholesale'!D82 -> 0 | E82: =E81 -> 0 | F82: 0 | H82: ='5. Historical Wholesale'!H82 -> 0 | I82: =I81 -> 0 | J82: 0 | L82: ='5. Historical Wholesale'!L82 -> 0 | M82: =M81 -> 0 | N82: 0 | P82: 0
B83: March | D83: ='5. Historical Wholesale'!D83 -> 0 | E83: 0 | F83: 0 | H83: ='5. Historical Wholesale'!H83 -> 0 | I83: 0 | J83: 0 | L83: ='5. Historical Wholesale'!L83 -> 0 | M83: 0 | N83: 0 | P83: 0
B84: April | D84: ='5. Historical Wholesale'!D84 -> 0 | E84: 0 | F84: 0 | H84: ='5. Historical Wholesale'!H84 -> 0 | I84: 0 | J84: 0 | L84: ='5. Historical Wholesale'!L84 -> 0 | M84: 0 | N84: 0 | P84: 0
B85: May | D85: ='5. Historical Wholesale'!D85 -> 0 | E85: 0 | F85: 0 | H85: ='5. Historical Wholesale'!H85 -> 0 | I85: 0 | J85: 0 | L85: ='5. Historical Wholesale'!L85 -> 0 | M85: 0 | N85: 0 | P85: 0
B86: June | D86: ='5. Historical Wholesale'!D86 -> 0 | E86: 0 | F86: 0 | H86: ='5. Historical Wholesale'!H86 -> 0 | I86: 0 | J86: 0 | L86: ='5. Historical Wholesale'!L86 -> 0 | M86: 0 | N86: 0 | P86: 0
B87: July | D87: ='5. Historical Wholesale'!D87 -> 0 | E87: 0 | F87: 0 | H87: ='5. Historical Wholesale'!H87 -> 0 | I87: 0 | J87: 0 | L87: ='5. Historical Wholesale'!L87 -> 0 | M87: 0 | N87: 0 | P87: 0
B88: August | D88: ='5. Historical Wholesale'!D88 -> 0 | E88: 0 | F88: 0 | H88: ='5. Historical Wholesale'!H88 -> 0 | I88: 0 | J88: 0 | L88: ='5. Historical Wholesale'!L88 -> 0 | M88: 0 | N88: 0 | P88: 0
B89: September | D89: ='5. Historical Wholesale'!D89 -> 0 | E89: 0 | F89: 0 | H89: ='5. Historical Wholesale'!H89 -> 0 | I89: 0 | J89: 0 | L89: ='5. Historical Wholesale'!L89 -> 0 | M89: 0 | N89: 0 | P89: 0
B90: October | D90: ='5. Historical Wholesale'!D90 -> 0 | E90: 0 | F90: 0 | H90: ='5. Historical Wholesale'!H90 -> 0 | I90: 0 | J90: 0 | L90: ='5. Historical Wholesale'!L90 -> 0 | M90: 0 | N90: 0 | P90: 0
B91: November | D91: ='5. Historical Wholesale'!D91 -> 0 | E91: 0 | F91: 0 | H91: ='5. Historical Wholesale'!H91 -> 0 | I91: 0 | J91: 0 | L91: ='5. Historical Wholesale'!L91 -> 0 | M91: 0 | N91: 0 | P91: 0
B92: December | D92: ='5. Historical Wholesale'!D92 -> 0 | E92: 0 | F92: 0 | H92: ='5. Historical Wholesale'!H92 -> 0 | I92: 0 | J92: 0 | L92: ='5. Historical Wholesale'!L92 -> 0 | M92: 0 | N92: 0 | P92: 0
B94: Total | D94: =SUM(D81:D92) -> 0 | E94: =IF(D94<>0,F94/D94,0) -> 0 | F94: =SUM(F81:F92) -> 0 | H94: =SUM(H81:H92) -> 0 | I94: =IF(H94<>0,J94/H94,0) -> 0 | J94: =SUM(J81:J92) -> 0 | L94: =SUM(L81:L92) -> 0 | M94: =IF(L94<>0,N94/L94,0) -> 0 | N94: =SUM(N81:N92) -> 0 | P94: =SUM(P81:P92) -> 0
B96: Total | D96: Network | H96: Line Connection | L96: Transformation Connection | P96: Total Connection
B98: Month | D98: Units Billed | E98: Rate | F98: Amount | H98: Units Billed | I98: Rate | J98: Amount | L98: Units Billed | M98: Rate | N98: Amount | P98: Amount
B100: January | D100: =D24+D43+D62+D81 -> 4220520.091 | E100: =IF(D100<>0,F100/D100,0) -> 6.545331293 | F100: =F24+F43+F62+F81 -> 27624702.22 | H100: =H24+H43+H62+H81 -> 4345143.435 | I100: =IF(H100<>0,J100/H100,0) -> 1.036218315 | J100: =J24+J43+J62+J81 -> 4502517.207 | L100: =L24+L43+L62+L81 -> 3345874.775 | M100: =IF(L100<>0,N100/L100,0) -> 3.626158429 | N100: =N24+N43+N62+N81 -> 12132672.02 | P100: =J100+N100 -> 16635189.23
B101: February | D101: =D25+D44+D63+D82 -> 4088573.6 | E101: 6.543094856 | F101: 26751924.89 | H101: =H25+H44+H63+H82 -> 4211936.411 | I101: 1.037562489 | J101: =J25+J44+J63+J82 -> 4370147.228 | L101: =L25+L44+L63+L82 -> 3253912.437 | M101: 3.625572637 | N101: =N25+N44+N63+N82 -> 11797295.9 | P101: 16167443.12
B102: March | D102: 3903829.26 | E102: 6.540024525 | F102: 25531139.1 | H102: 4111207.232 | I102: 1.035730688 | J102: 4258103.494 | L102: 3188333.362 | M102: 3.626280956 | N102: 11561792.55 | P102: 15819896.04
B103: April | D103: 3781519.56 | E103: 6.536746299 | F103: 24718833.99 | H103: 4101350.136 | I103: 1.037255943 | J103: 4254149.803 | L103: 3162310.705 | M103: 3.625672441 | N103: 11465502.77 | P103: 15719652.58
B104: May | D104: 3830240.53 | E104: 6.538854563 | F104: 25045385.77 | H104: 3957574.403 | I104: 1.036241127 | J104: 4101001.361 | L104: 3004069.403 | M104: 3.626383717 | N104: 10893908.37 | P104: 14994909.73
B105: June | D105: 5905996.91 | E105: 6.546263463 | F105: 38662211.78 | H105: 6006579.225 | I105: 1.035545592 | J105: 6220086.64 | L105: 4508359.535 | M105: 3.626627182 | N105: 16350139.23 | P105: 22570225.87
B106: July | D106: 5654847.14 | E106: 6.54692625 | F106: 37021867.18 | H106: 5814045.139 | I106: 1.037082211 | J106: 6029642.785 | L106: 4394431.039 | M106: 3.625883033 | N106: 15933692.94 | P106: 21963335.73
B107: August | D107: 5491420.38 | E107: 6.548968127 | F107: 35963137.04 | H107: 5734942.349 | I107: 1.037321225 | J107: 5948977.426 | L107: 4345119.688 | M107: 3.625715884 | N107: 15754169.47 | P107: 21703146.9
B108: September | D108: 4365016.6 | E108: 6.542437469 | F108: 28557848.16 | H108: 4429837.554 | I108: 1.036459156 | J108: 4591345.692 | L108: 3400543.774 | M108: 3.626024568 | N108: 12330455.27 | P108: 16921800.96
B109: October | D109: 4322119.07 | E109: 6.54285398 | F109: 28278993.96 | H109: 4424462.78 | I109: 1.036557338 | J109: 4586209.362 | L109: 3411926.725 | M109: 3.625903436 | N109: 12371316.84 | P109: 16957526.2
B110: November | D110: 3934731.03 | E110: 6.54442962 | F110: 25750570.3 | H110: 4105712.82 | I110: 1.036887323 | J110: 4257161.575 | L110: 3152336.843 | M110: 3.625912393 | N110: 11430097.23 | P110: 15687258.8
B111: December | D111: 4104020.73 | E111: 6.540197868 | F111: 26841107.63 | H111: 4362465.784 | I111: 1.036142225 | J111: 4520135.003 | L111: 3361883.144 | M111: 3.626413349 | N111: 12191577.91 | P111: 16711712.92
B113: Total | D113: =SUM(D100:D111) -> 53602834.9 | E113: =IF(D113<>0,F113/D113,0) -> 6.543454701 | F113: =SUM(F100:F111) -> 350747722 | H113: =SUM(H100:H111) -> 55605257.27 | I113: =IF(H113<>0,J113/H113,0) -> 1.036583237 | J113: =SUM(J100:J111) -> 57639477.58 | L113: =SUM(L100:L111) -> 42529101.43 | M113: =IF(L113<>0,N113/L113,0) -> 3.626049348 | N113: =SUM(N100:N111) -> 154212620.5 | P113: =SUM(P100:P111) -> 211852098.1
N115: Low Voltage Switchgear Credit (if applicable) | P115: ='4. UTRs and Sub-Transmission'!L76 -> 0
N117: Total including deduction for Low Voltage Switchgear Credit | P117: =P113+P115 -> 211852098.1

Sheet 7. Forecast Wholesale - 29
B13: The purpose of this sheet is to calculate the expected billing when forecasted 2027 Uniform Transmission Rates and Hydro One Sub-transmission Rates are applied against historical 2025 transmission units.
B20: IESO | D20: Network | H20: Line Connection | L20: Transformation Connection | P20: Total Connection
B22: Month | D22: Units Billed | E22: Rate | F22: Amount | H22: Units Billed | I22: Rate | J22: Amount | L22: Units Billed | M22: Rate | N22: Amount | P22: Amount
B24: January | D24: ='5. Historical Wholesale'!D24 -> 3766732 | E24: ='4. UTRs and Sub-Transmission'!O22 -> 6.78111912 | F24: =D24*E24 -> 25542658.39 | H24: ='5. Historical Wholesale'!H24 -> 3889756 | I24: ='4. UTRs and Sub-Transmission'!O24 -> 1.09304424 | J24: =H24*I24 -> 4251675.391 | L24: ='5. Historical Wholesale'!L24 -> 2863167 | M24: ='4. UTRs and Sub-Transmission'!O26 -> 3.68239176 | N24: =L24*M24 -> 10543302.57 | P24: =J24+N24 -> 14794977.96
B25: February | D25: ='5. Historical Wholesale'!D25 -> 3639411 | E25: =E24 -> 6.78111912 | F25: 24679279.52 | H25: ='5. Historical Wholesale'!H25 -> 3787274 | I25: =I24 -> 1.09304424 | J25: 4139658.031 | L25: ='5. Historical Wholesale'!L25 -> 2801691 | M25: =M24 -> 3.68239176 | N25: 10316923.85 | P25: 14456581.88
B26: March | D26: ='5. Historical Wholesale'!D26 -> 3462429 | E26: 6.78111912 | F26: 23479143.49 | H26: ='5. Historical Wholesale'!H26 -> 3674401 | I26: 1.09304424 | J26: 4016282.849 | L26: ='5. Historical Wholesale'!L26 -> 2724825 | M26: 3.68239176 | N26: 10033873.13 | P26: 14050155.98
B27: April | D27: ='5. Historical Wholesale'!D27 -> 3340986 | E27: 6.78111912 | F27: 22655624.04 | H27: ='5. Historical Wholesale'!H27 -> 3684114.59 | I27: 1.09304424 | J27: 4026900.232 | L27: ='5. Historical Wholesale'!L27 -> 2719968.799 | M27: 3.68239176 | N27: 10015990.69 | P27: 14042890.93
B28: May | D28: ='5. Historical Wholesale'!D28 -> 3392475 | E28: 6.78111912 | F28: 23004777.09 | H28: ='5. Historical Wholesale'!H28 -> 3543073 | I28: 1.09304424 | J28: 3872735.535 | L28: ='5. Historical Wholesale'!L28 -> 2564560 | M28: 3.68239176 | N28: 9443714.612 | P28: 13316450.15
B29: June | D29: ='5. Historical Wholesale'!D29 -> 5276744 | E29: 6.78111912 | F29: 35782229.63 | H29: ='5. Historical Wholesale'!H29 -> 5365102 | I29: 1.09304424 | J29: 5864293.838 | L29: ='5. Historical Wholesale'!L29 -> 3838850 | M29: 3.68239176 | N29: 14136149.61 | P29: 20000443.45
B30: July | D30: ='5. Historical Wholesale'!D30 -> 5056272 | E30: 6.78111912 | F30: 34287182.74 | H30: ='5. Historical Wholesale'!H30 -> 5219584 | I30: 1.09304424 | J30: 5705236.226 | L30: ='5. Historical Wholesale'!L30 -> 3771381 | M30: 3.68239176 | N30: 13887702.32 | P30: 19592938.54
B31: August | D31: ='5. Historical Wholesale'!D31 -> 4921869 | E31: 6.78111912 | F31: 33375779.98 | H31: ='5. Historical Wholesale'!H31 -> 5152628 | I31: 1.09304424 | J31: 5632050.356 | L31: ='5. Historical Wholesale'!L31 -> 3735622 | M31: 3.68239176 | N31: 13756023.67 | P31: 19388074.03
B32: September | D32: ='5. Historical Wholesale'!D32 -> 3882484 | E32: 6.78111912 | F32: 26327586.49 | H32: ='5. Historical Wholesale'!H32 -> 3968733 | I32: 1.09304424 | J32: 4338000.746 | L32: ='5. Historical Wholesale'!L32 -> 2914061 | M32: 3.68239176 | N32: 10730714.21 | P32: 15068714.96
B33: October | D33: ='5. Historical Wholesale'!D33 -> 3846211 | E33: 6.78111912 | F33: 26081614.95 | H33: ='5. Historical Wholesale'!H33 -> 3965204 | I33: 1.09304424 | J33: 4334143.393 | L33: ='5. Historical Wholesale'!L33 -> 2927549 | M33: 3.68239176 | N33: 10780382.31 | P33: 15114525.71
B34: November | D34: ='5. Historical Wholesale'!D34 -> 3507961 | E34: 6.78111912 | F34: 23787901.41 | H34: ='5. Historical Wholesale'!H34 -> 3683552 | I34: 1.09304424 | J34: 4026285.296 | L34: ='5. Historical Wholesale'!L34 -> 2704557 | M34: 3.68239176 | N34: 9959238.411 | P34: 13985523.71
B35: December | D35: ='5. Historical Wholesale'!D35 -> 3640729 | E35: 6.78111912 | F35: 24688217.03 | H35: ='5. Historical Wholesale'!H35 -> 3904280 | I35: 1.09304424 | J35: 4267550.765 | L35: ='5. Historical Wholesale'!L35 -> 2869124 | M35: 3.68239176 | N35: 10565238.58 | P35: 14832789.34
B37: Total | D37: =SUM(D24:D35) -> 47734303 | E37: =IF(D37<>0,F37/D37,0) -> 6.78111912 | F37: =SUM(F24:F35) -> 323691994.8 | H37: =SUM(H24:H35) -> 49837701.59 | I37: =IF(H37<>0,J37/H37,0) -> 1.09304424 | J37: =SUM(J24:J35) -> 54474812.66 | L37: =SUM(L24:L35) -> 36435355.8 | M37: =IF(L37<>0,N37/L37,0) -> 3.68239176 | N37: =SUM(N24:N35) -> 134169254 | P37: =SUM(P24:P35) -> 188644066.6
B39: Hydro One | D39: Network | H39: Line Connection | L39: Transformation Connection | P39: Total Connection
B41: Month | D41: Units Billed | E41: Rate | F41: Amount | H41: Units Billed | I41: Rate | J41: Amount | L41: Units Billed | M41: Rate | N41: Amount | P41: Amount
B43: January | D43: ='5. Historical Wholesale'!D43 -> 453788.0905 | E43: ='4. UTRs and Sub-Transmission'!O35 -> 5.805656726 | F43: =D43*E43 -> 2634537.88 | H43: ='5. Historical Wholesale'!H43 -> 455387.4352 | I43: ='4. UTRs and Sub-Transmission'!O37 -> 0.7485761232 | J43: =H43*I43 -> 340892.1608 | L43: ='5. Historical Wholesale'!L43 -> 482707.7752 | M43: ='4. UTRs and Sub-Transmission'!O39 -> 3.795304291 | N43: =L43*M43 -> 1832022.891 | P43: =J43+N43 -> 2172915.052
B44: February | D44: ='5. Historical Wholesale'!D44 -> 449162.6004 | E44: =E43 -> 5.805656726 | F44: 2607683.872 | H44: ='5. Historical Wholesale'!H44 -> 424662.4113 | I44: =I43 -> 0.7485761232 | J44: 317892.1415 | L44: ='5. Historical Wholesale'!L44 -> 452221.4372 | M44: =M43 -> 3.795304291 | N44: 1716317.961 | P44: 2034210.103
B45: March | D45: ='5. Historical Wholesale'!D45 -> 441400.26 | E45: 5.805656726 | F45: 2562618.389 | H45: ='5. Historical Wholesale'!H45 -> 436806.2316 | I45: 0.7485761232 | J45: 326982.7154 | L45: ='5. Historical Wholesale'!L45 -> 463508.3616 | M45: 3.795304291 | N45: 1759155.274 | P45: 2086137.989
B46: April | D46: ='5. Historical Wholesale'!D46 -> 440533.56 | E46: 5.805656726 | F46: 2557586.626 | H46: ='5. Historical Wholesale'!H46 -> 417235.5457 | I46: 0.7485761232 | J46: 312332.5673 | L46: ='5. Historical Wholesale'!L46 -> 442341.9057 | M46: 3.795304291 | N46: 1678822.133 | P46: 1991154.7
B47: May | D47: ='5. Historical Wholesale'!D47 -> 437765.53 | E47: 5.805656726 | F47: 2541516.394 | H47: ='5. Historical Wholesale'!H47 -> 414501.4032 | I47: 0.7485761232 | J47: 310285.8535 | L47: ='5. Historical Wholesale'!L47 -> 439509.4032 | M47: 3.795304291 | N47: 1668071.924 | P47: 1978357.777
B48: June | D48: ='5. Historical Wholesale'!D48 -> 629252.91 | E48: 5.805656726 | F48: 3653226.39 | H48: ='5. Historical Wholesale'!H48 -> 641477.225 | I48: 0.7485761232 | J48: 480194.5342 | L48: ='5. Historical Wholesale'!L48 -> 669509.535 | M48: 3.795304291 | N48: 2540992.411 | P48: 3021186.945
B49: July | D49: ='5. Historical Wholesale'!D49 -> 598575.14 | E49: 5.805656726 | F49: 3475121.788 | H49: ='5. Historical Wholesale'!H49 -> 594461.1386 | I49: 0.7485761232 | J49: 444999.4146 | L49: ='5. Historical Wholesale'!L49 -> 623050.0386 | M49: 3.795304291 | N49: 2364664.485 | P49: 2809663.9
B50: August | D50: ='5. Historical Wholesale'!D50 -> 569551.38 | E50: 5.805656726 | F50: 3306619.8 | H50: ='5. Historical Wholesale'!H50 -> 582314.349 | I50: 0.7485761232 | J50: 435906.6179 | L50: ='5. Historical Wholesale'!L50 -> 609497.6876 | M50: 3.795304291 | N50: 2313229.189 | P50: 2749135.807
B51: September | D51: ='5. Historical Wholesale'!D51 -> 482532.6 | E51: 5.805656726 | F51: 2801418.635 | H51: ='5. Historical Wholesale'!H51 -> 461104.5544 | I51: 0.7485761232 | J51: 345171.8597 | L51: ='5. Historical Wholesale'!L51 -> 486482.7743 | M51: 3.795304291 | N51: 1846350.161 | P51: 2191522.021
B52: October | D52: ='5. Historical Wholesale'!D52 -> 475908.07 | E52: 5.805656726 | F52: 2762958.888 | H52: ='5. Historical Wholesale'!H52 -> 459258.7799 | I52: 0.7485761232 | J52: 343790.157 | L52: ='5. Historical Wholesale'!L52 -> 484377.7249 | M52: 3.795304291 | N52: 1838360.858 | P52: 2182151.015
B53: November | D53: ='5. Historical Wholesale'!D53 -> 426770.03 | E53: 5.805656726 | F53: 2477680.295 | H53: ='5. Historical Wholesale'!H53 -> 422160.8197 | I53: 0.7485761232 | J53: 316019.5098 | L53: ='5. Historical Wholesale'!L53 -> 447779.8429 | M53: 3.795304291 | N53: 1699460.759 | P53: 2015480.269
B54: December | D54: ='5. Historical Wholesale'!D54 -> 463291.73 | E54: 5.805656726 | F54: 2689712.749 | H54: ='5. Historical Wholesale'!H54 -> 458185.7843 | I54: 0.7485761232 | J54: 342986.9381 | L54: ='5. Historical Wholesale'!L54 -> 492759.1443 | M54: 3.795304291 | N54: 1870170.895 | P54: 2213157.833
B56: Total | D56: =SUM(D43:D54) -> 5868531.901 | E56: =IF(D56<>0,F56/D56,0) -> 5.805656726 | F56: =SUM(F43:F54) -> 34070681.71 | H56: =SUM(H43:H54) -> 5767555.678 | I56: =IF(H56<>0,J56/H56,0) -> 0.7485761232 | J56: =SUM(J43:J54) -> 4317454.47 | L56: =SUM(L43:L54) -> 6093745.631 | M56: =IF(L56<>0,N56/L56,0) -> 3.795304291 | N56: =SUM(N43:N54) -> 23127618.94 | P56: =SUM(P43:P54) -> 27445073.41
B58: ='5. Historical Wholesale'!B58 -> Add Extra Host Here (I) | D58: Network | H58: Line Connection | L58: Transformation Connection | P58: Total Connection
B60: Month | D60: Units Billed | E60: Rate | F60: Amount | H60: Units Billed | I60: Rate | J60: Amount | L60: Units Billed | M60: Rate | N60: Amount | P60: Amount
B62: January | D62: ='5. Historical Wholesale'!D62 -> 0 | E62: ='4. UTRs and Sub-Transmission'!L52 -> 0 | F62: =D62*E62 -> 0 | H62: ='5. Historical Wholesale'!H62 -> 0 | I62: ='4. UTRs and Sub-Transmission'!L54 -> 0 | J62: =H62*I62 -> 0 | L62: ='5. Historical Wholesale'!L62 -> 0 | M62: ='4. UTRs and Sub-Transmission'!L56 -> 0 | N62: =L62*M62 -> 0 | P62: =J62+N62 -> 0
B63: February | D63: ='5. Historical Wholesale'!D63 -> 0 | E63: =E62 -> 0 | F63: 0 | H63: ='5. Historical Wholesale'!H63 -> 0 | I63: =I62 -> 0 | J63: 0 | L63: ='5. Historical Wholesale'!L63 -> 0 | M63: =M62 -> 0 | N63: 0 | P63: 0
B64: March | D64: ='5. Historical Wholesale'!D64 -> 0 | E64: 0 | F64: 0 | H64: ='5. Historical Wholesale'!H64 -> 0 | I64: 0 | J64: 0 | L64: ='5. Historical Wholesale'!L64 -> 0 | M64: 0 | N64: 0 | P64: 0
B65: April | D65: ='5. Historical Wholesale'!D65 -> 0 | E65: 0 | F65: 0 | H65: ='5. Historical Wholesale'!H65 -> 0 | I65: 0 | J65: 0 | L65: ='5. Historical Wholesale'!L65 -> 0 | M65: 0 | N65: 0 | P65: 0
B66: May | D66: ='5. Historical Wholesale'!D66 -> 0 | E66: 0 | F66: 0 | H66: ='5. Historical Wholesale'!H66 -> 0 | I66: 0 | J66: 0 | L66: ='5. Historical Wholesale'!L66 -> 0 | M66: 0 | N66: 0 | P66: 0
B67: June | D67: ='5. Historical Wholesale'!D67 -> 0 | E67: 0 | F67: 0 | H67: ='5. Historical Wholesale'!H67 -> 0 | I67: 0 | J67: 0 | L67: ='5. Historical Wholesale'!L67 -> 0 | M67: 0 | N67: 0 | P67: 0
B68: July | D68: ='5. Historical Wholesale'!D68 -> 0 | E68: 0 | F68: 0 | H68: ='5. Historical Wholesale'!H68 -> 0 | I68: 0 | J68: 0 | L68: ='5. Historical Wholesale'!L68 -> 0 | M68: 0 | N68: 0 | P68: 0
B69: August | D69: ='5. Historical Wholesale'!D69 -> 0 | E69: 0 | F69: 0 | H69: ='5. Historical Wholesale'!H69 -> 0 | I69: 0 | J69: 0 | L69: ='5. Historical Wholesale'!L69 -> 0 | M69: 0 | N69: 0 | P69: 0
B70: September | D70: ='5. Historical Wholesale'!D70 -> 0 | E70: 0 | F70: 0 | H70: ='5. Historical Wholesale'!H70 -> 0 | I70: 0 | J70: 0 | L70: ='5. Historical Wholesale'!L70 -> 0 | M70: 0 | N70: 0 | P70: 0
B71: October | D71: ='5. Historical Wholesale'!D71 -> 0 | E71: 0 | F71: 0 | H71: ='5. Historical Wholesale'!H71 -> 0 | I71: 0 | J71: 0 | L71: ='5. Historical Wholesale'!L71 -> 0 | M71: 0 | N71: 0 | P71: 0
B72: November | D72: ='5. Historical Wholesale'!D72 -> 0 | E72: 0 | F72: 0 | H72: ='5. Historical Wholesale'!H72 -> 0 | I72: 0 | J72: 0 | L72: ='5. Historical Wholesale'!L72 -> 0 | M72: 0 | N72: 0 | P72: 0
B73: December | D73: ='5. Historical Wholesale'!D73 -> 0 | E73: 0 | F73: 0 | H73: ='5. Historical Wholesale'!H73 -> 0 | I73: 0 | J73: 0 | L73: ='5. Historical Wholesale'!L73 -> 0 | M73: 0 | N73: 0 | P73: 0
B75: Total | D75: =SUM(D62:D73) -> 0 | E75: =IF(D75<>0,F75/D75,0) -> 0 | F75: =SUM(F62:F73) -> 0 | H75: =SUM(H62:H73) -> 0 | I75: =IF(H75<>0,J75/H75,0) -> 0 | J75: =SUM(J62:J73) -> 0 | L75: =SUM(L62:L73) -> 0 | M75: =IF(L75<>0,N75/L75,0) -> 0 | N75: =SUM(N62:N73) -> 0 | P75: =SUM(P62:P73) -> 0
B77: ='5. Historical Wholesale'!B77 -> Add Extra Host Here (II) | D77: Network | H77: Line Connection | L77: Transformation Connection | P77: Total Connection
B79: Month | D79: Units Billed | E79: Rate | F79: Amount | H79: Units Billed | I79: Rate | J79: Amount | L79: Units Billed | M79: Rate | N79: Amount | P79: Amount
B81: January | D81: ='5. Historical Wholesale'!D81 -> 0 | E81: ='4. UTRs and Sub-Transmission'!L67 -> 0 | F81: =D81*E81 -> 0 | H81: ='5. Historical Wholesale'!H81 -> 0 | I81: ='4. UTRs and Sub-Transmission'!L69 -> 0 | J81: =H81*I81 -> 0 | L81: ='5. Historical Wholesale'!L81 -> 0 | M81: ='4. UTRs and Sub-Transmission'!L71 -> 0 | N81: =L81*M81 -> 0 | P81: =J81+N81 -> 0
B82: February | D82: ='5. Historical Wholesale'!D82 -> 0 | E82: =E81 -> 0 | F82: 0 | H82: ='5. Historical Wholesale'!H82 -> 0 | I82: =I81 -> 0 | J82: 0 | L82: ='5. Historical Wholesale'!L82 -> 0 | M82: =M81 -> 0 | N82: 0 | P82: 0
B83: March | D83: ='5. Historical Wholesale'!D83 -> 0 | E83: 0 | F83: 0 | H83: ='5. Historical Wholesale'!H83 -> 0 | I83: 0 | J83: 0 | L83: ='5. Historical Wholesale'!L83 -> 0 | M83: 0 | N83: 0 | P83: 0
B84: April | D84: ='5. Historical Wholesale'!D84 -> 0 | E84: 0 | F84: 0 | H84: ='5. Historical Wholesale'!H84 -> 0 | I84: 0 | J84: 0 | L84: ='5. Historical Wholesale'!L84 -> 0 | M84: 0 | N84: 0 | P84: 0
B85: May | D85: ='5. Historical Wholesale'!D85 -> 0 | E85: 0 | F85: 0 | H85: ='5. Historical Wholesale'!H85 -> 0 | I85: 0 | J85: 0 | L85: ='5. Historical Wholesale'!L85 -> 0 | M85: 0 | N85: 0 | P85: 0
B86: June | D86: ='5. Historical Wholesale'!D86 -> 0 | E86: 0 | F86: 0 | H86: ='5. Historical Wholesale'!H86 -> 0 | I86: 0 | J86: 0 | L86: ='5. Historical Wholesale'!L86 -> 0 | M86: 0 | N86: 0 | P86: 0
B87: July | D87: ='5. Historical Wholesale'!D87 -> 0 | E87: 0 | F87: 0 | H87: ='5. Historical Wholesale'!H87 -> 0 | I87: 0 | J87: 0 | L87: ='5. Historical Wholesale'!L87 -> 0 | M87: 0 | N87: 0 | P87: 0
B88: August | D88: ='5. Historical Wholesale'!D88 -> 0 | E88: 0 | F88: 0 | H88: ='5. Historical Wholesale'!H88 -> 0 | I88: 0 | J88: 0 | L88: ='5. Historical Wholesale'!L88 -> 0 | M88: 0 | N88: 0 | P88: 0
B89: September | D89: ='5. Historical Wholesale'!D89 -> 0 | E89: 0 | F89: 0 | H89: ='5. Historical Wholesale'!H89 -> 0 | I89: 0 | J89: 0 | L89: ='5. Historical Wholesale'!L89 -> 0 | M89: 0 | N89: 0 | P89: 0
B90: October | D90: ='5. Historical Wholesale'!D90 -> 0 | E90: 0 | F90: 0 | H90: ='5. Historical Wholesale'!H90 -> 0 | I90: 0 | J90: 0 | L90: ='5. Historical Wholesale'!L90 -> 0 | M90: 0 | N90: 0 | P90: 0
B91: November | D91: ='5. Historical Wholesale'!D91 -> 0 | E91: 0 | F91: 0 | H91: ='5. Historical Wholesale'!H91 -> 0 | I91: 0 | J91: 0 | L91: ='5. Historical Wholesale'!L91 -> 0 | M91: 0 | N91: 0 | P91: 0
B92: December | D92: ='5. Historical Wholesale'!D92 -> 0 | E92: 0 | F92: 0 | H92: ='5. Historical Wholesale'!H92 -> 0 | I92: 0 | J92: 0 | L92: ='5. Historical Wholesale'!L92 -> 0 | M92: 0 | N92: 0 | P92: 0
B94: Total | D94: =SUM(D81:D92) -> 0 | E94: =IF(D94<>0,F94/D94,0) -> 0 | F94: =SUM(F81:F92) -> 0 | H94: =SUM(H81:H92) -> 0 | I94: =IF(H94<>0,J94/H94,0) -> 0 | J94: =SUM(J81:J92) -> 0 | L94: =SUM(L81:L92) -> 0 | M94: =IF(L94<>0,N94/L94,0) -> 0 | N94: =SUM(N81:N92) -> 0 | P94: =SUM(P81:P92) -> 0
B96: Total | D96: Network | H96: Line Connection | L96: Transformation Connection | P96: Total Connection
B98: Month | D98: Units Billed | E98: Rate | F98: Amount | H98: Units Billed | I98: Rate | J98: Amount | L98: Units Billed | M98: Rate | N98: Amount | P98: Amount
B100: January | D100: =D24+D43+D62+D81 -> 4220520.091 | E100: =IF(D100<>0,F100/D100,0) -> 6.676237919 | F100: =F24+F43+F62+F81 -> 28177196.27 | H100: =H24+H43+H62+H81 -> 4345143.435 | I100: =IF(H100<>0,J100/H100,0) -> 1.056942681 | J100: =J24+J43+J62+J81 -> 4592567.552 | L100: =L24+L43+L62+L81 -> 3345874.775 | M100: =IF(L100<>0,N100/L100,0) -> 3.698681598 | N100: =N24+N43+N62+N81 -> 12375325.46 | P100: =J100+N100 -> 16967893.01
B101: February | D101: =D25+D44+D63+D82 -> 4088573.6 | E101: 6.673956753 | F101: 27286963.39 | H101: =H25+H44+H63+H82 -> 4211936.411 | I101: 1.058313739 | J101: =J25+J44+J63+J82 -> 4457550.173 | L101: =L25+L44+L63+L82 -> 3253912.437 | M101: 3.69808409 | N101: =N25+N44+N63+N82 -> 12033241.81 | P101: 16490791.99
B102: March | D102: 3903829.26 | E102: 6.670825015 | F102: 26041761.88 | H102: 4111207.232 | I102: 1.056445302 | J102: 4343265.564 | L102: 3188333.362 | M102: 3.698806575 | N102: 11793028.4 | P102: 16136293.97
B103: April | D103: 3781519.56 | E103: 6.667481225 | F103: 25213210.67 | H103: 4101350.136 | I103: 1.058001062 | J103: 4339232.799 | L103: 3162310.705 | M103: 3.698185889 | N103: 11694812.83 | P103: 16034045.63
B104: May | D104: 3830240.53 | E104: 6.669631654 | F104: 25546293.48 | H104: 3957574.403 | I104: 1.05696595 | J104: 4183021.388 | L104: 3004069.403 | M104: 3.698911391 | N104: 11111786.54 | P104: 15294807.92
B105: June | D105: 5905996.91 | E105: 6.677188732 | F105: 39435456.02 | H105: 6006579.225 | I105: 1.056256504 | J105: 6344488.372 | L105: 4508359.535 | M105: 3.699159725 | N105: 16677142.02 | P105: 23021630.39
B106: July | D106: 5654847.14 | E106: 6.677864775 | F106: 37762304.52 | H106: 5814045.139 | I106: 1.057823855 | J106: 6150235.641 | L106: 4394431.039 | M106: 3.698400694 | N106: 16252366.8 | P106: 22402602.44
B107: August | D107: 5491420.38 | E107: 6.67994749 | F107: 36682399.78 | H107: 5734942.349 | I107: 1.05806765 | J107: 6067956.974 | L107: 4345119.688 | M107: 3.698230202 | N107: 16069252.86 | P107: 22137209.83
B108: September | D108: 4365016.6 | E108: 6.673286219 | F108: 29129005.12 | H108: 4429837.554 | I108: 1.057188339 | J108: 4683172.605 | L108: 3400543.774 | M108: 3.698545059 | N108: 12577064.38 | P108: 17260236.98
B109: October | D109: 4322119.07 | E109: 6.67371106 | F109: 28844573.84 | H109: 4424462.78 | I109: 1.057288485 | J109: 4677933.55 | L109: 3411926.725 | M109: 3.698421505 | N109: 12618743.17 | P109: 17296676.72
B110: November | D110: 3934731.03 | E110: 6.675318212 | F110: 26265581.7 | H110: 4105712.82 | I110: 1.057625069 | J110: 4342304.806 | L110: 3152336.843 | M110: 3.698430641 | N110: 11658699.17 | P110: 16001003.98
B111: December | D111: 4104020.73 | E111: 6.671001825 | F111: 27377929.78 | H111: 4362465.784 | I111: 1.056865069 | J111: 4610537.703 | L111: 3361883.144 | M111: 3.698941616 | N111: 12435409.47 | P111: 17045947.17
B113: Total | D113: =SUM(D100:D111) -> 53602834.9 | E113: =IF(D113<>0,F113/D113,0) -> 6.674323795 | F113: =SUM(F100:F111) -> 357762676.5 | H113: =SUM(H100:H111) -> 55605257.27 | I113: =IF(H113<>0,J113/H113,0) -> 1.057314902 | J113: =SUM(J100:J111) -> 58792267.13 | L113: =SUM(L100:L111) -> 42529101.43 | M113: =IF(L113<>0,N113/L113,0) -> 3.698570335 | N113: =SUM(N100:N111) -> 157296872.9 | P113: =SUM(P100:P111) -> 216089140
N115: Low Voltage Switchgear Credit (if applicable) | P115: ='4. UTRs and Sub-Transmission'!L76 -> 0
N117: Total including deduction for Low Voltage Switchgear Credit | P117: =P113+P115 -> 216089140

Sheet 7. Forecast Wholesale - 30
B13: The purpose of this sheet is to calculate the expected billing when forecasted 2027 Uniform Transmission Rates and Hydro One Sub-transmission Rates are applied against historical 2025 transmission units.
B20: IESO | D20: Network | H20: Line Connection | L20: Transformation Connection | P20: Total Connection
B22: Month | D22: Units Billed | E22: Rate | F22: Amount | H22: Units Billed | I22: Rate | J22: Amount | L22: Units Billed | M22: Rate | N22: Amount | P22: Amount
B24: January | D24: ='5. Historical Wholesale'!D24 -> 3766732 | E24: ='4. UTRs and Sub-Transmission'!P22 -> 6.916741502 | F24: =D24*E24 -> 26053511.55 | H24: ='5. Historical Wholesale'!H24 -> 3889756 | I24: ='4. UTRs and Sub-Transmission'!P24 -> 1.114905125 | J24: =H24*I24 -> 4336708.899 | L24: ='5. Historical Wholesale'!L24 -> 2863167 | M24: ='4. UTRs and Sub-Transmission'!P26 -> 3.756039595 | N24: =L24*M24 -> 10754168.62 | P24: =J24+N24 -> 15090877.52
B25: February | D25: ='5. Historical Wholesale'!D25 -> 3639411 | E25: =E24 -> 6.916741502 | F25: 25172865.11 | H25: ='5. Historical Wholesale'!H25 -> 3787274 | I25: =I24 -> 1.114905125 | J25: 4222451.192 | L25: ='5. Historical Wholesale'!L25 -> 2801691 | M25: =M24 -> 3.756039595 | N25: 10523262.33 | P25: 14745713.52
B26: March | D26: ='5. Historical Wholesale'!D26 -> 3462429 | E26: 6.916741502 | F26: 23948726.36 | H26: ='5. Historical Wholesale'!H26 -> 3674401 | I26: 1.114905125 | J26: 4096608.505 | L26: ='5. Historical Wholesale'!L26 -> 2724825 | M26: 3.756039595 | N26: 10234550.59 | P26: 14331159.1
B27: April | D27: ='5. Historical Wholesale'!D27 -> 3340986 | E27: 6.916741502 | F27: 23108736.53 | H27: ='5. Historical Wholesale'!H27 -> 3684114.59 | I27: 1.114905125 | J27: 4107438.237 | L27: ='5. Historical Wholesale'!L27 -> 2719968.799 | M27: 3.756039595 | N27: 10216310.51 | P27: 14323748.75
B28: May | D28: ='5. Historical Wholesale'!D28 -> 3392475 | E28: 6.916741502 | F28: 23464872.63 | H28: ='5. Historical Wholesale'!H28 -> 3543073 | I28: 1.114905125 | J28: 3950190.245 | L28: ='5. Historical Wholesale'!L28 -> 2564560 | M28: 3.756039595 | N28: 9632588.904 | P28: 13582779.15
B29: June | D29: ='5. Historical Wholesale'!D29 -> 5276744 | E29: 6.916741502 | F29: 36497874.22 | H29: ='5. Historical Wholesale'!H29 -> 5365102 | I29: 1.114905125 | J29: 5981579.715 | L29: ='5. Historical Wholesale'!L29 -> 3838850 | M29: 3.756039595 | N29: 14418872.6 | P29: 20400452.31
B30: July | D30: ='5. Historical Wholesale'!D30 -> 5056272 | E30: 6.916741502 | F30: 34972926.39 | H30: ='5. Historical Wholesale'!H30 -> 5219584 | I30: 1.114905125 | J30: 5819340.951 | L30: ='5. Historical Wholesale'!L30 -> 3771381 | M30: 3.756039595 | N30: 14165456.36 | P30: 19984797.32
B31: August | D31: ='5. Historical Wholesale'!D31 -> 4921869 | E31: 6.916741502 | F31: 34043295.58 | H31: ='5. Historical Wholesale'!H31 -> 5152628 | I31: 1.114905125 | J31: 5744691.363 | L31: ='5. Historical Wholesale'!L31 -> 3735622 | M31: 3.756039595 | N31: 14031144.14 | P31: 19775835.51
B32: September | D32: ='5. Historical Wholesale'!D32 -> 3882484 | E32: 6.916741502 | F32: 26854138.22 | H32: ='5. Historical Wholesale'!H32 -> 3968733 | I32: 1.114905125 | J32: 4424760.761 | L32: ='5. Historical Wholesale'!L32 -> 2914061 | M32: 3.756039595 | N32: 10945328.5 | P32: 15370089.26
B33: October | D33: ='5. Historical Wholesale'!D33 -> 3846211 | E33: 6.916741502 | F33: 26603247.25 | H33: ='5. Historical Wholesale'!H33 -> 3965204 | I33: 1.114905125 | J33: 4420826.26 | L33: ='5. Historical Wholesale'!L33 -> 2927549 | M33: 3.756039595 | N33: 10995989.96 | P33: 15416816.22
B34: November | D34: ='5. Historical Wholesale'!D34 -> 3507961 | E34: 6.916741502 | F34: 24263659.44 | H34: ='5. Historical Wholesale'!H34 -> 3683552 | I34: 1.114905125 | J34: 4106811.002 | L34: ='5. Historical Wholesale'!L34 -> 2704557 | M34: 3.756039595 | N34: 10158423.18 | P34: 14265234.18
B35: December | D35: ='5. Historical Wholesale'!D35 -> 3640729 | E35: 6.916741502 | F35: 25181981.37 | H35: ='5. Historical Wholesale'!H35 -> 3904280 | I35: 1.114905125 | J35: 4352901.781 | L35: ='5. Historical Wholesale'!L35 -> 2869124 | M35: 3.756039595 | N35: 10776543.35 | P35: 15129445.13
B37: Total | D37: =SUM(D24:D35) -> 47734303 | E37: =IF(D37<>0,F37/D37,0) -> 6.916741502 | F37: =SUM(F24:F35) -> 330165834.6 | H37: =SUM(H24:H35) -> 49837701.59 | I37: =IF(H37<>0,J37/H37,0) -> 1.114905125 | J37: =SUM(J24:J35) -> 55564308.91 | L37: =SUM(L24:L35) -> 36435355.8 | M37: =IF(L37<>0,N37/L37,0) -> 3.756039595 | N37: =SUM(N24:N35) -> 136852639 | P37: =SUM(P24:P35) -> 192416948
B39: Hydro One | D39: Network | H39: Line Connection | L39: Transformation Connection | P39: Total Connection
B41: Month | D41: Units Billed | E41: Rate | F41: Amount | H41: Units Billed | I41: Rate | J41: Amount | L41: Units Billed | M41: Rate | N41: Amount | P41: Amount
B43: January | D43: ='5. Historical Wholesale'!D43 -> 453788.0905 | E43: ='4. UTRs and Sub-Transmission'!P35 -> 5.921769861 | F43: =D43*E43 -> 2687228.638 | H43: ='5. Historical Wholesale'!H43 -> 455387.4352 | I43: ='4. UTRs and Sub-Transmission'!P37 -> 0.7635476457 | J43: =H43*I43 -> 347710.004 | L43: ='5. Historical Wholesale'!L43 -> 482707.7752 | M43: ='4. UTRs and Sub-Transmission'!P39 -> 3.871210377 | N43: =L43*M43 -> 1868663.349 | P43: =J43+N43 -> 2216373.353
B44: February | D44: ='5. Historical Wholesale'!D44 -> 449162.6004 | E44: =E43 -> 5.921769861 | F44: 2659837.55 | H44: ='5. Historical Wholesale'!H44 -> 424662.4113 | I44: =I43 -> 0.7635476457 | J44: 324249.9844 | L44: ='5. Historical Wholesale'!L44 -> 452221.4372 | M44: =M43 -> 3.871210377 | N44: 1750644.32 | P44: 2074894.305
B45: March | D45: ='5. Historical Wholesale'!D45 -> 441400.26 | E45: 5.921769861 | F45: 2613870.756 | H45: ='5. Historical Wholesale'!H45 -> 436806.2316 | I45: 0.7635476457 | J45: 333522.3698 | L45: ='5. Historical Wholesale'!L45 -> 463508.3616 | M45: 3.871210377 | N45: 1794338.379 | P45: 2127860.749
B46: April | D46: ='5. Historical Wholesale'!D46 -> 440533.56 | E46: 5.921769861 | F46: 2608738.358 | H46: ='5. Historical Wholesale'!H46 -> 417235.5457 | I46: 0.7635476457 | J46: 318579.2186 | L46: ='5. Historical Wholesale'!L46 -> 442341.9057 | M46: 3.871210377 | N46: 1712398.576 | P46: 2030977.794
B47: May | D47: ='5. Historical Wholesale'!D47 -> 437765.53 | E47: 5.921769861 | F47: 2592346.722 | H47: ='5. Historical Wholesale'!H47 -> 414501.4032 | I47: 0.7635476457 | J47: 316491.5705 | L47: ='5. Historical Wholesale'!L47 -> 439509.4032 | M47: 3.871210377 | N47: 1701433.362 | P47: 2017924.933
B48: June | D48: ='5. Historical Wholesale'!D48 -> 629252.91 | E48: 5.921769861 | F48: 3726290.917 | H48: ='5. Historical Wholesale'!H48 -> 641477.225 | I48: 0.7635476457 | J48: 489798.4249 | L48: ='5. Historical Wholesale'!L48 -> 669509.535 | M48: 3.871210377 | N48: 2591812.259 | P48: 3081610.684
B49: July | D49: ='5. Historical Wholesale'!D49 -> 598575.14 | E49: 5.921769861 | F49: 3544624.224 | H49: ='5. Historical Wholesale'!H49 -> 594461.1386 | I49: 0.7635476457 | J49: 453899.4028 | L49: ='5. Historical Wholesale'!L49 -> 623050.0386 | M49: 3.871210377 | N49: 2411957.775 | P49: 2865857.178
B50: August | D50: ='5. Historical Wholesale'!D50 -> 569551.38 | E50: 5.921769861 | F50: 3372752.196 | H50: ='5. Historical Wholesale'!H50 -> 582314.349 | I50: 0.7635476457 | J50: 444624.7502 | L50: ='5. Historical Wholesale'!L50 -> 609497.6876 | M50: 3.871210377 | N50: 2359493.773 | P50: 2804118.523
B51: September | D51: ='5. Historical Wholesale'!D51 -> 482532.6 | E51: 5.921769861 | F51: 2857447.008 | H51: ='5. Historical Wholesale'!H51 -> 461104.5544 | I51: 0.7635476457 | J51: 352075.2969 | L51: ='5. Historical Wholesale'!L51 -> 486482.7743 | M51: 3.871210377 | N51: 1883277.164 | P51: 2235352.461
B52: October | D52: ='5. Historical Wholesale'!D52 -> 475908.07 | E52: 5.921769861 | F52: 2818218.065 | H52: ='5. Historical Wholesale'!H52 -> 459258.7799 | I52: 0.7635476457 | J52: 350665.9601 | L52: ='5. Historical Wholesale'!L52 -> 484377.7249 | M52: 3.871210377 | N52: 1875128.075 | P52: 2225794.035
B53: November | D53: ='5. Historical Wholesale'!D53 -> 426770.03 | E53: 5.921769861 | F53: 2527233.901 | H53: ='5. Historical Wholesale'!H53 -> 422160.8197 | I53: 0.7635476457 | J53: 322339.9 | L53: ='5. Historical Wholesale'!L53 -> 447779.8429 | M53: 3.871210377 | N53: 1733449.975 | P53: 2055789.875
B54: December | D54: ='5. Historical Wholesale'!D54 -> 463291.73 | E54: 5.921769861 | F54: 2743507.004 | H54: ='5. Historical Wholesale'!H54 -> 458185.7843 | I54: 0.7635476457 | J54: 349846.6768 | L54: ='5. Historical Wholesale'!L54 -> 492759.1443 | M54: 3.871210377 | N54: 1907574.313 | P54: 2257420.989
B56: Total | D56: =SUM(D43:D54) -> 5868531.901 | E56: =IF(D56<>0,F56/D56,0) -> 5.921769861 | F56: =SUM(F43:F54) -> 34752095.34 | H56: =SUM(H43:H54) -> 5767555.678 | I56: =IF(H56<>0,J56/H56,0) -> 0.7635476457 | J56: =SUM(J43:J54) -> 4403803.559 | L56: =SUM(L43:L54) -> 6093745.631 | M56: =IF(L56<>0,N56/L56,0) -> 3.871210377 | N56: =SUM(N43:N54) -> 23590171.32 | P56: =SUM(P43:P54) -> 27993974.88
B58: ='5. Historical Wholesale'!B58 -> Add Extra Host Here (I) | D58: Network | H58: Line Connection | L58: Transformation Connection | P58: Total Connection
B60: Month | D60: Units Billed | E60: Rate | F60: Amount | H60: Units Billed | I60: Rate | J60: Amount | L60: Units Billed | M60: Rate | N60: Amount | P60: Amount
B62: January | D62: ='5. Historical Wholesale'!D62 -> 0 | E62: ='4. UTRs and Sub-Transmission'!L52 -> 0 | F62: =D62*E62 -> 0 | H62: ='5. Historical Wholesale'!H62 -> 0 | I62: ='4. UTRs and Sub-Transmission'!L54 -> 0 | J62: =H62*I62 -> 0 | L62: ='5. Historical Wholesale'!L62 -> 0 | M62: ='4. UTRs and Sub-Transmission'!L56 -> 0 | N62: =L62*M62 -> 0 | P62: =J62+N62 -> 0
B63: February | D63: ='5. Historical Wholesale'!D63 -> 0 | E63: =E62 -> 0 | F63: 0 | H63: ='5. Historical Wholesale'!H63 -> 0 | I63: =I62 -> 0 | J63: 0 | L63: ='5. Historical Wholesale'!L63 -> 0 | M63: =M62 -> 0 | N63: 0 | P63: 0
B64: March | D64: ='5. Historical Wholesale'!D64 -> 0 | E64: 0 | F64: 0 | H64: ='5. Historical Wholesale'!H64 -> 0 | I64: 0 | J64: 0 | L64: ='5. Historical Wholesale'!L64 -> 0 | M64: 0 | N64: 0 | P64: 0
B65: April | D65: ='5. Historical Wholesale'!D65 -> 0 | E65: 0 | F65: 0 | H65: ='5. Historical Wholesale'!H65 -> 0 | I65: 0 | J65: 0 | L65: ='5. Historical Wholesale'!L65 -> 0 | M65: 0 | N65: 0 | P65: 0
B66: May | D66: ='5. Historical Wholesale'!D66 -> 0 | E66: 0 | F66: 0 | H66: ='5. Historical Wholesale'!H66 -> 0 | I66: 0 | J66: 0 | L66: ='5. Historical Wholesale'!L66 -> 0 | M66: 0 | N66: 0 | P66: 0
B67: June | D67: ='5. Historical Wholesale'!D67 -> 0 | E67: 0 | F67: 0 | H67: ='5. Historical Wholesale'!H67 -> 0 | I67: 0 | J67: 0 | L67: ='5. Historical Wholesale'!L67 -> 0 | M67: 0 | N67: 0 | P67: 0
B68: July | D68: ='5. Historical Wholesale'!D68 -> 0 | E68: 0 | F68: 0 | H68: ='5. Historical Wholesale'!H68 -> 0 | I68: 0 | J68: 0 | L68: ='5. Historical Wholesale'!L68 -> 0 | M68: 0 | N68: 0 | P68: 0
B69: August | D69: ='5. Historical Wholesale'!D69 -> 0 | E69: 0 | F69: 0 | H69: ='5. Historical Wholesale'!H69 -> 0 | I69: 0 | J69: 0 | L69: ='5. Historical Wholesale'!L69 -> 0 | M69: 0 | N69: 0 | P69: 0
B70: September | D70: ='5. Historical Wholesale'!D70 -> 0 | E70: 0 | F70: 0 | H70: ='5. Historical Wholesale'!H70 -> 0 | I70: 0 | J70: 0 | L70: ='5. Historical Wholesale'!L70 -> 0 | M70: 0 | N70: 0 | P70: 0
B71: October | D71: ='5. Historical Wholesale'!D71 -> 0 | E71: 0 | F71: 0 | H71: ='5. Historical Wholesale'!H71 -> 0 | I71: 0 | J71: 0 | L71: ='5. Historical Wholesale'!L71 -> 0 | M71: 0 | N71: 0 | P71: 0
B72: November | D72: ='5. Historical Wholesale'!D72 -> 0 | E72: 0 | F72: 0 | H72: ='5. Historical Wholesale'!H72 -> 0 | I72: 0 | J72: 0 | L72: ='5. Historical Wholesale'!L72 -> 0 | M72: 0 | N72: 0 | P72: 0
B73: December | D73: ='5. Historical Wholesale'!D73 -> 0 | E73: 0 | F73: 0 | H73: ='5. Historical Wholesale'!H73 -> 0 | I73: 0 | J73: 0 | L73: ='5. Historical Wholesale'!L73 -> 0 | M73: 0 | N73: 0 | P73: 0
B75: Total | D75: =SUM(D62:D73) -> 0 | E75: =IF(D75<>0,F75/D75,0) -> 0 | F75: =SUM(F62:F73) -> 0 | H75: =SUM(H62:H73) -> 0 | I75: =IF(H75<>0,J75/H75,0) -> 0 | J75: =SUM(J62:J73) -> 0 | L75: =SUM(L62:L73) -> 0 | M75: =IF(L75<>0,N75/L75,0) -> 0 | N75: =SUM(N62:N73) -> 0 | P75: =SUM(P62:P73) -> 0
B77: ='5. Historical Wholesale'!B77 -> Add Extra Host Here (II) | D77: Network | H77: Line Connection | L77: Transformation Connection | P77: Total Connection
B79: Month | D79: Units Billed | E79: Rate | F79: Amount | H79: Units Billed | I79: Rate | J79: Amount | L79: Units Billed | M79: Rate | N79: Amount | P79: Amount
B81: January | D81: ='5. Historical Wholesale'!D81 -> 0 | E81: ='4. UTRs and Sub-Transmission'!L67 -> 0 | F81: =D81*E81 -> 0 | H81: ='5. Historical Wholesale'!H81 -> 0 | I81: ='4. UTRs and Sub-Transmission'!L69 -> 0 | J81: =H81*I81 -> 0 | L81: ='5. Historical Wholesale'!L81 -> 0 | M81: ='4. UTRs and Sub-Transmission'!L71 -> 0 | N81: =L81*M81 -> 0 | P81: =J81+N81 -> 0
B82: February | D82: ='5. Historical Wholesale'!D82 -> 0 | E82: =E81 -> 0 | F82: 0 | H82: ='5. Historical Wholesale'!H82 -> 0 | I82: =I81 -> 0 | J82: 0 | L82: ='5. Historical Wholesale'!L82 -> 0 | M82: =M81 -> 0 | N82: 0 | P82: 0
B83: March | D83: ='5. Historical Wholesale'!D83 -> 0 | E83: 0 | F83: 0 | H83: ='5. Historical Wholesale'!H83 -> 0 | I83: 0 | J83: 0 | L83: ='5. Historical Wholesale'!L83 -> 0 | M83: 0 | N83: 0 | P83: 0
B84: April | D84: ='5. Historical Wholesale'!D84 -> 0 | E84: 0 | F84: 0 | H84: ='5. Historical Wholesale'!H84 -> 0 | I84: 0 | J84: 0 | L84: ='5. Historical Wholesale'!L84 -> 0 | M84: 0 | N84: 0 | P84: 0
B85: May | D85: ='5. Historical Wholesale'!D85 -> 0 | E85: 0 | F85: 0 | H85: ='5. Historical Wholesale'!H85 -> 0 | I85: 0 | J85: 0 | L85: ='5. Historical Wholesale'!L85 -> 0 | M85: 0 | N85: 0 | P85: 0
B86: June | D86: ='5. Historical Wholesale'!D86 -> 0 | E86: 0 | F86: 0 | H86: ='5. Historical Wholesale'!H86 -> 0 | I86: 0 | J86: 0 | L86: ='5. Historical Wholesale'!L86 -> 0 | M86: 0 | N86: 0 | P86: 0
B87: July | D87: ='5. Historical Wholesale'!D87 -> 0 | E87: 0 | F87: 0 | H87: ='5. Historical Wholesale'!H87 -> 0 | I87: 0 | J87: 0 | L87: ='5. Historical Wholesale'!L87 -> 0 | M87: 0 | N87: 0 | P87: 0
B88: August | D88: ='5. Historical Wholesale'!D88 -> 0 | E88: 0 | F88: 0 | H88: ='5. Historical Wholesale'!H88 -> 0 | I88: 0 | J88: 0 | L88: ='5. Historical Wholesale'!L88 -> 0 | M88: 0 | N88: 0 | P88: 0
B89: September | D89: ='5. Historical Wholesale'!D89 -> 0 | E89: 0 | F89: 0 | H89: ='5. Historical Wholesale'!H89 -> 0 | I89: 0 | J89: 0 | L89: ='5. Historical Wholesale'!L89 -> 0 | M89: 0 | N89: 0 | P89: 0
B90: October | D90: ='5. Historical Wholesale'!D90 -> 0 | E90: 0 | F90: 0 | H90: ='5. Historical Wholesale'!H90 -> 0 | I90: 0 | J90: 0 | L90: ='5. Historical Wholesale'!L90 -> 0 | M90: 0 | N90: 0 | P90: 0
B91: November | D91: ='5. Historical Wholesale'!D91 -> 0 | E91: 0 | F91: 0 | H91: ='5. Historical Wholesale'!H91 -> 0 | I91: 0 | J91: 0 | L91: ='5. Historical Wholesale'!L91 -> 0 | M91: 0 | N91: 0 | P91: 0
B92: December | D92: ='5. Historical Wholesale'!D92 -> 0 | E92: 0 | F92: 0 | H92: ='5. Historical Wholesale'!H92 -> 0 | I92: 0 | J92: 0 | L92: ='5. Historical Wholesale'!L92 -> 0 | M92: 0 | N92: 0 | P92: 0
B94: Total | D94: =SUM(D81:D92) -> 0 | E94: =IF(D94<>0,F94/D94,0) -> 0 | F94: =SUM(F81:F92) -> 0 | H94: =SUM(H81:H92) -> 0 | I94: =IF(H94<>0,J94/H94,0) -> 0 | J94: =SUM(J81:J92) -> 0 | L94: =SUM(L81:L92) -> 0 | M94: =IF(L94<>0,N94/L94,0) -> 0 | N94: =SUM(N81:N92) -> 0 | P94: =SUM(P81:P92) -> 0
B96: Total | D96: Network | H96: Line Connection | L96: Transformation Connection | P96: Total Connection
B98: Month | D98: Units Billed | E98: Rate | F98: Amount | H98: Units Billed | I98: Rate | J98: Amount | L98: Units Billed | M98: Rate | N98: Amount | P98: Amount
B100: January | D100: =D24+D43+D62+D81 -> 4220520.091 | E100: =IF(D100<>0,F100/D100,0) -> 6.809762677 | F100: =F24+F43+F62+F81 -> 28740740.19 | H100: =H24+H43+H62+H81 -> 4345143.435 | I100: =IF(H100<>0,J100/H100,0) -> 1.078081535 | J100: =J24+J43+J62+J81 -> 4684418.903 | L100: =L24+L43+L62+L81 -> 3345874.775 | M100: =IF(L100<>0,N100/L100,0) -> 3.77265523 | N100: =N24+N43+N62+N81 -> 12622831.97 | P100: =J100+N100 -> 17307250.87
B101: February | D101: =D25+D44+D63+D82 -> 4088573.6 | E101: 6.807435888 | F101: 27832702.66 | H101: =H25+H44+H63+H82 -> 4211936.411 | I101: 1.079480014 | J101: =J25+J44+J63+J82 -> 4546701.176 | L101: =L25+L44+L63+L82 -> 3253912.437 | M101: 3.772045772 | N101: =N25+N44+N63+N82 -> 12273906.65 | P101: 16820607.83
B102: March | D102: 3903829.26 | E102: 6.804241515 | F102: 26562597.12 | H102: 4111207.232 | I102: 1.077574208 | J102: 4430130.875 | L102: 3188333.362 | M102: 3.772782707 | N102: 12028888.97 | P102: 16459019.84
B103: April | D103: 3781519.56 | E103: 6.80083085 | F103: 25717474.88 | H103: 4101350.136 | I103: 1.079161083 | J103: 4426017.455 | L103: 3162310.705 | M103: 3.772149607 | N103: 11928709.08 | P103: 16354726.54
B104: May | D104: 3830240.53 | E104: 6.803024287 | F104: 26057219.35 | H104: 3957574.403 | I104: 1.078105269 | J104: 4266681.816 | L104: 3004069.403 | M104: 3.772889619 | N104: 11334022.27 | P104: 15600704.08
B105: June | D105: 5905996.91 | E105: 6.810732507 | F105: 40224165.14 | H105: 6006579.225 | I105: 1.077381634 | J105: 6471378.14 | L105: 4508359.535 | M105: 3.77314292 | N105: 17010684.86 | P105: 23482063
B106: July | D106: 5654847.14 | E106: 6.81142207 | F106: 38517550.61 | H106: 5814045.139 | I106: 1.078980332 | J106: 6273240.354 | L106: 4394431.039 | M106: 3.772368708 | N106: 16577414.14 | P106: 22850654.49
B107: August | D107: 5491420.38 | E107: 6.81354644 | F107: 37416047.78 | H107: 5734942.349 | I107: 1.079229003 | J107: 6189316.114 | L107: 4345119.688 | M107: 3.772194806 | N107: 16390637.92 | P107: 22579954.03
B108: September | D108: 4365016.6 | E108: 6.806751943 | F108: 29711585.22 | H108: 4429837.554 | I108: 1.078332106 | J108: 4776836.058 | L108: 3400543.774 | M108: 3.772515961 | N108: 12828605.66 | P108: 17605441.72
B109: October | D109: 4322119.07 | E109: 6.807185281 | F109: 29421465.32 | H109: 4424462.78 | I109: 1.078434255 | J109: 4771492.221 | L109: 3411926.725 | M109: 3.772389935 | N109: 12871118.04 | P109: 17642610.26
B110: November | D110: 3934731.03 | E110: 6.808824576 | F110: 26790893.34 | H110: 4105712.82 | I110: 1.078777571 | J110: 4429150.902 | L110: 3152336.843 | M110: 3.772399254 | N110: 11891873.15 | P110: 16321024.06
B111: December | D111: 4104020.73 | E111: 6.804421862 | F111: 27925488.38 | H111: 4362465.784 | I111: 1.078002371 | J111: 4702748.457 | L111: 3361883.144 | M111: 3.772920448 | N111: 12684117.66 | P111: 17386866.12
B113: Total | D113: =SUM(D100:D111) -> 53602834.9 | E113: =IF(D113<>0,F113/D113,0) -> 6.807810271 | F113: =SUM(F100:F111) -> 364917930 | H113: =SUM(H100:H111) -> 55605257.27 | I113: =IF(H113<>0,J113/H113,0) -> 1.0784612 | J113: =SUM(J100:J111) -> 59968112.47 | L113: =SUM(L100:L111) -> 42529101.43 | M113: =IF(L113<>0,N113/L113,0) -> 3.772541741 | N113: =SUM(N100:N111) -> 160442810.4 | P113: =SUM(P100:P111) -> 220410922.8
N115: Low Voltage Switchgear Credit (if applicable) | P115: ='4. UTRs and Sub-Transmission'!L76 -> 0
N117: Total including deduction for Low Voltage Switchgear Credit | P117: =P113+P115 -> 220410922.8

Sheet 7. Forecast Wholesale - 31
B13: The purpose of this sheet is to calculate the expected billing when forecasted 2027 Uniform Transmission Rates and Hydro One Sub-transmission Rates are applied against historical 2025 transmission units.
B20: IESO | D20: Network | H20: Line Connection | L20: Transformation Connection | P20: Total Connection
B22: Month | D22: Units Billed | E22: Rate | F22: Amount | H22: Units Billed | I22: Rate | J22: Amount | L22: Units Billed | M22: Rate | N22: Amount | P22: Amount
B24: January | D24: ='5. Historical Wholesale'!D24 -> 3766732 | E24: ='4. UTRs and Sub-Transmission'!Q22 -> 7.055076332 | F24: =D24*E24 -> 26574581.78 | H24: ='5. Historical Wholesale'!H24 -> 3889756 | I24: ='4. UTRs and Sub-Transmission'!Q24 -> 1.137203227 | J24: =H24*I24 -> 4423443.077 | L24: ='5. Historical Wholesale'!L24 -> 2863167 | M24: ='4. UTRs and Sub-Transmission'!Q26 -> 3.831160387 | N24: =L24*M24 -> 10969251.99 | P24: =J24+N24 -> 15392695.07
B25: February | D25: ='5. Historical Wholesale'!D25 -> 3639411 | E25: =E24 -> 7.055076332 | F25: 25676322.41 | H25: ='5. Historical Wholesale'!H25 -> 3787274 | I25: =I24 -> 1.137203227 | J25: 4306900.215 | L25: ='5. Historical Wholesale'!L25 -> 2801691 | M25: =M24 -> 3.831160387 | N25: 10733727.58 | P25: 15040627.79
B26: March | D26: ='5. Historical Wholesale'!D26 -> 3462429 | E26: 7.055076332 | F26: 24427700.89 | H26: ='5. Historical Wholesale'!H26 -> 3674401 | I26: 1.137203227 | J26: 4178540.676 | L26: ='5. Historical Wholesale'!L26 -> 2724825 | M26: 3.831160387 | N26: 10439241.6 | P26: 14617782.28
B27: April | D27: ='5. Historical Wholesale'!D27 -> 3340986 | E27: 7.055076332 | F27: 23570911.26 | H27: ='5. Historical Wholesale'!H27 -> 3684114.59 | I27: 1.137203227 | J27: 4189587.001 | L27: ='5. Historical Wholesale'!L27 -> 2719968.799 | M27: 3.831160387 | N27: 10420636.72 | P27: 14610223.72
B28: May | D28: ='5. Historical Wholesale'!D28 -> 3392475 | E28: 7.055076332 | F28: 23934170.08 | H28: ='5. Historical Wholesale'!H28 -> 3543073 | I28: 1.137203227 | J28: 4029194.05 | L28: ='5. Historical Wholesale'!L28 -> 2564560 | M28: 3.831160387 | N28: 9825240.682 | P28: 13854434.73
B29: June | D29: ='5. Historical Wholesale'!D29 -> 5276744 | E29: 7.055076332 | F29: 37227831.71 | H29: ='5. Historical Wholesale'!H29 -> 5365102 | I29: 1.137203227 | J29: 6101211.309 | L29: ='5. Historical Wholesale'!L29 -> 3838850 | M29: 3.831160387 | N29: 14707250.05 | P29: 20808461.36
B30: July | D30: ='5. Historical Wholesale'!D30 -> 5056272 | E30: 7.055076332 | F30: 35672384.92 | H30: ='5. Historical Wholesale'!H30 -> 5219584 | I30: 1.137203227 | J30: 5935727.77 | L30: ='5. Historical Wholesale'!L30 -> 3771381 | M30: 3.831160387 | N30: 14448765.49 | P30: 20384493.26
B31: August | D31: ='5. Historical Wholesale'!D31 -> 4921869 | E31: 7.055076332 | F31: 34724161.49 | H31: ='5. Historical Wholesale'!H31 -> 5152628 | I31: 1.137203227 | J31: 5859585.191 | L31: ='5. Historical Wholesale'!L31 -> 3735622 | M31: 3.831160387 | N31: 14311767.03 | P31: 20171352.22
B32: September | D32: ='5. Historical Wholesale'!D32 -> 3882484 | E32: 7.055076332 | F32: 27391220.98 | H32: ='5. Historical Wholesale'!H32 -> 3968733 | I32: 1.137203227 | J32: 4513255.976 | L32: ='5. Historical Wholesale'!L32 -> 2914061 | M32: 3.831160387 | N32: 11164235.07 | P32: 15677491.04
B33: October | D33: ='5. Historical Wholesale'!D33 -> 3846211 | E33: 7.055076332 | F33: 27135312.2 | H33: ='5. Historical Wholesale'!H33 -> 3965204 | I33: 1.137203227 | J33: 4509242.786 | L33: ='5. Historical Wholesale'!L33 -> 2927549 | M33: 3.831160387 | N33: 11215909.76 | P33: 15725152.55
B34: November | D34: ='5. Historical Wholesale'!D34 -> 3507961 | E34: 7.055076332 | F34: 24748932.63 | H34: ='5. Historical Wholesale'!H34 -> 3683552 | I34: 1.137203227 | J34: 4188947.222 | L34: ='5. Historical Wholesale'!L34 -> 2704557 | M34: 3.831160387 | N34: 10361591.64 | P34: 14550538.87
B35: December | D35: ='5. Historical Wholesale'!D35 -> 3640729 | E35: 7.055076332 | F35: 25685621 | H35: ='5. Historical Wholesale'!H35 -> 3904280 | I35: 1.137203227 | J35: 4439959.816 | L35: ='5. Historical Wholesale'!L35 -> 2869124 | M35: 3.831160387 | N35: 10992074.21 | P35: 15432034.03
B37: Total | D37: =SUM(D24:D35) -> 47734303 | E37: =IF(D37<>0,F37/D37,0) -> 7.055076332 | F37: =SUM(F24:F35) -> 336769151.3 | H37: =SUM(H24:H35) -> 49837701.59 | I37: =IF(H37<>0,J37/H37,0) -> 1.137203227 | J37: =SUM(J24:J35) -> 56675595.09 | L37: =SUM(L24:L35) -> 36435355.8 | M37: =IF(L37<>0,N37/L37,0) -> 3.831160387 | N37: =SUM(N24:N35) -> 139589691.8 | P37: =SUM(P24:P35) -> 196265286.9
B39: Hydro One | D39: Network | H39: Line Connection | L39: Transformation Connection | P39: Total Connection
B41: Month | D41: Units Billed | E41: Rate | F41: Amount | H41: Units Billed | I41: Rate | J41: Amount | L41: Units Billed | M41: Rate | N41: Amount | P41: Amount
B43: January | D43: ='5. Historical Wholesale'!D43 -> 453788.0905 | E43: ='4. UTRs and Sub-Transmission'!Q35 -> 6.040205258 | F43: =D43*E43 -> 2740973.211 | H43: ='5. Historical Wholesale'!H43 -> 455387.4352 | I43: ='4. UTRs and Sub-Transmission'!Q37 -> 0.7788185986 | J43: =H43*I43 -> 354664.2041 | L43: ='5. Historical Wholesale'!L43 -> 482707.7752 | M43: ='4. UTRs and Sub-Transmission'!Q39 -> 3.948634585 | N43: =L43*M43 -> 1906036.616 | P43: =J43+N43 -> 2260700.82
B44: February | D44: ='5. Historical Wholesale'!D44 -> 449162.6004 | E44: =E43 -> 6.040205258 | F44: 2713034.301 | H44: ='5. Historical Wholesale'!H44 -> 424662.4113 | I44: =I43 -> 0.7788185986 | J44: 330734.9841 | L44: ='5. Historical Wholesale'!L44 -> 452221.4372 | M44: =M43 -> 3.948634585 | N44: 1785657.207 | P44: 2116392.191
B45: March | D45: ='5. Historical Wholesale'!D45 -> 441400.26 | E45: 6.040205258 | F45: 2666148.171 | H45: ='5. Historical Wholesale'!H45 -> 436806.2316 | I45: 0.7788185986 | J45: 340192.8172 | L45: ='5. Historical Wholesale'!L45 -> 463508.3616 | M45: 3.948634585 | N45: 1830225.147 | P45: 2170417.964
B46: April | D46: ='5. Historical Wholesale'!D46 -> 440533.56 | E46: 6.040205258 | F46: 2660913.126 | H46: ='5. Historical Wholesale'!H46 -> 417235.5457 | I46: 0.7788185986 | J46: 324950.803 | L46: ='5. Historical Wholesale'!L46 -> 442341.9057 | M46: 3.948634585 | N46: 1746646.547 | P46: 2071597.35
B47: May | D47: ='5. Historical Wholesale'!D47 -> 437765.53 | E47: 6.040205258 | F47: 2644193.656 | H47: ='5. Historical Wholesale'!H47 -> 414501.4032 | I47: 0.7788185986 | J47: 322821.4019 | L47: ='5. Historical Wholesale'!L47 -> 439509.4032 | M47: 3.948634585 | N47: 1735462.03 | P47: 2058283.432
B48: June | D48: ='5. Historical Wholesale'!D48 -> 629252.91 | E48: 6.040205258 | F48: 3800816.736 | H48: ='5. Historical Wholesale'!H48 -> 641477.225 | I48: 0.7788185986 | J48: 499594.3934 | L48: ='5. Historical Wholesale'!L48 -> 669509.535 | M48: 3.948634585 | N48: 2643648.505 | P48: 3143242.898
B49: July | D49: ='5. Historical Wholesale'!D49 -> 598575.14 | E49: 6.040205258 | F49: 3615516.708 | H49: ='5. Historical Wholesale'!H49 -> 594461.1386 | I49: 0.7788185986 | J49: 462977.3909 | L49: ='5. Historical Wholesale'!L49 -> 623050.0386 | M49: 3.948634585 | N49: 2460196.93 | P49: 2923174.321
B50: August | D50: ='5. Historical Wholesale'!D50 -> 569551.38 | E50: 6.040205258 | F50: 3440207.24 | H50: ='5. Historical Wholesale'!H50 -> 582314.349 | I50: 0.7788185986 | J50: 453517.2452 | L50: ='5. Historical Wholesale'!L50 -> 609497.6876 | M50: 3.948634585 | N50: 2406683.649 | P50: 2860200.894
B51: September | D51: ='5. Historical Wholesale'!D51 -> 482532.6 | E51: 6.040205258 | F51: 2914595.948 | H51: ='5. Historical Wholesale'!H51 -> 461104.5544 | I51: 0.7788185986 | J51: 359116.8028 | L51: ='5. Historical Wholesale'!L51 -> 486482.7743 | M51: 3.948634585 | N51: 1920942.707 | P51: 2280059.51
B52: October | D52: ='5. Historical Wholesale'!D52 -> 475908.07 | E52: 6.040205258 | F52: 2874582.427 | H52: ='5. Historical Wholesale'!H52 -> 459258.7799 | I52: 0.7788185986 | J52: 357679.2793 | L52: ='5. Historical Wholesale'!L52 -> 484377.7249 | M52: 3.948634585 | N52: 1912630.637 | P52: 2270309.916
B53: November | D53: ='5. Historical Wholesale'!D53 -> 426770.03 | E53: 6.040205258 | F53: 2577778.579 | H53: ='5. Historical Wholesale'!H53 -> 422160.8197 | I53: 0.7788185986 | J53: 328786.698 | L53: ='5. Historical Wholesale'!L53 -> 447779.8429 | M53: 3.948634585 | N53: 1768118.974 | P53: 2096905.672
B54: December | D54: ='5. Historical Wholesale'!D54 -> 463291.73 | E54: 6.040205258 | F54: 2798377.144 | H54: ='5. Historical Wholesale'!H54 -> 458185.7843 | I54: 0.7788185986 | J54: 356843.6104 | L54: ='5. Historical Wholesale'!L54 -> 492759.1443 | M54: 3.948634585 | N54: 1945725.799 | P54: 2302569.409
B56: Total | D56: =SUM(D43:D54) -> 5868531.901 | E56: =IF(D56<>0,F56/D56,0) -> 6.040205258 | F56: =SUM(F43:F54) -> 35447137.25 | H56: =SUM(H43:H54) -> 5767555.678 | I56: =IF(H56<>0,J56/H56,0) -> 0.7788185986 | J56: =SUM(J43:J54) -> 4491879.63 | L56: =SUM(L43:L54) -> 6093745.631 | M56: =IF(L56<>0,N56/L56,0) -> 3.948634585 | N56: =SUM(N43:N54) -> 24061974.75 | P56: =SUM(P43:P54) -> 28553854.38
B58: ='5. Historical Wholesale'!B58 -> Add Extra Host Here (I) | D58: Network | H58: Line Connection | L58: Transformation Connection | P58: Total Connection
B60: Month | D60: Units Billed | E60: Rate | F60: Amount | H60: Units Billed | I60: Rate | J60: Amount | L60: Units Billed | M60: Rate | N60: Amount | P60: Amount
B62: January | D62: ='5. Historical Wholesale'!D62 -> 0 | E62: ='4. UTRs and Sub-Transmission'!L52 -> 0 | F62: =D62*E62 -> 0 | H62: ='5. Historical Wholesale'!H62 -> 0 | I62: ='4. UTRs and Sub-Transmission'!L54 -> 0 | J62: =H62*I62 -> 0 | L62: ='5. Historical Wholesale'!L62 -> 0 | M62: ='4. UTRs and Sub-Transmission'!L56 -> 0 | N62: =L62*M62 -> 0 | P62: =J62+N62 -> 0
B63: February | D63: ='5. Historical Wholesale'!D63 -> 0 | E63: =E62 -> 0 | F63: 0 | H63: ='5. Historical Wholesale'!H63 -> 0 | I63: =I62 -> 0 | J63: 0 | L63: ='5. Historical Wholesale'!L63 -> 0 | M63: =M62 -> 0 | N63: 0 | P63: 0
B64: March | D64: ='5. Historical Wholesale'!D64 -> 0 | E64: 0 | F64: 0 | H64: ='5. Historical Wholesale'!H64 -> 0 | I64: 0 | J64: 0 | L64: ='5. Historical Wholesale'!L64 -> 0 | M64: 0 | N64: 0 | P64: 0
B65: April | D65: ='5. Historical Wholesale'!D65 -> 0 | E65: 0 | F65: 0 | H65: ='5. Historical Wholesale'!H65 -> 0 | I65: 0 | J65: 0 | L65: ='5. Historical Wholesale'!L65 -> 0 | M65: 0 | N65: 0 | P65: 0
B66: May | D66: ='5. Historical Wholesale'!D66 -> 0 | E66: 0 | F66: 0 | H66: ='5. Historical Wholesale'!H66 -> 0 | I66: 0 | J66: 0 | L66: ='5. Historical Wholesale'!L66 -> 0 | M66: 0 | N66: 0 | P66: 0
B67: June | D67: ='5. Historical Wholesale'!D67 -> 0 | E67: 0 | F67: 0 | H67: ='5. Historical Wholesale'!H67 -> 0 | I67: 0 | J67: 0 | L67: ='5. Historical Wholesale'!L67 -> 0 | M67: 0 | N67: 0 | P67: 0
B68: July | D68: ='5. Historical Wholesale'!D68 -> 0 | E68: 0 | F68: 0 | H68: ='5. Historical Wholesale'!H68 -> 0 | I68: 0 | J68: 0 | L68: ='5. Historical Wholesale'!L68 -> 0 | M68: 0 | N68: 0 | P68: 0
B69: August | D69: ='5. Historical Wholesale'!D69 -> 0 | E69: 0 | F69: 0 | H69: ='5. Historical Wholesale'!H69 -> 0 | I69: 0 | J69: 0 | L69: ='5. Historical Wholesale'!L69 -> 0 | M69: 0 | N69: 0 | P69: 0
B70: September | D70: ='5. Historical Wholesale'!D70 -> 0 | E70: 0 | F70: 0 | H70: ='5. Historical Wholesale'!H70 -> 0 | I70: 0 | J70: 0 | L70: ='5. Historical Wholesale'!L70 -> 0 | M70: 0 | N70: 0 | P70: 0
B71: October | D71: ='5. Historical Wholesale'!D71 -> 0 | E71: 0 | F71: 0 | H71: ='5. Historical Wholesale'!H71 -> 0 | I71: 0 | J71: 0 | L71: ='5. Historical Wholesale'!L71 -> 0 | M71: 0 | N71: 0 | P71: 0
B72: November | D72: ='5. Historical Wholesale'!D72 -> 0 | E72: 0 | F72: 0 | H72: ='5. Historical Wholesale'!H72 -> 0 | I72: 0 | J72: 0 | L72: ='5. Historical Wholesale'!L72 -> 0 | M72: 0 | N72: 0 | P72: 0
B73: December | D73: ='5. Historical Wholesale'!D73 -> 0 | E73: 0 | F73: 0 | H73: ='5. Historical Wholesale'!H73 -> 0 | I73: 0 | J73: 0 | L73: ='5. Historical Wholesale'!L73 -> 0 | M73: 0 | N73: 0 | P73: 0
B75: Total | D75: =SUM(D62:D73) -> 0 | E75: =IF(D75<>0,F75/D75,0) -> 0 | F75: =SUM(F62:F73) -> 0 | H75: =SUM(H62:H73) -> 0 | I75: =IF(H75<>0,J75/H75,0) -> 0 | J75: =SUM(J62:J73) -> 0 | L75: =SUM(L62:L73) -> 0 | M75: =IF(L75<>0,N75/L75,0) -> 0 | N75: =SUM(N62:N73) -> 0 | P75: =SUM(P62:P73) -> 0
B77: ='5. Historical Wholesale'!B77 -> Add Extra Host Here (II) | D77: Network | H77: Line Connection | L77: Transformation Connection | P77: Total Connection
B79: Month | D79: Units Billed | E79: Rate | F79: Amount | H79: Units Billed | I79: Rate | J79: Amount | L79: Units Billed | M79: Rate | N79: Amount | P79: Amount
B81: January | D81: ='5. Historical Wholesale'!D81 -> 0 | E81: ='4. UTRs and Sub-Transmission'!L67 -> 0 | F81: =D81*E81 -> 0 | H81: ='5. Historical Wholesale'!H81 -> 0 | I81: ='4. UTRs and Sub-Transmission'!L69 -> 0 | J81: =H81*I81 -> 0 | L81: ='5. Historical Wholesale'!L81 -> 0 | M81: ='4. UTRs and Sub-Transmission'!L71 -> 0 | N81: =L81*M81 -> 0 | P81: =J81+N81 -> 0
B82: February | D82: ='5. Historical Wholesale'!D82 -> 0 | E82: =E81 -> 0 | F82: 0 | H82: ='5. Historical Wholesale'!H82 -> 0 | I82: =I81 -> 0 | J82: 0 | L82: ='5. Historical Wholesale'!L82 -> 0 | M82: =M81 -> 0 | N82: 0 | P82: 0
B83: March | D83: ='5. Historical Wholesale'!D83 -> 0 | E83: 0 | F83: 0 | H83: ='5. Historical Wholesale'!H83 -> 0 | I83: 0 | J83: 0 | L83: ='5. Historical Wholesale'!L83 -> 0 | M83: 0 | N83: 0 | P83: 0
B84: April | D84: ='5. Historical Wholesale'!D84 -> 0 | E84: 0 | F84: 0 | H84: ='5. Historical Wholesale'!H84 -> 0 | I84: 0 | J84: 0 | L84: ='5. Historical Wholesale'!L84 -> 0 | M84: 0 | N84: 0 | P84: 0
B85: May | D85: ='5. Historical Wholesale'!D85 -> 0 | E85: 0 | F85: 0 | H85: ='5. Historical Wholesale'!H85 -> 0 | I85: 0 | J85: 0 | L85: ='5. Historical Wholesale'!L85 -> 0 | M85: 0 | N85: 0 | P85: 0
B86: June | D86: ='5. Historical Wholesale'!D86 -> 0 | E86: 0 | F86: 0 | H86: ='5. Historical Wholesale'!H86 -> 0 | I86: 0 | J86: 0 | L86: ='5. Historical Wholesale'!L86 -> 0 | M86: 0 | N86: 0 | P86: 0
B87: July | D87: ='5. Historical Wholesale'!D87 -> 0 | E87: 0 | F87: 0 | H87: ='5. Historical Wholesale'!H87 -> 0 | I87: 0 | J87: 0 | L87: ='5. Historical Wholesale'!L87 -> 0 | M87: 0 | N87: 0 | P87: 0
B88: August | D88: ='5. Historical Wholesale'!D88 -> 0 | E88: 0 | F88: 0 | H88: ='5. Historical Wholesale'!H88 -> 0 | I88: 0 | J88: 0 | L88: ='5. Historical Wholesale'!L88 -> 0 | M88: 0 | N88: 0 | P88: 0
B89: September | D89: ='5. Historical Wholesale'!D89 -> 0 | E89: 0 | F89: 0 | H89: ='5. Historical Wholesale'!H89 -> 0 | I89: 0 | J89: 0 | L89: ='5. Historical Wholesale'!L89 -> 0 | M89: 0 | N89: 0 | P89: 0
B90: October | D90: ='5. Historical Wholesale'!D90 -> 0 | E90: 0 | F90: 0 | H90: ='5. Historical Wholesale'!H90 -> 0 | I90: 0 | J90: 0 | L90: ='5. Historical Wholesale'!L90 -> 0 | M90: 0 | N90: 0 | P90: 0
B91: November | D91: ='5. Historical Wholesale'!D91 -> 0 | E91: 0 | F91: 0 | H91: ='5. Historical Wholesale'!H91 -> 0 | I91: 0 | J91: 0 | L91: ='5. Historical Wholesale'!L91 -> 0 | M91: 0 | N91: 0 | P91: 0
B92: December | D92: ='5. Historical Wholesale'!D92 -> 0 | E92: 0 | F92: 0 | H92: ='5. Historical Wholesale'!H92 -> 0 | I92: 0 | J92: 0 | L92: ='5. Historical Wholesale'!L92 -> 0 | M92: 0 | N92: 0 | P92: 0
B94: Total | D94: =SUM(D81:D92) -> 0 | E94: =IF(D94<>0,F94/D94,0) -> 0 | F94: =SUM(F81:F92) -> 0 | H94: =SUM(H81:H92) -> 0 | I94: =IF(H94<>0,J94/H94,0) -> 0 | J94: =SUM(J81:J92) -> 0 | L94: =SUM(L81:L92) -> 0 | M94: =IF(L94<>0,N94/L94,0) -> 0 | N94: =SUM(N81:N92) -> 0 | P94: =SUM(P81:P92) -> 0
B96: Total | D96: Network | H96: Line Connection | L96: Transformation Connection | P96: Total Connection
B98: Month | D98: Units Billed | E98: Rate | F98: Amount | H98: Units Billed | I98: Rate | J98: Amount | L98: Units Billed | M98: Rate | N98: Amount | P98: Amount
B100: January | D100: =D24+D43+D62+D81 -> 4220520.091 | E100: =IF(D100<>0,F100/D100,0) -> 6.945957931 | F100: =F24+F43+F62+F81 -> 29315554.99 | H100: =H24+H43+H62+H81 -> 4345143.435 | I100: =IF(H100<>0,J100/H100,0) -> 1.099643165 | J100: =J24+J43+J62+J81 -> 4778107.281 | L100: =L24+L43+L62+L81 -> 3345874.775 | M100: =IF(L100<>0,N100/L100,0) -> 3.848108334 | N100: =N24+N43+N62+N81 -> 12875288.61 | P100: =J100+N100 -> 17653395.89
B101: February | D101: =D25+D44+D63+D82 -> 4088573.6 | E101: 6.943584606 | F101: 28389356.71 | H101: =H25+H44+H63+H82 -> 4211936.411 | I101: 1.101069614 | J101: =J25+J44+J63+J82 -> 4637635.2 | L101: =L25+L44+L63+L82 -> 3253912.437 | M101: 3.847486687 | N101: =N25+N44+N63+N82 -> 12519384.78 | P101: 17157019.98
B102: March | D102: 3903829.26 | E102: 6.940326346 | F102: 27093849.06 | H102: 4111207.232 | I102: 1.099125692 | J102: 4518733.493 | L102: 3188333.362 | M102: 3.848238361 | N102: 12269466.75 | P102: 16788200.24
B103: April | D103: 3781519.56 | E103: 6.936847467 | F103: 26231824.38 | H103: 4101350.136 | I103: 1.100744305 | J103: 4514537.804 | L103: 3162310.705 | M103: 3.847592599 | N103: 12167283.27 | P103: 16681821.07
B104: May | D104: 3830240.53 | E104: 6.939084773 | F104: 26578363.74 | H104: 3957574.403 | I104: 1.099667374 | J104: 4352015.452 | L104: 3004069.403 | M104: 3.848347412 | N104: 11560702.71 | P104: 15912718.16
B105: June | D105: 5905996.91 | E105: 6.946947157 | F105: 41028648.44 | H105: 6006579.225 | I105: 1.098929267 | J105: 6600805.703 | L105: 4508359.535 | M105: 3.848605778 | N105: 17350898.56 | P105: 23951704.26
B106: July | D106: 5654847.14 | E106: 6.947650512 | F106: 39287901.63 | H106: 5814045.139 | I106: 1.100559939 | J106: 6398705.161 | L106: 4394431.039 | M106: 3.847816082 | N106: 16908962.42 | P106: 23307667.58
B107: August | D107: 5491420.38 | E107: 6.949817368 | F107: 38164368.73 | H107: 5734942.349 | I107: 1.100813583 | J107: 6313102.436 | L107: 4345119.688 | M107: 3.847638702 | N107: 16718450.68 | P107: 23031553.11
B108: September | D108: 4365016.6 | E108: 6.942886982 | F108: 30305816.93 | H108: 4429837.554 | I108: 1.099898748 | J108: 4872372.779 | L108: 3400543.774 | M108: 3.84796628 | N108: 13085177.78 | P108: 17957550.55
B109: October | D109: 4322119.07 | E109: 6.943328987 | F109: 30009894.62 | H109: 4424462.78 | I109: 1.10000294 | J109: 4866922.065 | L109: 3411926.725 | M109: 3.847837734 | N109: 13128540.4 | P109: 17995462.46
B110: November | D110: 3934731.03 | E110: 6.945001068 | F110: 27326711.21 | H110: 4105712.82 | I110: 1.100353122 | J110: 4517733.92 | L110: 3152336.843 | M110: 3.847847239 | N110: 12129710.62 | P110: 16647444.54
B111: December | D111: 4104020.73 | E111: 6.940510299 | F111: 28483998.14 | H111: 4362465.784 | I111: 1.099562418 | J111: 4796803.427 | L111: 3361883.144 | M111: 3.848378857 | N111: 12937800.01 | P111: 17734603.44
B113: Total | D113: =SUM(D100:D111) -> 53602834.9 | E113: =IF(D113<>0,F113/D113,0) -> 6.943966476 | F113: =SUM(F100:F111) -> 372216288.6 | H113: =SUM(H100:H111) -> 55605257.27 | I113: =IF(H113<>0,J113/H113,0) -> 1.100030424 | J113: =SUM(J100:J111) -> 61167474.72 | L113: =SUM(L100:L111) -> 42529101.43 | M113: =IF(L113<>0,N113/L113,0) -> 3.847992576 | N113: =SUM(N100:N111) -> 163651666.6 | P113: =SUM(P100:P111) -> 224819141.3
N115: Low Voltage Switchgear Credit (if applicable) | P115: ='4. UTRs and Sub-Transmission'!L76 -> 0
N117: Total including deduction for Low Voltage Switchgear Credit | P117: =P113+P115 -> 224819141.3

Sheet 8. 2027 RTSR Rates to Forecast
A13: The purpose of this sheet is to re-align the current RTS Network Rates to recover current wholesale network costs.
A15: Rate Class | B15: Rate Description | C15: Unit | D15: Current RTSR-Network | E15: Loss Adjusted Billed kWh | F15: Billed kW | G15: Billed Amount | H15: Billed Amount % | I15: Current Wholesale Billing | J15: Adjusted RTSR Network
A17: RESIDENTIAL SERVICE CLASSIFICATION | B17: Retail Transmission Rate - Network Service Rate | C17: $/kWh | D17: 0.0127074273 | E17: 8588848247 | G17: =ROUND(D17*E17, 2) -> 109142164.7 | H17: =G17/327674099.56 -> 0.3330814515 | I17: =H17*total_current_wholesale_network -> 112291003.8 | J17: =IF(ISERROR(I17/E17), 0, I17/E17) -> 0.01307404678
A18: GENERAL SERVICE LESS THAN 50 KW SERVICE CLASSIFICATION | B18: Retail Transmission Rate - Network Service Rate | C18: $/kWh | D18: 0.01146971084 | E18: 2898800092 | G18: =ROUND(D18*E18, 2) -> 33248398.83 | H18: =G18/327674099.56 -> 0.101467888 | I18: 34207641.84 | J18: =IF(ISERROR(I18/E18), 0, I18/E18) -> 0.01180062121
A19: GENERAL SERVICE 50 to 4,999 kW SERVICE CLASSIFICATION | B19: Retail Transmission Rate - Network Service Rate | C19: $/kW | D19: 4.663197871 | E19: 0 | F19: 33652794.09 | G19: =ROUND(D19*F19, 2) -> 156929637.8 | H19: 0.4789198718 | I19: 161457183.8 | J19: =IF(ISERROR(I19/F19), 0, I19/F19) -> 4.797734875
A20: GENERAL SERVICE 50 to 4,999 kW SERVICE CLASSIFICATION | B20: Retail Transmission Rate - Network Service Rate - EV CHARGING | C20: $/kW | D20: 0.8129418641 | E20: 0 | F20: 153743.54 | G20: =ROUND(D20*F20, 2) -> 124984.56 | H20: 0.0003814294757 | I20: 128590.4649 | J20: =IF(ISERROR(I20/F20), 0, I20/F20) -> 0.8363958898
A21: LARGE USE SERVICE CLASSIFICATION | B21: Retail Transmission Rate - Network Service Rate | C21: $/kW | D21: 5.180165238 | E21: 0 | F21: 3575954.698 | G21: =ROUND(D21*F21, 2) -> 18524036.22 | H21: 0.05653189021 | I21: 19058469.54 | J21: =IF(ISERROR(I21/F21), 0, I21/F21) -> 5.329617165
A22: LARGE USE WITH DEDICATED ASSETS SERVICE CLASSIFICATION | B22: Retail Transmission Rate - Network Service Rate | C22: $/kW | D22: 5.065047222 | E22: 0 | F22: 1601505.341 | G22: =ROUND(D22*F22, 2) -> 8111700.18 | H22: 0.02475539016 | I22: 8345729.245 | J22: =IF(ISERROR(I22/F22), 0, I22/F22) -> 5.211177902
A23: UNMETERED SCATTERED LOAD SERVICE CLASSIFICATION | B23: Retail Transmission Rate - Network Service Rate | C23: $/kWh | D23: 0.0113420331 | E23: 48174769.47 | G23: =ROUND(D23*E23, 2) -> 546399.83 | H23: 0.001667509976 | I23: 562163.9039 | J23: =IF(ISERROR(I23/E23), 0, I23/E23) -> 0.01166925986
A24: SENTINEL LIGHTING SERVICE CLASSIFICATION | B24: Retail Transmission Rate - Network Service Rate | C24: $/kW | D24: 3.622098678 | E24: 0 | F24: 1987.753686 | G24: =ROUND(D24*F24, 2) -> 7199.84 | H24: 2.197256362e-05 | I24: 7407.561166 | J24: =IF(ISERROR(I24/F24), 0, I24/F24) -> 3.726599134
A25: STREET LIGHTING SERVICE CLASSIFICATION | B25: Retail Transmission Rate - Network Service Rate | C25: $/kW | D25: 3.967563023 | E25: 0 | F25: 262019.1876 | G25: =ROUND(D25*F25, 2) -> 1039577.64 | H25: 0.003172596313 | I25: 1069570.29 | J25: =IF(ISERROR(I25/F25), 0, I25/F25) -> 4.082030403
A27: The purpose of this table is to re-align the current RTS Connection Rates to recover current wholesale connection costs.
A28: Rate Class | B28: Rate Description | C28: Unit | D28: Current RTSR-Connection | E28: Loss Adjusted Billed kWh | F28: Billed kW | G28: Billed Amount | H28: Billed Amount % | I28: Current Wholesale Billing | J28: Adjusted RTSR-Connection
A30: RESIDENTIAL SERVICE CLASSIFICATION | B30: Retail Transmission Rate - Line and Transformation Connection Service Rate | C30: $/kWh | D30: 0.007607656956 | E30: 8588848247 | G30: =ROUND(D30*E30, 2) -> 65341011.11 | H30: =G30/197974054.65 -> 0.3300483552 | I30: =H30*Total_Current_Wholesale_Lineplus -> 67206301.92 | J30: =IF(ISERROR(I30/E30), 0, I30/E30) -> 0.007824832851
A31: GENERAL SERVICE LESS THAN 50 KW SERVICE CLASSIFICATION | B31: Retail Transmission Rate - Line and Transformation Connection Service Rate | C31: $/kWh | D31: 0.006792031625 | E31: 2898800092 | G31: =ROUND(D31*E31, 2) -> 19688741.9 | H31: =G31/197974054.65 -> 0.09945112219 | I31: 20250796.71 | J31: =IF(ISERROR(I31/E31), 0, I31/E31) -> 0.006985923852
A32: GENERAL SERVICE 50 to 4,999 kW SERVICE CLASSIFICATION | B32: Retail Transmission Rate - Line and Transformation Connection Service Rate | C32: $/kW | D32: 2.773265071 | E32: 0 | F32: 33652794.09 | G32: =ROUND(D32*F32, 2) -> 93328118.41 | H32: 0.4714159064 | I32: 95992357.58 | J32: =IF(ISERROR(I32/F32), 0, I32/F32) -> 2.85243351
A33: GENERAL SERVICE 50 to 4,999 kW SERVICE CLASSIFICATION | B33: Retail Transmission Rate - Line and Transformation Connection Service Rate - EV CHARGING | C33: $/kW | D33: 0.4269120511 | E33: 0 | F33: 153743.54 | G33: =ROUND(D33*F33, 2) -> 65634.97 | H33: 0.0003315331906 | I33: 67508.65246 | J33: =IF(ISERROR(I33/F33), 0, I33/F33) -> 0.4390991157
A34: LARGE USE SERVICE CLASSIFICATION | B34: Retail Transmission Rate - Line and Transformation Connection Service Rate | C34: $/kW | D34: 3.506484737 | E34: 0 | F34: 3575954.698 | G34: =ROUND(D34*F34, 2) -> 12539030.57 | H34: 0.06333673669 | I34: 12896982.46 | J34: =IF(ISERROR(I34/F34), 0, I34/F34) -> 3.606584409
A35: LARGE USE WITH DEDICATED ASSETS SERVICE CLASSIFICATION | B35: Retail Transmission Rate - Line and Transformation Connection Service Rate | C35: $/kW | D35: 3.801472504 | E35: 0 | F35: 1601505.341 | G35: =ROUND(D35*F35, 2) -> 6088078.52 | H35: 0.03075190095 | I35: 6261874.987 | J35: =IF(ISERROR(I35/F35), 0, I35/F35) -> 3.909993196
A36: UNMETERED SCATTERED LOAD SERVICE CLASSIFICATION | B36: Retail Transmission Rate - Line and Transformation Connection Service Rate | C36: $/kWh | D36: 0.007036079336 | E36: 48174769.47 | G36: =ROUND(D36*E36, 2) -> 338961.5 | H36: 0.001712151123 | I36: 348637.8389 | J36: =IF(ISERROR(I36/E36), 0, I36/E36) -> 0.007236938396
A37: SENTINEL LIGHTING SERVICE CLASSIFICATION | B37: Retail Transmission Rate - Line and Transformation Connection Service Rate | C37: $/kW | D37: 2.20556502 | E37: 0 | F37: 1987.753686 | G37: =ROUND(D37*F37, 2) -> 4384.12 | H37: 2.214492201e-05 | I37: 4509.273538 | J37: =IF(ISERROR(I37/F37), 0, I37/F37) -> 2.268527318
A38: STREET LIGHTING SERVICE CLASSIFICATION | B38: Retail Transmission Rate - Line and Transformation Connection Service Rate | C38: $/kW | D38: 2.213935381 | E38: 0 | F38: 262019.1876 | G38: =ROUND(D38*F38, 2) -> 580093.55 | H38: 0.002930149362 | I38: 596653.4891 | J38: =IF(ISERROR(I38/F38), 0, I38/F38) -> 2.277136627
A40: The purpose of this table is to update the re-aligned RTS Network Rates to recover future wholesale network costs.
A41: Rate Class | B41: Rate Description | C41: Unit | D41: Adjusted RTSR-Network | E41: Loss Adjusted Billed kWh | F41: Billed kW | G41: Billed Amount | H41: Billed Amount % | I41: Forecast Wholesale Billing | J41: Proposed RTSR-Network
A43: RESIDENTIAL SERVICE CLASSIFICATION | B43: Retail Transmission Rate - Network Service Rate | C43: $/kWh | D43: =+J17 -> 0.01307404678 | E43: 9036942221 | F43: 0 | G43: =I17 -> 112291003.8 | H43: =G43/337127760.493865 -> 0.3330814515 | I43: =H43*forecast_wholesale_network -> 114536823.9 | J43: =IF(ISERROR(I43/E43), 0, I43/E43) -> 0.01267428972
A44: GENERAL SERVICE LESS THAN 50 KW SERVICE CLASSIFICATION | B44: Retail Transmission Rate - Network Service Rate | C44: $/kWh | D44: 0.01180062121 | E44: 2978138417 | F44: 0 | G44: 34207641.84 | H44: =G44/337127760.493865 -> 0.101467888 | I44: 34891794.68 | J44: =IF(ISERROR(I44/E44), 0, I44/E44) -> 0.01171597481
A45: GENERAL SERVICE 50 to 4,999 kW SERVICE CLASSIFICATION | B45: Retail Transmission Rate - Network Service Rate | C45: $/kW | D45: 4.797734875 | E45: 0 | F45: 34235594.91 | G45: 161457183.8 | H45: 0.4789198718 | I45: 164686327.5 | J45: =IF(ISERROR(I45/F45), 0, I45/F45) -> 4.81038311
A46: GENERAL SERVICE 50 to 4,999 kW SERVICE CLASSIFICATION | B46: Retail Transmission Rate - Network Service Rate - EV CHARGING | C46: $/kW | D46: 0.8363958898 | E46: 0 | F46: 152884.7768 | G46: 128590.4649 | H46: 0.0003814294757 | I46: 131162.2742 | J46: =IF(ISERROR(I46/F46), 0, I46/F46) -> 0.8579158565
A47: LARGE USE SERVICE CLASSIFICATION | B47: Retail Transmission Rate - Network Service Rate | C47: $/kW | D47: 5.329617165 | E47: 0 | F47: 4047427.378 | G47: 19058469.54 | H47: 0.05653189021 | I47: 19439638.93 | J47: =IF(ISERROR(I47/F47), 0, I47/F47) -> 4.802961762
A48: LARGE USE WITH DEDICATED ASSETS SERVICE CLASSIFICATION | B48: Retail Transmission Rate - Network Service Rate | C48: $/kW | D48: 5.211177902 | E48: 0 | F48: 1605512.026 | G48: 8345729.245 | H48: 0.02475539016 | I48: 8512643.83 | J48: =IF(ISERROR(I48/F48), 0, I48/F48) -> 5.302136448
A49: UNMETERED SCATTERED LOAD SERVICE CLASSIFICATION | B49: Retail Transmission Rate - Network Service Rate | C49: $/kWh | D49: 0.01166925986 | E49: 49125260.11 | G49: 562163.9039 | H49: 0.001667509976 | I49: 573407.182 | J49: =IF(ISERROR(I49/E49), 0, I49/E49) -> 0.01167234903
A50: SENTINEL LIGHTING SERVICE CLASSIFICATION | B50: Retail Transmission Rate - Network Service Rate | C50: $/kW | D50: 3.726599134 | E50: 0 | F50: 1608.9 | G50: 7407.561166 | H50: 2.197256362e-05 | I50: 7555.71239 | J50: =IF(ISERROR(I50/F50), 0, I50/F50) -> 4.696197644
A51: STREET LIGHTING SERVICE CLASSIFICATION | B51: Retail Transmission Rate - Network Service Rate | C51: $/kW | D51: 4.082030403 | E51: 0 | F51: 264100 | G51: 1069570.29 | H51: 0.003172596313 | I51: 1090961.696 | J51: =IF(ISERROR(I51/F51), 0, I51/F51) -> 4.130865943
A53: The purpose of this table is to update the re-aligned RTS Connection Rates to recover future wholesale connection costs.
A54: Rate Class | B54: Rate Description | C54: Unit | D54: Adjusted RTSR-Connection | E54: Loss Adjusted Billed kWh | F54: Billed kW | G54: Billed Amount | H54: Billed Amount % | I54: Forecast Wholesale Billing | J54: Proposed RTSR-Connection
A56: RESIDENTIAL SERVICE CLASSIFICATION | B56: Retail Transmission Rate - Line and Transformation Connection Service Rate | C56: $/kWh | D56: =J30 -> 0.007824832851 | E56: 9036942221 | F56: 0 | G56: =I30 -> 67206301.92 | H56: =G56/203625622.92 -> 0.3300483552 | I56: =H56*forecast_wholesale_lineplus -> 68550427.95 | J56: =IF(ISERROR(I56/E56), 0, I56/E56) -> 0.007585577763
A57: GENERAL SERVICE LESS THAN 50 KW SERVICE CLASSIFICATION | B57: Retail Transmission Rate - Line and Transformation Connection Service Rate | C57: $/kWh | D57: 0.006985923852 | E57: 2978138417 | F57: 0 | G57: 20250796.71 | H57: 0.09945112219 | I57: 20655812.64 | J57: =IF(ISERROR(I57/E57), 0, I57/E57) -> 0.006935813502
A58: GENERAL SERVICE 50 to 4,999 kW SERVICE CLASSIFICATION | B58: Retail Transmission Rate - Line and Transformation Connection Service Rate | C58: $/kW | D58: 2.85243351 | E58: 0 | F58: 34235594.91 | G58: 95992357.58 | H58: 0.4714159063 | I58: 97912204.73 | J58: =IF(ISERROR(I58/F58), 0, I58/F58) -> 2.859953361
A59: GENERAL SERVICE 50 to 4,999 kW SERVICE CLASSIFICATION | B59: Retail Transmission Rate - Line and Transformation Connection Service Rate - EV CHARGING | C59: $/kW | D59: 0.4390991157 | E59: 0 | F59: 152884.7768 | G59: 67508.65246 | H59: 0.0003315331906 | I59: 68858.8255 | J59: =IF(ISERROR(I59/F59), 0, I59/F59) -> 0.4503968737
A60: LARGE USE SERVICE CLASSIFICATION | B60: Retail Transmission Rate - Line and Transformation Connection Service Rate | C60: $/kW | D60: 3.606584409 | E60: 0 | F60: 4047427.378 | G60: 12896982.46 | H60: 0.06333673668 | I60: 13154922.11 | J60: =IF(ISERROR(I60/F60), 0, I60/F60) -> 3.250193488
A61: LARGE USE WITH DEDICATED ASSETS SERVICE CLASSIFICATION | B61: Retail Transmission Rate - Line and Transformation Connection Service Rate | C61: $/kW | D61: 3.909993196 | E61: 0 | F61: 1605512.026 | G61: 6261874.987 | H61: 0.03075190095 | I61: 6387112.487 | J61: =IF(ISERROR(I61/F61), 0, I61/F61) -> 3.978240203
A62: UNMETERED SCATTERED LOAD SERVICE CLASSIFICATION | B62: Retail Transmission Rate - Line and Transformation Connection Service Rate | C62: $/kWh | D62: 0.007236938396 | E62: 49125260.11 | G62: 348637.8389 | H62: 0.001712151123 | I62: 355610.5957 | J62: =IF(ISERROR(I62/E62), 0, I62/E62) -> 0.007238854204
A63: SENTINEL LIGHTING SERVICE CLASSIFICATION | B63: Retail Transmission Rate - Line and Transformation Connection Service Rate | C63: $/kW | D63: 2.268527318 | E63: 0 | F63: 1608.9 | G63: 4509.273538 | H63: 2.214492201e-05 | I63: 4599.459009 | J63: =IF(ISERROR(I63/F63), 0, I63/F63) -> 2.858760028
A64: STREET LIGHTING SERVICE CLASSIFICATION | B64: Retail Transmission Rate - Line and Transformation Connection Service Rate | C64: $/kW | D64: 2.277136627 | E64: 0 | F64: 264100 | G64: 596653.4891 | H64: 0.002930149362 | I64: 608586.5589 | J64: =IF(ISERROR(I64/F64), 0, I64/F64) -> 2.304379246

Sheet 8. 2028 RTSR Rates to Forecast
A13: The purpose of this sheet is to re-align the current RTS Network Rates to recover current wholesale network costs.
A15: Rate Class | B15: Rate Description | C15: Unit | D15: Current RTSR-Network | E15: Loss Adjusted Billed kWh | F15: Billed kW | G15: Billed Amount | H15: Billed Amount % | I15: Current Wholesale Billing | J15: Adjusted RTSR Network
A17: RESIDENTIAL SERVICE CLASSIFICATION | B17: Retail Transmission Rate - Network Service Rate | C17: $/kWh | D17: 0.0127074273 | E17: 8588848247 | G17: =ROUND(D17*E17, 2) -> 109142164.7 | H17: =G17/327674099.56 -> 0.3330814515 | I17: =H17*total_current_wholesale_network -> 112291003.8 | J17: =IF(ISERROR(I17/E17), 0, I17/E17) -> 0.01307404678
A18: GENERAL SERVICE LESS THAN 50 KW SERVICE CLASSIFICATION | B18: Retail Transmission Rate - Network Service Rate | C18: $/kWh | D18: 0.01146971084 | E18: 2898800092 | G18: =ROUND(D18*E18, 2) -> 33248398.83 | H18: =G18/327674099.56 -> 0.101467888 | I18: 34207641.84 | J18: =IF(ISERROR(I18/E18), 0, I18/E18) -> 0.01180062121
A19: GENERAL SERVICE 50 to 4,999 kW SERVICE CLASSIFICATION | B19: Retail Transmission Rate - Network Service Rate | C19: $/kW | D19: 4.663197871 | E19: 0 | F19: 33652794.09 | G19: =ROUND(D19*F19, 2) -> 156929637.8 | H19: 0.4789198718 | I19: 161457183.8 | J19: =IF(ISERROR(I19/F19), 0, I19/F19) -> 4.797734875
A20: GENERAL SERVICE 50 to 4,999 kW SERVICE CLASSIFICATION | B20: Retail Transmission Rate - Network Service Rate - EV CHARGING | C20: $/kW | D20: 0.8129418641 | E20: 0 | F20: 153743.54 | G20: =ROUND(D20*F20, 2) -> 124984.56 | H20: 0.0003814294757 | I20: 128590.4649 | J20: =IF(ISERROR(I20/F20), 0, I20/F20) -> 0.8363958898
A21: LARGE USE SERVICE CLASSIFICATION | B21: Retail Transmission Rate - Network Service Rate | C21: $/kW | D21: 5.180165238 | E21: 0 | F21: 3575954.698 | G21: =ROUND(D21*F21, 2) -> 18524036.22 | H21: 0.05653189021 | I21: 19058469.54 | J21: =IF(ISERROR(I21/F21), 0, I21/F21) -> 5.329617165
A22: LARGE USE WITH DEDICATED ASSETS SERVICE CLASSIFICATION | B22: Retail Transmission Rate - Network Service Rate | C22: $/kW | D22: 5.065047222 | E22: 0 | F22: 1601505.341 | G22: =ROUND(D22*F22, 2) -> 8111700.18 | H22: 0.02475539016 | I22: 8345729.245 | J22: =IF(ISERROR(I22/F22), 0, I22/F22) -> 5.211177902
A23: UNMETERED SCATTERED LOAD SERVICE CLASSIFICATION | B23: Retail Transmission Rate - Network Service Rate | C23: $/kWh | D23: 0.0113420331 | E23: 48174769.47 | G23: =ROUND(D23*E23, 2) -> 546399.83 | H23: 0.001667509976 | I23: 562163.9039 | J23: =IF(ISERROR(I23/E23), 0, I23/E23) -> 0.01166925986
A24: SENTINEL LIGHTING SERVICE CLASSIFICATION | B24: Retail Transmission Rate - Network Service Rate | C24: $/kW | D24: 3.622098678 | E24: 0 | F24: 1987.753686 | G24: =ROUND(D24*F24, 2) -> 7199.84 | H24: 2.197256362e-05 | I24: 7407.561166 | J24: =IF(ISERROR(I24/F24), 0, I24/F24) -> 3.726599134
A25: STREET LIGHTING SERVICE CLASSIFICATION | B25: Retail Transmission Rate - Network Service Rate | C25: $/kW | D25: 3.967563023 | E25: 0 | F25: 262019.1876 | G25: =ROUND(D25*F25, 2) -> 1039577.64 | H25: 0.003172596313 | I25: 1069570.29 | J25: =IF(ISERROR(I25/F25), 0, I25/F25) -> 4.082030403
A27: The purpose of this table is to re-align the current RTS Connection Rates to recover current wholesale connection costs.
A28: Rate Class | B28: Rate Description | C28: Unit | D28: Current RTSR-Connection | E28: Loss Adjusted Billed kWh | F28: Billed kW | G28: Billed Amount | H28: Billed Amount % | I28: Current Wholesale Billing | J28: Adjusted RTSR-Connection
A30: RESIDENTIAL SERVICE CLASSIFICATION | B30: Retail Transmission Rate - Line and Transformation Connection Service Rate | C30: $/kWh | D30: 0.007607656956 | E30: 8588848247 | G30: =ROUND(D30*E30, 2) -> 65341011.11 | H30: =G30/197974054.65 -> 0.3300483552 | I30: =H30*Total_Current_Wholesale_Lineplus -> 67206301.92 | J30: =IF(ISERROR(I30/E30), 0, I30/E30) -> 0.007824832851
A31: GENERAL SERVICE LESS THAN 50 KW SERVICE CLASSIFICATION | B31: Retail Transmission Rate - Line and Transformation Connection Service Rate | C31: $/kWh | D31: 0.006792031625 | E31: 2898800092 | G31: =ROUND(D31*E31, 2) -> 19688741.9 | H31: =G31/197974054.65 -> 0.09945112219 | I31: 20250796.71 | J31: =IF(ISERROR(I31/E31), 0, I31/E31) -> 0.006985923852
A32: GENERAL SERVICE 50 to 4,999 kW SERVICE CLASSIFICATION | B32: Retail Transmission Rate - Line and Transformation Connection Service Rate | C32: $/kW | D32: 2.773265071 | E32: 0 | F32: 33652794.09 | G32: =ROUND(D32*F32, 2) -> 93328118.41 | H32: 0.4714159064 | I32: 95992357.58 | J32: =IF(ISERROR(I32/F32), 0, I32/F32) -> 2.85243351
A33: GENERAL SERVICE 50 to 4,999 kW SERVICE CLASSIFICATION | B33: Retail Transmission Rate - Line and Transformation Connection Service Rate - EV CHARGING | C33: $/kW | D33: 0.4269120511 | E33: 0 | F33: 153743.54 | G33: =ROUND(D33*F33, 2) -> 65634.97 | H33: 0.0003315331906 | I33: 67508.65246 | J33: =IF(ISERROR(I33/F33), 0, I33/F33) -> 0.4390991157
A34: LARGE USE SERVICE CLASSIFICATION | B34: Retail Transmission Rate - Line and Transformation Connection Service Rate | C34: $/kW | D34: 3.506484737 | E34: 0 | F34: 3575954.698 | G34: =ROUND(D34*F34, 2) -> 12539030.57 | H34: 0.06333673669 | I34: 12896982.46 | J34: =IF(ISERROR(I34/F34), 0, I34/F34) -> 3.606584409
A35: LARGE USE WITH DEDICATED ASSETS SERVICE CLASSIFICATION | B35: Retail Transmission Rate - Line and Transformation Connection Service Rate | C35: $/kW | D35: 3.801472504 | E35: 0 | F35: 1601505.341 | G35: =ROUND(D35*F35, 2) -> 6088078.52 | H35: 0.03075190095 | I35: 6261874.987 | J35: =IF(ISERROR(I35/F35), 0, I35/F35) -> 3.909993196
A36: UNMETERED SCATTERED LOAD SERVICE CLASSIFICATION | B36: Retail Transmission Rate - Line and Transformation Connection Service Rate | C36: $/kWh | D36: 0.007036079336 | E36: 48174769.47 | G36: =ROUND(D36*E36, 2) -> 338961.5 | H36: 0.001712151123 | I36: 348637.8389 | J36: =IF(ISERROR(I36/E36), 0, I36/E36) -> 0.007236938396
A37: SENTINEL LIGHTING SERVICE CLASSIFICATION | B37: Retail Transmission Rate - Line and Transformation Connection Service Rate | C37: $/kW | D37: 2.20556502 | E37: 0 | F37: 1987.753686 | G37: =ROUND(D37*F37, 2) -> 4384.12 | H37: 2.214492201e-05 | I37: 4509.273538 | J37: =IF(ISERROR(I37/F37), 0, I37/F37) -> 2.268527318
A38: STREET LIGHTING SERVICE CLASSIFICATION | B38: Retail Transmission Rate - Line and Transformation Connection Service Rate | C38: $/kW | D38: 2.213935381 | E38: 0 | F38: 262019.1876 | G38: =ROUND(D38*F38, 2) -> 580093.55 | H38: 0.002930149362 | I38: 596653.4891 | J38: =IF(ISERROR(I38/F38), 0, I38/F38) -> 2.277136627
A40: The purpose of this table is to update the re-aligned RTS Network Rates to recover future wholesale network costs.
A41: Rate Class | B41: Rate Description | C41: Unit | D41: Adjusted RTSR-Network | E41: Loss Adjusted Billed kWh | F41: Billed kW | G41: Billed Amount | H41: Billed Amount % | I41: Forecast Wholesale Billing | J41: Proposed RTSR-Network
A43: RESIDENTIAL SERVICE CLASSIFICATION | B43: Retail Transmission Rate - Network Service Rate | C43: $/kWh | D43: =+J17 -> 0.01307404678 | E43: 9361555367 | F43: 0 | G43: =I17 -> 112291003.8 | H43: =G43/337127760.493865 -> 0.3330814515 | I43: =H43*forecast_wholesale_network_28 -> 116827560.4 | J43: =IF(ISERROR(I43/E43), 0, I43/E43) -> 0.01247950322
A44: GENERAL SERVICE LESS THAN 50 KW SERVICE CLASSIFICATION | B44: Retail Transmission Rate - Network Service Rate | C44: $/kWh | D44: 0.01180062121 | E44: 3064889593 | F44: 0 | G44: 34207641.84 | H44: =G44/337127760.493865 -> 0.101467888 | I44: 35589630.57 | J44: =IF(ISERROR(I44/E44), 0, I44/E44) -> 0.01161204327
A45: GENERAL SERVICE 50 to 4,999 kW SERVICE CLASSIFICATION | B45: Retail Transmission Rate - Network Service Rate | C45: $/kW | D45: 4.797734875 | E45: 0 | F45: 34407709.58 | G45: 161457183.8 | H45: 0.4789198718 | I45: 167980054.1 | J45: =IF(ISERROR(I45/F45), 0, I45/F45) -> 4.882046964
A46: GENERAL SERVICE 50 to 4,999 kW SERVICE CLASSIFICATION | B46: Retail Transmission Rate - Network Service Rate - EV CHARGING | C46: $/kW | D46: 0.8363958898 | E46: 0 | F46: 155456.7239 | G46: 128590.4649 | H46: 0.0003814294757 | I46: 133785.5197 | J46: =IF(ISERROR(I46/F46), 0, I46/F46) -> 0.8605965463
A47: LARGE USE SERVICE CLASSIFICATION | B47: Retail Transmission Rate - Network Service Rate | C47: $/kW | D47: 5.329617165 | E47: 0 | F47: 4062419.741 | G47: 19058469.54 | H47: 0.05653189021 | I47: 19828431.71 | J47: =IF(ISERROR(I47/F47), 0, I47/F47) -> 4.880941158
A48: LARGE USE WITH DEDICATED ASSETS SERVICE CLASSIFICATION | B48: Retail Transmission Rate - Network Service Rate | C48: $/kW | D48: 5.211177902 | E48: 0 | F48: 1601912.026 | G48: 8345729.245 | H48: 0.02475539016 | I48: 8682896.706 | J48: =IF(ISERROR(I48/F48), 0, I48/F48) -> 5.420333057
A49: UNMETERED SCATTERED LOAD SERVICE CLASSIFICATION | B49: Retail Transmission Rate - Network Service Rate | C49: $/kWh | D49: 0.01166925986 | E49: 49502270.29 | F49: 0 | G49: 562163.9039 | H49: 0.001667509976 | I49: 584875.3256 | J49: =IF(ISERROR(I49/E49), 0, I49/E49) -> 0.01181512125
A50: SENTINEL LIGHTING SERVICE CLASSIFICATION | B50: Retail Transmission Rate - Network Service Rate | C50: $/kW | D50: 3.726599134 | E50: 0 | F50: 1558.8 | G50: 7407.561166 | H50: 2.197256362e-05 | I50: 7706.826637 | J50: =IF(ISERROR(I50/F50), 0, I50/F50) -> 4.944076621
A51: STREET LIGHTING SERVICE CLASSIFICATION | B51: Retail Transmission Rate - Network Service Rate | C51: $/kW | D51: 4.082030403 | E51: 0 | F51: 264120 | G51: 1069570.29 | H51: 0.003172596313 | I51: 1112780.93 | J51: =IF(ISERROR(I51/F51), 0, I51/F51) -> 4.213164204
A53: The purpose of this table is to update the re-aligned RTS Connection Rates to recover future wholesale connection costs.
A54: Rate Class | B54: Rate Description | C54: Unit | D54: Adjusted RTSR-Connection | E54: Loss Adjusted Billed kWh | F54: Billed kW | G54: Billed Amount | H54: Billed Amount % | I54: Forecast Wholesale Billing | J54: Proposed RTSR-Connection
A56: RESIDENTIAL SERVICE CLASSIFICATION | B56: Retail Transmission Rate - Line and Transformation Connection Service Rate | C56: $/kWh | D56: =J30 -> 0.007824832851 | E56: 9361555367 | F56: 0 | G56: =I30 -> 67206301.92 | H56: =G56/203625622.92 -> 0.3300483552 | I56: =H56*forecast_wholesale_lineplus_28 -> 69921436.51 | J56: =IF(ISERROR(I56/E56), 0, I56/E56) -> 0.007468997808
A57: GENERAL SERVICE LESS THAN 50 KW SERVICE CLASSIFICATION | B57: Retail Transmission Rate - Line and Transformation Connection Service Rate | C57: $/kWh | D57: 0.006985923852 | E57: 3064889593 | F57: 0 | G57: 20250796.71 | H57: 0.09945112219 | I57: 21068928.89 | J57: =IF(ISERROR(I57/E57), 0, I57/E57) -> 0.006874286415
A58: GENERAL SERVICE 50 to 4,999 kW SERVICE CLASSIFICATION | B58: Retail Transmission Rate - Line and Transformation Connection Service Rate | C58: $/kW | D58: 2.85243351 | E58: 0 | F58: 34407709.58 | G58: 95992357.58 | H58: 0.4714159063 | I58: 99870448.83 | J58: =IF(ISERROR(I58/F58), 0, I58/F58) -> 2.902560213
A59: GENERAL SERVICE 50 to 4,999 kW SERVICE CLASSIFICATION | B59: Retail Transmission Rate - Line and Transformation Connection Service Rate - EV CHARGING | C59: $/kW | D59: 0.4390991157 | E59: 0 | F59: 155456.7239 | G59: 67508.65246 | H59: 0.0003315331906 | I59: 70236.00201 | J59: =IF(ISERROR(I59/F59), 0, I59/F59) -> 0.4518042078
A60: LARGE USE SERVICE CLASSIFICATION | B60: Retail Transmission Rate - Line and Transformation Connection Service Rate | C60: $/kW | D60: 3.606584409 | E60: 0 | F60: 4062419.741 | G60: 12896982.46 | H60: 0.06333673668 | I60: 13418020.55 | J60: =IF(ISERROR(I60/F60), 0, I60/F60) -> 3.30296262
A61: LARGE USE WITH DEDICATED ASSETS SERVICE CLASSIFICATION | B61: Retail Transmission Rate - Line and Transformation Connection Service Rate | C61: $/kW | D61: 3.909993196 | E61: 0 | F61: 1601912.026 | G61: 6261874.987 | H61: 0.03075190095 | I61: 6514854.737 | J61: =IF(ISERROR(I61/F61), 0, I61/F61) -> 4.066924171
A62: UNMETERED SCATTERED LOAD SERVICE CLASSIFICATION | B62: Retail Transmission Rate - Line and Transformation Connection Service Rate | C62: $/kWh | D62: 0.007236938396 | E62: 49502270.29 | F62: 0 | G62: 348637.8389 | H62: 0.001712151123 | I62: 362722.8076 | J62: =IF(ISERROR(I62/E62), 0, I62/E62) -> 0.00732739742
A63: SENTINEL LIGHTING SERVICE CLASSIFICATION | B63: Retail Transmission Rate - Line and Transformation Connection Service Rate | C63: $/kW | D63: 2.268527318 | E63: 0 | F63: 1558.8 | G63: 4509.273538 | H63: 2.214492201e-05 | I63: 4691.448189 | J63: =IF(ISERROR(I63/F63), 0, I63/F63) -> 3.009653701
A64: STREET LIGHTING SERVICE CLASSIFICATION | B64: Retail Transmission Rate - Line and Transformation Connection Service Rate | C64: $/kW | D64: 2.277136627 | E64: 0 | F64: 264120 | G64: 596653.4891 | H64: 0.002930149362 | I64: 620758.2901 | J64: =IF(ISERROR(I64/F64), 0, I64/F64) -> 2.350288846

Sheet 8. 2029 RTSR Rates to Forecast
A13: The purpose of this sheet is to re-align the current RTS Network Rates to recover current wholesale network costs.
A15: Rate Class | B15: Rate Description | C15: Unit | D15: Current RTSR-Network | E15: Loss Adjusted Billed kWh | F15: Billed kW | G15: Billed Amount | H15: Billed Amount % | I15: Current Wholesale Billing | J15: Adjusted RTSR Network
A17: RESIDENTIAL SERVICE CLASSIFICATION | B17: Retail Transmission Rate - Network Service Rate | C17: $/kWh | D17: 0.0127074273 | E17: 8588848247 | G17: =ROUND(D17*E17, 2) -> 109142164.7 | H17: =G17/327674099.56 -> 0.3330814515 | I17: =H17*total_current_wholesale_network -> 112291003.8 | J17: =IF(ISERROR(I17/E17), 0, I17/E17) -> 0.01307404678
A18: GENERAL SERVICE LESS THAN 50 KW SERVICE CLASSIFICATION | B18: Retail Transmission Rate - Network Service Rate | C18: $/kWh | D18: 0.01146971084 | E18: 2898800092 | G18: =ROUND(D18*E18, 2) -> 33248398.83 | H18: =G18/327674099.56 -> 0.101467888 | I18: 34207641.84 | J18: =IF(ISERROR(I18/E18), 0, I18/E18) -> 0.01180062121
A19: GENERAL SERVICE 50 to 4,999 kW SERVICE CLASSIFICATION | B19: Retail Transmission Rate - Network Service Rate | C19: $/kW | D19: 4.663197871 | E19: 0 | F19: 33652794.09 | G19: =ROUND(D19*F19, 2) -> 156929637.8 | H19: 0.4789198718 | I19: 161457183.8 | J19: =IF(ISERROR(I19/F19), 0, I19/F19) -> 4.797734875
A20: GENERAL SERVICE 50 to 4,999 kW SERVICE CLASSIFICATION | B20: Retail Transmission Rate - Network Service Rate - EV CHARGING | C20: $/kW | D20: 0.8129418641 | E20: 0 | F20: 153743.54 | G20: =ROUND(D20*F20, 2) -> 124984.56 | H20: 0.0003814294757 | I20: 128590.4649 | J20: =IF(ISERROR(I20/F20), 0, I20/F20) -> 0.8363958898
A21: LARGE USE SERVICE CLASSIFICATION | B21: Retail Transmission Rate - Network Service Rate | C21: $/kW | D21: 5.180165238 | E21: 0 | F21: 3575954.698 | G21: =ROUND(D21*F21, 2) -> 18524036.22 | H21: 0.05653189021 | I21: 19058469.54 | J21: =IF(ISERROR(I21/F21), 0, I21/F21) -> 5.329617165
A22: LARGE USE WITH DEDICATED ASSETS SERVICE CLASSIFICATION | B22: Retail Transmission Rate - Network Service Rate | C22: $/kW | D22: 5.065047222 | E22: 0 | F22: 1601505.341 | G22: =ROUND(D22*F22, 2) -> 8111700.18 | H22: 0.02475539016 | I22: 8345729.245 | J22: =IF(ISERROR(I22/F22), 0, I22/F22) -> 5.211177902
A23: UNMETERED SCATTERED LOAD SERVICE CLASSIFICATION | B23: Retail Transmission Rate - Network Service Rate | C23: $/kWh | D23: 0.0113420331 | E23: 48174769.47 | G23: =ROUND(D23*E23, 2) -> 546399.83 | H23: 0.001667509976 | I23: 562163.9039 | J23: =IF(ISERROR(I23/E23), 0, I23/E23) -> 0.01166925986
A24: SENTINEL LIGHTING SERVICE CLASSIFICATION | B24: Retail Transmission Rate - Network Service Rate | C24: $/kW | D24: 3.622098678 | E24: 0 | F24: 1987.753686 | G24: =ROUND(D24*F24, 2) -> 7199.84 | H24: 2.197256362e-05 | I24: 7407.561166 | J24: =IF(ISERROR(I24/F24), 0, I24/F24) -> 3.726599134
A25: STREET LIGHTING SERVICE CLASSIFICATION | B25: Retail Transmission Rate - Network Service Rate | C25: $/kW | D25: 3.967563023 | E25: 0 | F25: 262019.1876 | G25: =ROUND(D25*F25, 2) -> 1039577.64 | H25: 0.003172596313 | I25: 1069570.29 | J25: =IF(ISERROR(I25/F25), 0, I25/F25) -> 4.082030403
A27: The purpose of this table is to re-align the current RTS Connection Rates to recover current wholesale connection costs.
A28: Rate Class | B28: Rate Description | C28: Unit | D28: Current RTSR-Connection | E28: Loss Adjusted Billed kWh | F28: Billed kW | G28: Billed Amount | H28: Billed Amount % | I28: Current Wholesale Billing | J28: Adjusted RTSR-Connection
A30: RESIDENTIAL SERVICE CLASSIFICATION | B30: Retail Transmission Rate - Line and Transformation Connection Service Rate | C30: $/kWh | D30: 0.007607656956 | E30: 8588848247 | G30: =ROUND(D30*E30, 2) -> 65341011.11 | H30: =G30/197974054.65 -> 0.3300483552 | I30: =H30*Total_Current_Wholesale_Lineplus -> 67206301.92 | J30: =IF(ISERROR(I30/E30), 0, I30/E30) -> 0.007824832851
A31: GENERAL SERVICE LESS THAN 50 KW SERVICE CLASSIFICATION | B31: Retail Transmission Rate - Line and Transformation Connection Service Rate | C31: $/kWh | D31: 0.006792031625 | E31: 2898800092 | G31: =ROUND(D31*E31, 2) -> 19688741.9 | H31: =G31/197974054.65 -> 0.09945112219 | I31: 20250796.71 | J31: =IF(ISERROR(I31/E31), 0, I31/E31) -> 0.006985923852
A32: GENERAL SERVICE 50 to 4,999 kW SERVICE CLASSIFICATION | B32: Retail Transmission Rate - Line and Transformation Connection Service Rate | C32: $/kW | D32: 2.773265071 | E32: 0 | F32: 33652794.09 | G32: =ROUND(D32*F32, 2) -> 93328118.41 | H32: 0.4714159064 | I32: 95992357.58 | J32: =IF(ISERROR(I32/F32), 0, I32/F32) -> 2.85243351
A33: GENERAL SERVICE 50 to 4,999 kW SERVICE CLASSIFICATION | B33: Retail Transmission Rate - Line and Transformation Connection Service Rate - EV CHARGING | C33: $/kW | D33: 0.4269120511 | E33: 0 | F33: 153743.54 | G33: =ROUND(D33*F33, 2) -> 65634.97 | H33: 0.0003315331906 | I33: 67508.65246 | J33: =IF(ISERROR(I33/F33), 0, I33/F33) -> 0.4390991157
A34: LARGE USE SERVICE CLASSIFICATION | B34: Retail Transmission Rate - Line and Transformation Connection Service Rate | C34: $/kW | D34: 3.506484737 | E34: 0 | F34: 3575954.698 | G34: =ROUND(D34*F34, 2) -> 12539030.57 | H34: 0.06333673669 | I34: 12896982.46 | J34: =IF(ISERROR(I34/F34), 0, I34/F34) -> 3.606584409
A35: LARGE USE WITH DEDICATED ASSETS SERVICE CLASSIFICATION | B35: Retail Transmission Rate - Line and Transformation Connection Service Rate | C35: $/kW | D35: 3.801472504 | E35: 0 | F35: 1601505.341 | G35: =ROUND(D35*F35, 2) -> 6088078.52 | H35: 0.03075190095 | I35: 6261874.987 | J35: =IF(ISERROR(I35/F35), 0, I35/F35) -> 3.909993196
A36: UNMETERED SCATTERED LOAD SERVICE CLASSIFICATION | B36: Retail Transmission Rate - Line and Transformation Connection Service Rate | C36: $/kWh | D36: 0.007036079336 | E36: 48174769.47 | G36: =ROUND(D36*E36, 2) -> 338961.5 | H36: 0.001712151123 | I36: 348637.8389 | J36: =IF(ISERROR(I36/E36), 0, I36/E36) -> 0.007236938396
A37: SENTINEL LIGHTING SERVICE CLASSIFICATION | B37: Retail Transmission Rate - Line and Transformation Connection Service Rate | C37: $/kW | D37: 2.20556502 | E37: 0 | F37: 1987.753686 | G37: =ROUND(D37*F37, 2) -> 4384.12 | H37: 2.214492201e-05 | I37: 4509.273538 | J37: =IF(ISERROR(I37/F37), 0, I37/F37) -> 2.268527318
A38: STREET LIGHTING SERVICE CLASSIFICATION | B38: Retail Transmission Rate - Line and Transformation Connection Service Rate | C38: $/kW | D38: 2.213935381 | E38: 0 | F38: 262019.1876 | G38: =ROUND(D38*F38, 2) -> 580093.55 | H38: 0.002930149362 | I38: 596653.4891 | J38: =IF(ISERROR(I38/F38), 0, I38/F38) -> 2.277136627
A40: The purpose of this table is to update the re-aligned RTS Network Rates to recover future wholesale network costs.
A41: Rate Class | B41: Rate Description | C41: Unit | D41: Adjusted RTSR-Network | E41: Loss Adjusted Billed kWh | F41: Billed kW | G41: Billed Amount | H41: Billed Amount % | I41: Forecast Wholesale Billing | J41: Proposed RTSR-Network
A43: RESIDENTIAL SERVICE CLASSIFICATION | B43: Retail Transmission Rate - Network Service Rate | C43: $/kWh | D43: =+J17 -> 0.01307404678 | E43: 9700955884 | F43: 0 | G43: =I17 -> 112291003.8 | H43: =G43/337127760.493865 -> 0.3330814515 | I43: =H43*forecast_wholesale_network_29 -> 119164111.6 | J43: =IF(ISERROR(I43/E43), 0, I43/E43) -> 0.01228374946
A44: GENERAL SERVICE LESS THAN 50 KW SERVICE CLASSIFICATION | B44: Retail Transmission Rate - Network Service Rate | C44: $/kWh | D44: 0.01180062121 | E44: 3157176488 | F44: 0 | G44: 34207641.84 | H44: =G44/337127760.493865 -> 0.101467888 | I44: 36301423.18 | J44: =IF(ISERROR(I44/E44), 0, I44/E44) -> 0.01149806586
A45: GENERAL SERVICE 50 to 4,999 kW SERVICE CLASSIFICATION | B45: Retail Transmission Rate - Network Service Rate | C45: $/kW | D45: 4.797734875 | E45: 0 | F45: 34581956.04 | G45: 161457183.8 | H45: 0.4789198718 | I45: 171339655.2 | J45: =IF(ISERROR(I45/F45), 0, I45/F45) -> 4.954596985
A46: GENERAL SERVICE 50 to 4,999 kW SERVICE CLASSIFICATION | B46: Retail Transmission Rate - Network Service Rate - EV CHARGING | C46: $/kW | D46: 0.8363958898 | E46: 0 | F46: 158834.4776 | G46: 128590.4649 | H46: 0.0003814294757 | I46: 136461.2301 | J46: =IF(ISERROR(I46/F46), 0, I46/F46) -> 0.8591411145
A47: LARGE USE SERVICE CLASSIFICATION | B47: Retail Transmission Rate - Network Service Rate | C47: $/kW | D47: 5.329617165 | E47: 0 | F47: 4234072.364 | G47: 19058469.54 | H47: 0.05653189021 | I47: 20225000.35 | J47: =IF(ISERROR(I47/F47), 0, I47/F47) -> 4.776725244
A48: LARGE USE WITH DEDICATED ASSETS SERVICE CLASSIFICATION | B48: Retail Transmission Rate - Network Service Rate | C48: $/kW | D48: 5.211177902 | E48: 0 | F48: 1605512.026 | G48: 8345729.245 | H48: 0.02475539016 | I48: 8856554.64 | J48: =IF(ISERROR(I48/F48), 0, I48/F48) -> 5.516342761
A49: UNMETERED SCATTERED LOAD SERVICE CLASSIFICATION | B49: Retail Transmission Rate - Network Service Rate | C49: $/kWh | D49: 0.01166925986 | E49: 49880512.84 | F49: 0 | G49: 562163.9039 | H49: 0.001667509976 | I49: 596572.8322 | J49: =IF(ISERROR(I49/E49), 0, I49/E49) -> 0.01196003806
A50: SENTINEL LIGHTING SERVICE CLASSIFICATION | B50: Retail Transmission Rate - Network Service Rate | C50: $/kW | D50: 3.726599134 | E50: 0 | F50: 1488.9 | G50: 7407.561166 | H50: 2.197256362e-05 | I50: 7860.96317 | J50: =IF(ISERROR(I50/F50), 0, I50/F50) -> 5.279711982
A51: STREET LIGHTING SERVICE CLASSIFICATION | B51: Retail Transmission Rate - Network Service Rate | C51: $/kW | D51: 4.082030403 | E51: 0 | F51: 265150 | G51: 1069570.29 | H51: 0.003172596313 | I51: 1135036.548 | J51: =IF(ISERROR(I51/F51), 0, I51/F51) -> 4.280733729
A53: The purpose of this table is to update the re-aligned RTS Connection Rates to recover future wholesale connection costs.
A54: Rate Class | B54: Rate Description | C54: Unit | D54: Adjusted RTSR-Connection | E54: Loss Adjusted Billed kWh | F54: Billed kW | G54: Billed Amount | H54: Billed Amount % | I54: Forecast Wholesale Billing | J54: Proposed RTSR-Connection
A56: RESIDENTIAL SERVICE CLASSIFICATION | B56: Retail Transmission Rate - Line and Transformation Connection Service Rate | C56: $/kWh | D56: =J30 -> 0.007824832851 | E56: 9700955884 | F56: 0 | G56: =I30 -> 67206301.92 | H56: =G56/203625622.92 -> 0.3300483552 | I56: =H56*forecast_wholesale_lineplus_29 -> 71319865.24 | J56: =IF(ISERROR(I56/E56), 0, I56/E56) -> 0.007351838942
A57: GENERAL SERVICE LESS THAN 50 KW SERVICE CLASSIFICATION | B57: Retail Transmission Rate - Line and Transformation Connection Service Rate | C57: $/kWh | D57: 0.006985923852 | E57: 3157176488 | F57: 0 | G57: 20250796.71 | H57: 0.09945112219 | I57: 21490307.47 | J57: =IF(ISERROR(I57/E57), 0, I57/E57) -> 0.006806812211
A58: GENERAL SERVICE 50 to 4,999 kW SERVICE CLASSIFICATION | B58: Retail Transmission Rate - Line and Transformation Connection Service Rate | C58: $/kW | D58: 2.85243351 | E58: 0 | F58: 34581956.04 | G58: 95992357.58 | H58: 0.4714159063 | I58: 101867857.8 | J58: =IF(ISERROR(I58/F58), 0, I58/F58) -> 2.945693924
A59: GENERAL SERVICE 50 to 4,999 kW SERVICE CLASSIFICATION | B59: Retail Transmission Rate - Line and Transformation Connection Service Rate - EV CHARGING | C59: $/kW | D59: 0.4390991157 | E59: 0 | F59: 158834.4776 | G59: 67508.65246 | H59: 0.0003315331906 | I59: 71640.72205 | J59: =IF(ISERROR(I59/F59), 0, I59/F59) -> 0.4510401214
A60: LARGE USE SERVICE CLASSIFICATION | B60: Retail Transmission Rate - Line and Transformation Connection Service Rate | C60: $/kW | D60: 3.606584409 | E60: 0 | F60: 4234072.364 | G60: 12896982.46 | H60: 0.06333673668 | I60: 13686380.96 | J60: =IF(ISERROR(I60/F60), 0, I60/F60) -> 3.232439076
A61: LARGE USE WITH DEDICATED ASSETS SERVICE CLASSIFICATION | B61: Retail Transmission Rate - Line and Transformation Connection Service Rate | C61: $/kW | D61: 3.909993196 | E61: 0 | F61: 1605512.026 | G61: 6261874.987 | H61: 0.03075190095 | I61: 6645151.831 | J61: =IF(ISERROR(I61/F61), 0, I61/F61) -> 4.138961107
A62: UNMETERED SCATTERED LOAD SERVICE CLASSIFICATION | B62: Retail Transmission Rate - Line and Transformation Connection Service Rate | C62: $/kWh | D62: 0.007236938396 | E62: 49880512.84 | F62: 0 | G62: 348637.8389 | H62: 0.001712151123 | I62: 369977.2638 | J62: =IF(ISERROR(I62/E62), 0, I62/E62) -> 0.007417270648
A63: SENTINEL LIGHTING SERVICE CLASSIFICATION | B63: Retail Transmission Rate - Line and Transformation Connection Service Rate | C63: $/kW | D63: 2.268527318 | E63: 0 | F63: 1488.9 | G63: 4509.273538 | H63: 2.214492201e-05 | I63: 4785.277153 | J63: =IF(ISERROR(I63/F63), 0, I63/F63) -> 3.213968133
A64: STREET LIGHTING SERVICE CLASSIFICATION | B64: Retail Transmission Rate - Line and Transformation Connection Service Rate | C64: $/kW | D64: 2.277136627 | E64: 0 | F64: 265150 | G64: 596653.4891 | H64: 0.002930149362 | I64: 633173.4559 | J64: =IF(ISERROR(I64/F64), 0, I64/F64) -> 2.387982108

Sheet 8. 2030 RTSR Rates to Forecast
A13: The purpose of this sheet is to re-align the current RTS Network Rates to recover current wholesale network costs.
A15: Rate Class | B15: Rate Description | C15: Unit | D15: Current RTSR-Network | E15: Loss Adjusted Billed kWh | F15: Billed kW | G15: Billed Amount | H15: Billed Amount % | I15: Current Wholesale Billing | J15: Adjusted RTSR Network
A17: RESIDENTIAL SERVICE CLASSIFICATION | B17: Retail Transmission Rate - Network Service Rate | C17: $/kWh | D17: 0.0127074273 | E17: 8588848247 | G17: =ROUND(D17*E17, 2) -> 109142164.7 | H17: =G17/327674099.56 -> 0.3330814515 | I17: =H17*total_current_wholesale_network -> 112291003.8 | J17: =IF(ISERROR(I17/E17), 0, I17/E17) -> 0.01307404678
A18: GENERAL SERVICE LESS THAN 50 KW SERVICE CLASSIFICATION | B18: Retail Transmission Rate - Network Service Rate | C18: $/kWh | D18: 0.01146971084 | E18: 2898800092 | G18: =ROUND(D18*E18, 2) -> 33248398.83 | H18: =G18/327674099.56 -> 0.101467888 | I18: 34207641.84 | J18: =IF(ISERROR(I18/E18), 0, I18/E18) -> 0.01180062121
A19: GENERAL SERVICE 50 to 4,999 kW SERVICE CLASSIFICATION | B19: Retail Transmission Rate - Network Service Rate | C19: $/kW | D19: 4.663197871 | E19: 0 | F19: 33652794.09 | G19: =ROUND(D19*F19, 2) -> 156929637.8 | H19: 0.4789198718 | I19: 161457183.8 | J19: =IF(ISERROR(I19/F19), 0, I19/F19) -> 4.797734875
A20: GENERAL SERVICE 50 to 4,999 kW SERVICE CLASSIFICATION | B20: Retail Transmission Rate - Network Service Rate - EV CHARGING | C20: $/kW | D20: 0.8129418641 | E20: 0 | F20: 153743.54 | G20: =ROUND(D20*F20, 2) -> 124984.56 | H20: 0.0003814294757 | I20: 128590.4649 | J20: =IF(ISERROR(I20/F20), 0, I20/F20) -> 0.8363958898
A21: LARGE USE SERVICE CLASSIFICATION | B21: Retail Transmission Rate - Network Service Rate | C21: $/kW | D21: 5.180165238 | E21: 0 | F21: 3575954.698 | G21: =ROUND(D21*F21, 2) -> 18524036.22 | H21: 0.05653189021 | I21: 19058469.54 | J21: =IF(ISERROR(I21/F21), 0, I21/F21) -> 5.329617165
A22: LARGE USE WITH DEDICATED ASSETS SERVICE CLASSIFICATION | B22: Retail Transmission Rate - Network Service Rate | C22: $/kW | D22: 5.065047222 | E22: 0 | F22: 1601505.341 | G22: =ROUND(D22*F22, 2) -> 8111700.18 | H22: 0.02475539016 | I22: 8345729.245 | J22: =IF(ISERROR(I22/F22), 0, I22/F22) -> 5.211177902
A23: UNMETERED SCATTERED LOAD SERVICE CLASSIFICATION | B23: Retail Transmission Rate - Network Service Rate | C23: $/kWh | D23: 0.0113420331 | E23: 48174769.47 | G23: =ROUND(D23*E23, 2) -> 546399.83 | H23: 0.001667509976 | I23: 562163.9039 | J23: =IF(ISERROR(I23/E23), 0, I23/E23) -> 0.01166925986
A24: SENTINEL LIGHTING SERVICE CLASSIFICATION | B24: Retail Transmission Rate - Network Service Rate | C24: $/kW | D24: 3.622098678 | E24: 0 | F24: 1987.753686 | G24: =ROUND(D24*F24, 2) -> 7199.84 | H24: 2.197256362e-05 | I24: 7407.561166 | J24: =IF(ISERROR(I24/F24), 0, I24/F24) -> 3.726599134
A25: STREET LIGHTING SERVICE CLASSIFICATION | B25: Retail Transmission Rate - Network Service Rate | C25: $/kW | D25: 3.967563023 | E25: 0 | F25: 262019.1876 | G25: =ROUND(D25*F25, 2) -> 1039577.64 | H25: 0.003172596313 | I25: 1069570.29 | J25: =IF(ISERROR(I25/F25), 0, I25/F25) -> 4.082030403
A27: The purpose of this table is to re-align the current RTS Connection Rates to recover current wholesale connection costs.
A28: Rate Class | B28: Rate Description | C28: Unit | D28: Current RTSR-Connection | E28: Loss Adjusted Billed kWh | F28: Billed kW | G28: Billed Amount | H28: Billed Amount % | I28: Current Wholesale Billing | J28: Adjusted RTSR-Connection
A30: RESIDENTIAL SERVICE CLASSIFICATION | B30: Retail Transmission Rate - Line and Transformation Connection Service Rate | C30: $/kWh | D30: 0.007607656956 | E30: 8588848247 | G30: =ROUND(D30*E30, 2) -> 65341011.11 | H30: =G30/197974054.65 -> 0.3300483552 | I30: =H30*Total_Current_Wholesale_Lineplus -> 67206301.92 | J30: =IF(ISERROR(I30/E30), 0, I30/E30) -> 0.007824832851
A31: GENERAL SERVICE LESS THAN 50 KW SERVICE CLASSIFICATION | B31: Retail Transmission Rate - Line and Transformation Connection Service Rate | C31: $/kWh | D31: 0.006792031625 | E31: 2898800092 | G31: =ROUND(D31*E31, 2) -> 19688741.9 | H31: =G31/197974054.65 -> 0.09945112219 | I31: 20250796.71 | J31: =IF(ISERROR(I31/E31), 0, I31/E31) -> 0.006985923852
A32: GENERAL SERVICE 50 to 4,999 kW SERVICE CLASSIFICATION | B32: Retail Transmission Rate - Line and Transformation Connection Service Rate | C32: $/kW | D32: 2.773265071 | E32: 0 | F32: 33652794.09 | G32: =ROUND(D32*F32, 2) -> 93328118.41 | H32: 0.4714159064 | I32: 95992357.58 | J32: =IF(ISERROR(I32/F32), 0, I32/F32) -> 2.85243351
A33: GENERAL SERVICE 50 to 4,999 kW SERVICE CLASSIFICATION | B33: Retail Transmission Rate - Line and Transformation Connection Service Rate - EV CHARGING | C33: $/kW | D33: 0.4269120511 | E33: 0 | F33: 153743.54 | G33: =ROUND(D33*F33, 2) -> 65634.97 | H33: 0.0003315331906 | I33: 67508.65246 | J33: =IF(ISERROR(I33/F33), 0, I33/F33) -> 0.4390991157
A34: LARGE USE SERVICE CLASSIFICATION | B34: Retail Transmission Rate - Line and Transformation Connection Service Rate | C34: $/kW | D34: 3.506484737 | E34: 0 | F34: 3575954.698 | G34: =ROUND(D34*F34, 2) -> 12539030.57 | H34: 0.06333673669 | I34: 12896982.46 | J34: =IF(ISERROR(I34/F34), 0, I34/F34) -> 3.606584409
A35: LARGE USE WITH DEDICATED ASSETS SERVICE CLASSIFICATION | B35: Retail Transmission Rate - Line and Transformation Connection Service Rate | C35: $/kW | D35: 3.801472504 | E35: 0 | F35: 1601505.341 | G35: =ROUND(D35*F35, 2) -> 6088078.52 | H35: 0.03075190095 | I35: 6261874.987 | J35: =IF(ISERROR(I35/F35), 0, I35/F35) -> 3.909993196
A36: UNMETERED SCATTERED LOAD SERVICE CLASSIFICATION | B36: Retail Transmission Rate - Line and Transformation Connection Service Rate | C36: $/kWh | D36: 0.007036079336 | E36: 48174769.47 | G36: =ROUND(D36*E36, 2) -> 338961.5 | H36: 0.001712151123 | I36: 348637.8389 | J36: =IF(ISERROR(I36/E36), 0, I36/E36) -> 0.007236938396
A37: SENTINEL LIGHTING SERVICE CLASSIFICATION | B37: Retail Transmission Rate - Line and Transformation Connection Service Rate | C37: $/kW | D37: 2.20556502 | E37: 0 | F37: 1987.753686 | G37: =ROUND(D37*F37, 2) -> 4384.12 | H37: 2.214492201e-05 | I37: 4509.273538 | J37: =IF(ISERROR(I37/F37), 0, I37/F37) -> 2.268527318
A38: STREET LIGHTING SERVICE CLASSIFICATION | B38: Retail Transmission Rate - Line and Transformation Connection Service Rate | C38: $/kW | D38: 2.213935381 | E38: 0 | F38: 262019.1876 | G38: =ROUND(D38*F38, 2) -> 580093.55 | H38: 0.002930149362 | I38: 596653.4891 | J38: =IF(ISERROR(I38/F38), 0, I38/F38) -> 2.277136627
A40: The purpose of this table is to update the re-aligned RTS Network Rates to recover future wholesale network costs.
A41: Rate Class | B41: Rate Description | C41: Unit | D41: Adjusted RTSR-Network | E41: Loss Adjusted Billed kWh | F41: Billed kW | G41: Billed Amount | H41: Billed Amount % | I41: Forecast Wholesale Billing | J41: Proposed RTSR-Network
A43: RESIDENTIAL SERVICE CLASSIFICATION | B43: Retail Transmission Rate - Network Service Rate | C43: $/kWh | D43: =+J17 -> 0.01307404678 | E43: 1.013589718e+10 | F43: 0 | G43: =I17 -> 112291003.8 | H43: =G43/337127760.493865 -> 0.3330814515 | I43: =H43*forecast_wholesale_network_30 -> 121547393.8 | J43: =IF(ISERROR(I43/E43), 0, I43/E43) -> 0.01199177455
A44: GENERAL SERVICE LESS THAN 50 KW SERVICE CLASSIFICATION | B44: Retail Transmission Rate - Network Service Rate | C44: $/kWh | D44: 0.01180062121 | E44: 3268830486 | F44: 0 | G44: 34207641.84 | H44: =G44/337127760.493865 -> 0.101467888 | I44: 37027451.64 | J44: =IF(ISERROR(I44/E44), 0, I44/E44) -> 0.01132743096
A45: GENERAL SERVICE 50 to 4,999 kW SERVICE CLASSIFICATION | B45: Retail Transmission Rate - Network Service Rate | C45: $/kW | D45: 4.797734875 | E45: 0 | F45: 34689579.88 | G45: 161457183.8 | H45: 0.4789198718 | I45: 174766448.3 | J45: =IF(ISERROR(I45/F45), 0, I45/F45) -> 5.038009941
A46: GENERAL SERVICE 50 to 4,999 kW SERVICE CLASSIFICATION | B46: Retail Transmission Rate - Network Service Rate - EV CHARGING | C46: $/kW | D46: 0.8363958898 | E46: 0 | F46: 161773.6597 | G46: 128590.4649 | H46: 0.0003814294757 | I46: 139190.4547 | J46: =IF(ISERROR(I46/F46), 0, I46/F46) -> 0.8604024595
A47: LARGE USE SERVICE CLASSIFICATION | B47: Retail Transmission Rate - Network Service Rate | C47: $/kW | D47: 5.329617165 | E47: 0 | F47: 4611469.44 | G47: 19058469.54 | H47: 0.05653189021 | I47: 20629500.35 | J47: =IF(ISERROR(I47/F47), 0, I47/F47) -> 4.473519909
A48: LARGE USE WITH DEDICATED ASSETS SERVICE CLASSIFICATION | B48: Retail Transmission Rate - Network Service Rate | C48: $/kW | D48: 5.211177902 | E48: 0 | F48: 1605512.026 | G48: 8345729.245 | H48: 0.02475539016 | I48: 9033685.733 | J48: =IF(ISERROR(I48/F48), 0, I48/F48) -> 5.626669616
A49: UNMETERED SCATTERED LOAD SERVICE CLASSIFICATION | B49: Retail Transmission Rate - Network Service Rate | C49: $/kWh | D49: 0.01166925986 | E49: 50259086.77 | F49: 0 | G49: 562163.9039 | H49: 0.001667509976 | I49: 608504.2888 | J49: =IF(ISERROR(I49/E49), 0, I49/E49) -> 0.0121073487
A50: SENTINEL LIGHTING SERVICE CLASSIFICATION | B50: Retail Transmission Rate - Network Service Rate | C50: $/kW | D50: 3.726599134 | E50: 0 | F50: 1448.9 | G50: 7407.561166 | H50: 2.197256362e-05 | I50: 8018.182434 | J50: =IF(ISERROR(I50/F50), 0, I50/F50) -> 5.53397918
A51: STREET LIGHTING SERVICE CLASSIFICATION | B51: Retail Transmission Rate - Network Service Rate | C51: $/kW | D51: 4.082030403 | E51: 0 | F51: 265240 | G51: 1069570.29 | H51: 0.003172596313 | I51: 1157737.279 | J51: =IF(ISERROR(I51/F51), 0, I51/F51) -> 4.364866834
A53: The purpose of this table is to update the re-aligned RTS Connection Rates to recover future wholesale connection costs.
A54: Rate Class | B54: Rate Description | C54: Unit | D54: Adjusted RTSR-Connection | E54: Loss Adjusted Billed kWh | F54: Billed kW | G54: Billed Amount | H54: Billed Amount % | I54: Forecast Wholesale Billing | J54: Proposed RTSR-Connection
A56: RESIDENTIAL SERVICE CLASSIFICATION | B56: Retail Transmission Rate - Line and Transformation Connection Service Rate | C56: $/kWh | D56: =J30 -> 0.007824832851 | E56: 1.013589718e+10 | F56: 0 | G56: =I30 -> 67206301.92 | H56: =G56/203625622.92 -> 0.3300483552 | I56: =H56*forecast_wholesale_lineplus_30 -> 72746262.55 | J56: =IF(ISERROR(I56/E56), 0, I56/E56) -> 0.007177091605
A57: GENERAL SERVICE LESS THAN 50 KW SERVICE CLASSIFICATION | B57: Retail Transmission Rate - Line and Transformation Connection Service Rate | C57: $/kWh | D57: 0.006985923852 | E57: 3268830486 | F57: 0 | G57: 20250796.71 | H57: 0.09945112219 | I57: 21920113.62 | J57: =IF(ISERROR(I57/E57), 0, I57/E57) -> 0.006705796985
A58: GENERAL SERVICE 50 to 4,999 kW SERVICE CLASSIFICATION | B58: Retail Transmission Rate - Line and Transformation Connection Service Rate | C58: $/kW | D58: 2.85243351 | E58: 0 | F58: 34689579.88 | G58: 95992357.58 | H58: 0.4714159063 | I58: 103905215 | J58: =IF(ISERROR(I58/F58), 0, I58/F58) -> 2.995286058
A59: GENERAL SERVICE 50 to 4,999 kW SERVICE CLASSIFICATION | B59: Retail Transmission Rate - Line and Transformation Connection Service Rate - EV CHARGING | C59: $/kW | D59: 0.4390991157 | E59: 0 | F59: 161773.6597 | G59: 67508.65246 | H59: 0.0003315331906 | I59: 73073.53649 | J59: =IF(ISERROR(I59/F59), 0, I59/F59) -> 0.4517023143
A60: LARGE USE SERVICE CLASSIFICATION | B60: Retail Transmission Rate - Line and Transformation Connection Service Rate | C60: $/kW | D60: 3.606584409 | E60: 0 | F60: 4611469.44 | G60: 12896982.46 | H60: 0.06333673668 | I60: 13960108.58 | J60: =IF(ISERROR(I60/F60), 0, I60/F60) -> 3.027258179
A61: LARGE USE WITH DEDICATED ASSETS SERVICE CLASSIFICATION | B61: Retail Transmission Rate - Line and Transformation Connection Service Rate | C61: $/kW | D61: 3.909993196 | E61: 0 | F61: 1605512.026 | G61: 6261874.987 | H61: 0.03075190095 | I61: 6778054.868 | J61: =IF(ISERROR(I61/F61), 0, I61/F61) -> 4.221740329
A62: UNMETERED SCATTERED LOAD SERVICE CLASSIFICATION | B62: Retail Transmission Rate - Line and Transformation Connection Service Rate | C62: $/kWh | D62: 0.007236938396 | E62: 50259086.77 | F62: 0 | G62: 348637.8389 | H62: 0.001712151123 | I62: 377376.809 | J62: =IF(ISERROR(I62/E62), 0, I62/E62) -> 0.007508628455
A63: SENTINEL LIGHTING SERVICE CLASSIFICATION | B63: Retail Transmission Rate - Line and Transformation Connection Service Rate | C63: $/kW | D63: 2.268527318 | E63: 0 | F63: 1448.9 | G63: 4509.273538 | H63: 2.214492201e-05 | I63: 4880.982696 | J63: =IF(ISERROR(I63/F63), 0, I63/F63) -> 3.368750567
A64: STREET LIGHTING SERVICE CLASSIFICATION | B64: Retail Transmission Rate - Line and Transformation Connection Service Rate | C64: $/kW | D64: 2.277136627 | E64: 0 | F64: 265240 | G64: 596653.4891 | H64: 0.002930149362 | I64: 645836.925 | J64: =IF(ISERROR(I64/F64), 0, I64/F64) -> 2.434915265

Sheet 8. 2031 RTSR Rates to Forecast
A13: The purpose of this sheet is to re-align the current RTS Network Rates to recover current wholesale network costs.
A15: Rate Class | B15: Rate Description | C15: Unit | D15: Current RTSR-Network | E15: Loss Adjusted Billed kWh | F15: Billed kW | G15: Billed Amount | H15: Billed Amount % | I15: Current Wholesale Billing | J15: Adjusted RTSR Network
A17: RESIDENTIAL SERVICE CLASSIFICATION | B17: Retail Transmission Rate - Network Service Rate | C17: $/kWh | D17: 0.0127074273 | E17: 8588848247 | G17: =ROUND(D17*E17, 2) -> 109142164.7 | H17: =G17/327674099.56 -> 0.3330814515 | I17: =H17*total_current_wholesale_network -> 112291003.8 | J17: =IF(ISERROR(I17/E17), 0, I17/E17) -> 0.01307404678
A18: GENERAL SERVICE LESS THAN 50 KW SERVICE CLASSIFICATION | B18: Retail Transmission Rate - Network Service Rate | C18: $/kWh | D18: 0.01146971084 | E18: 2898800092 | G18: =ROUND(D18*E18, 2) -> 33248398.83 | H18: =G18/327674099.56 -> 0.101467888 | I18: 34207641.84 | J18: =IF(ISERROR(I18/E18), 0, I18/E18) -> 0.01180062121
A19: GENERAL SERVICE 50 to 4,999 kW SERVICE CLASSIFICATION | B19: Retail Transmission Rate - Network Service Rate | C19: $/kW | D19: 4.663197871 | E19: 0 | F19: 33652794.09 | G19: =ROUND(D19*F19, 2) -> 156929637.8 | H19: 0.4789198718 | I19: 161457183.8 | J19: =IF(ISERROR(I19/F19), 0, I19/F19) -> 4.797734875
A20: GENERAL SERVICE 50 to 4,999 kW SERVICE CLASSIFICATION | B20: Retail Transmission Rate - Network Service Rate - EV CHARGING | C20: $/kW | D20: 0.8129418641 | E20: 0 | F20: 153743.54 | G20: =ROUND(D20*F20, 2) -> 124984.56 | H20: 0.0003814294757 | I20: 128590.4649 | J20: =IF(ISERROR(I20/F20), 0, I20/F20) -> 0.8363958898
A21: LARGE USE SERVICE CLASSIFICATION | B21: Retail Transmission Rate - Network Service Rate | C21: $/kW | D21: 5.180165238 | E21: 0 | F21: 3575954.698 | G21: =ROUND(D21*F21, 2) -> 18524036.22 | H21: 0.05653189021 | I21: 19058469.54 | J21: =IF(ISERROR(I21/F21), 0, I21/F21) -> 5.329617165
A22: LARGE USE WITH DEDICATED ASSETS SERVICE CLASSIFICATION | B22: Retail Transmission Rate - Network Service Rate | C22: $/kW | D22: 5.065047222 | E22: 0 | F22: 1601505.341 | G22: =ROUND(D22*F22, 2) -> 8111700.18 | H22: 0.02475539016 | I22: 8345729.245 | J22: =IF(ISERROR(I22/F22), 0, I22/F22) -> 5.211177902
A23: UNMETERED SCATTERED LOAD SERVICE CLASSIFICATION | B23: Retail Transmission Rate - Network Service Rate | C23: $/kWh | D23: 0.0113420331 | E23: 48174769.47 | G23: =ROUND(D23*E23, 2) -> 546399.83 | H23: 0.001667509976 | I23: 562163.9039 | J23: =IF(ISERROR(I23/E23), 0, I23/E23) -> 0.01166925986
A24: SENTINEL LIGHTING SERVICE CLASSIFICATION | B24: Retail Transmission Rate - Network Service Rate | C24: $/kW | D24: 3.622098678 | E24: 0 | F24: 1987.753686 | G24: =ROUND(D24*F24, 2) -> 7199.84 | H24: 2.197256362e-05 | I24: 7407.561166 | J24: =IF(ISERROR(I24/F24), 0, I24/F24) -> 3.726599134
A25: STREET LIGHTING SERVICE CLASSIFICATION | B25: Retail Transmission Rate - Network Service Rate | C25: $/kW | D25: 3.967563023 | E25: 0 | F25: 262019.1876 | G25: =ROUND(D25*F25, 2) -> 1039577.64 | H25: 0.003172596313 | I25: 1069570.29 | J25: =IF(ISERROR(I25/F25), 0, I25/F25) -> 4.082030403
A27: The purpose of this table is to re-align the current RTS Connection Rates to recover current wholesale connection costs.
A28: Rate Class | B28: Rate Description | C28: Unit | D28: Current RTSR-Connection | E28: Loss Adjusted Billed kWh | F28: Billed kW | G28: Billed Amount | H28: Billed Amount % | I28: Current Wholesale Billing | J28: Adjusted RTSR-Connection
A30: RESIDENTIAL SERVICE CLASSIFICATION | B30: Retail Transmission Rate - Line and Transformation Connection Service Rate | C30: $/kWh | D30: 0.007607656956 | E30: 8588848247 | G30: =ROUND(D30*E30, 2) -> 65341011.11 | H30: =G30/197974054.65 -> 0.3300483552 | I30: =H30*Total_Current_Wholesale_Lineplus -> 67206301.92 | J30: =IF(ISERROR(I30/E30), 0, I30/E30) -> 0.007824832851
A31: GENERAL SERVICE LESS THAN 50 KW SERVICE CLASSIFICATION | B31: Retail Transmission Rate - Line and Transformation Connection Service Rate | C31: $/kWh | D31: 0.006792031625 | E31: 2898800092 | G31: =ROUND(D31*E31, 2) -> 19688741.9 | H31: =G31/197974054.65 -> 0.09945112219 | I31: 20250796.71 | J31: =IF(ISERROR(I31/E31), 0, I31/E31) -> 0.006985923852
A32: GENERAL SERVICE 50 to 4,999 kW SERVICE CLASSIFICATION | B32: Retail Transmission Rate - Line and Transformation Connection Service Rate | C32: $/kW | D32: 2.773265071 | E32: 0 | F32: 33652794.09 | G32: =ROUND(D32*F32, 2) -> 93328118.41 | H32: 0.4714159064 | I32: 95992357.58 | J32: =IF(ISERROR(I32/F32), 0, I32/F32) -> 2.85243351
A33: GENERAL SERVICE 50 to 4,999 kW SERVICE CLASSIFICATION | B33: Retail Transmission Rate - Line and Transformation Connection Service Rate - EV CHARGING | C33: $/kW | D33: 0.4269120511 | E33: 0 | F33: 153743.54 | G33: =ROUND(D33*F33, 2) -> 65634.97 | H33: 0.0003315331906 | I33: 67508.65246 | J33: =IF(ISERROR(I33/F33), 0, I33/F33) -> 0.4390991157
A34: LARGE USE SERVICE CLASSIFICATION | B34: Retail Transmission Rate - Line and Transformation Connection Service Rate | C34: $/kW | D34: 3.506484737 | E34: 0 | F34: 3575954.698 | G34: =ROUND(D34*F34, 2) -> 12539030.57 | H34: 0.06333673669 | I34: 12896982.46 | J34: =IF(ISERROR(I34/F34), 0, I34/F34) -> 3.606584409
A35: LARGE USE WITH DEDICATED ASSETS SERVICE CLASSIFICATION | B35: Retail Transmission Rate - Line and Transformation Connection Service Rate | C35: $/kW | D35: 3.801472504 | E35: 0 | F35: 1601505.341 | G35: =ROUND(D35*F35, 2) -> 6088078.52 | H35: 0.03075190095 | I35: 6261874.987 | J35: =IF(ISERROR(I35/F35), 0, I35/F35) -> 3.909993196
A36: UNMETERED SCATTERED LOAD SERVICE CLASSIFICATION | B36: Retail Transmission Rate - Line and Transformation Connection Service Rate | C36: $/kWh | D36: 0.007036079336 | E36: 48174769.47 | G36: =ROUND(D36*E36, 2) -> 338961.5 | H36: 0.001712151123 | I36: 348637.8389 | J36: =IF(ISERROR(I36/E36), 0, I36/E36) -> 0.007236938396
A37: SENTINEL LIGHTING SERVICE CLASSIFICATION | B37: Retail Transmission Rate - Line and Transformation Connection Service Rate | C37: $/kW | D37: 2.20556502 | E37: 0 | F37: 1987.753686 | G37: =ROUND(D37*F37, 2) -> 4384.12 | H37: 2.214492201e-05 | I37: 4509.273538 | J37: =IF(ISERROR(I37/F37), 0, I37/F37) -> 2.268527318
A38: STREET LIGHTING SERVICE CLASSIFICATION | B38: Retail Transmission Rate - Line and Transformation Connection Service Rate | C38: $/kW | D38: 2.213935381 | E38: 0 | F38: 262019.1876 | G38: =ROUND(D38*F38, 2) -> 580093.55 | H38: 0.002930149362 | I38: 596653.4891 | J38: =IF(ISERROR(I38/F38), 0, I38/F38) -> 2.277136627
A40: The purpose of this table is to update the re-aligned RTS Network Rates to recover future wholesale network costs.
A41: Rate Class | B41: Rate Description | C41: Unit | D41: Adjusted RTSR-Network | E41: Loss Adjusted Billed kWh | F41: Billed kW | G41: Billed Amount | H41: Billed Amount % | I41: Forecast Wholesale Billing | J41: Proposed RTSR-Network
A43: RESIDENTIAL SERVICE CLASSIFICATION | B43: Retail Transmission Rate - Network Service Rate | C43: $/kWh | D43: =+J17 -> 0.01307404678 | E43: 1.054305815e+10 | F43: 0 | G43: =I17 -> 112291003.8 | H43: =G43/337127760.493865 -> 0.3330814515 | I43: =H43*forecast_wholesale_network_31 -> 123978341.7 | J43: =IF(ISERROR(I43/E43), 0, I43/E43) -> 0.0117592391
A44: GENERAL SERVICE LESS THAN 50 KW SERVICE CLASSIFICATION | B44: Retail Transmission Rate - Network Service Rate | C44: $/kWh | D44: 0.01180062121 | E44: 3375523486 | F44: 0 | G44: 34207641.84 | H44: =G44/337127760.493865 -> 0.101467888 | I44: 37768000.68 | J44: =IF(ISERROR(I44/E44), 0, I44/E44) -> 0.01118878326
A45: GENERAL SERVICE 50 to 4,999 kW SERVICE CLASSIFICATION | B45: Retail Transmission Rate - Network Service Rate | C45: $/kW | D45: 4.797734875 | E45: 0 | F45: 34816092.46 | G45: 161457183.8 | H45: 0.4789198718 | I45: 178261777.2 | J45: =IF(ISERROR(I45/F45), 0, I45/F45) -> 5.120097191
A46: GENERAL SERVICE 50 to 4,999 kW SERVICE CLASSIFICATION | B46: Retail Transmission Rate - Network Service Rate - EV CHARGING | C46: $/kW | D46: 0.8363958898 | E46: 0 | F46: 165079.4 | G46: 128590.4649 | H46: 0.0003814294757 | I46: 141974.2638 | J46: =IF(ISERROR(I46/F46), 0, I46/F46) -> 0.860036224
A47: LARGE USE SERVICE CLASSIFICATION | B47: Retail Transmission Rate - Network Service Rate | C47: $/kW | D47: 5.329617165 | E47: 0 | F47: 4855310.426 | G47: 19058469.54 | H47: 0.05653189021 | I47: 21042090.36 | J47: =IF(ISERROR(I47/F47), 0, I47/F47) -> 4.333830077
A48: LARGE USE WITH DEDICATED ASSETS SERVICE CLASSIFICATION | B48: Retail Transmission Rate - Network Service Rate | C48: $/kW | D48: 5.211177902 | E48: 0 | F48: 1605512.026 | G48: 8345729.245 | H48: 0.02475539016 | I48: 9214359.448 | J48: =IF(ISERROR(I48/F48), 0, I48/F48) -> 5.739203009
A49: UNMETERED SCATTERED LOAD SERVICE CLASSIFICATION | B49: Retail Transmission Rate - Network Service Rate | C49: $/kWh | D49: 0.01166925986 | E49: 50637681.42 | F49: 0 | G49: 562163.9039 | H49: 0.001667509976 | I49: 620674.3746 | J49: =IF(ISERROR(I49/E49), 0, I49/E49) -> 0.01225716417
A50: SENTINEL LIGHTING SERVICE CLASSIFICATION | B50: Retail Transmission Rate - Network Service Rate | C50: $/kW | D50: 3.726599134 | E50: 0 | F50: 1418.9 | G50: 7407.561166 | H50: 2.197256362e-05 | I50: 8178.546082 | J50: =IF(ISERROR(I50/F50), 0, I50/F50) -> 5.764004569
A51: STREET LIGHTING SERVICE CLASSIFICATION | B51: Retail Transmission Rate - Network Service Rate | C51: $/kW | D51: 4.082030403 | E51: 0 | F51: 265260 | G51: 1069570.29 | H51: 0.003172596313 | I51: 1180892.025 | J51: =IF(ISERROR(I51/F51), 0, I51/F51) -> 4.451828488
A53: The purpose of this table is to update the re-aligned RTS Connection Rates to recover future wholesale connection costs.
A54: Rate Class | B54: Rate Description | C54: Unit | D54: Adjusted RTSR-Connection | E54: Loss Adjusted Billed kWh | F54: Billed kW | G54: Billed Amount | H54: Billed Amount % | I54: Forecast Wholesale Billing | J54: Proposed RTSR-Connection
A56: RESIDENTIAL SERVICE CLASSIFICATION | B56: Retail Transmission Rate - Line and Transformation Connection Service Rate | C56: $/kWh | D56: =J30 -> 0.007824832851 | E56: 1.054305815e+10 | F56: 0 | G56: =I30 -> 67206301.92 | H56: =G56/203625622.92 -> 0.3300483552 | I56: =H56*forecast_wholesale_lineplus_31 -> 74201187.8 | J56: =IF(ISERROR(I56/E56), 0, I56/E56) -> 0.007037918859
A57: GENERAL SERVICE LESS THAN 50 KW SERVICE CLASSIFICATION | B57: Retail Transmission Rate - Line and Transformation Connection Service Rate | C57: $/kWh | D57: 0.006985923852 | E57: 3375523486 | F57: 0 | G57: 20250796.71 | H57: 0.09945112219 | I57: 22358515.89 | J57: =IF(ISERROR(I57/E57), 0, I57/E57) -> 0.006623718064
A58: GENERAL SERVICE 50 to 4,999 kW SERVICE CLASSIFICATION | B58: Retail Transmission Rate - Line and Transformation Connection Service Rate | C58: $/kW | D58: 2.85243351 | E58: 0 | F58: 34816092.46 | G58: 95992357.58 | H58: 0.4714159063 | I58: 105983319.3 | J58: =IF(ISERROR(I58/F58), 0, I58/F58) -> 3.04409001
A59: GENERAL SERVICE 50 to 4,999 kW SERVICE CLASSIFICATION | B59: Retail Transmission Rate - Line and Transformation Connection Service Rate - EV CHARGING | C59: $/kW | D59: 0.4390991157 | E59: 0 | F59: 165079.4 | G59: 67508.65246 | H59: 0.0003315331906 | I59: 74535.00722 | J59: =IF(ISERROR(I59/F59), 0, I59/F59) -> 0.4515100445
A60: LARGE USE SERVICE CLASSIFICATION | B60: Retail Transmission Rate - Line and Transformation Connection Service Rate | C60: $/kW | D60: 3.606584409 | E60: 0 | F60: 4855310.426 | G60: 12896982.46 | H60: 0.06333673668 | I60: 14239310.75 | J60: =IF(ISERROR(I60/F60), 0, I60/F60) -> 2.932729219
A61: LARGE USE WITH DEDICATED ASSETS SERVICE CLASSIFICATION | B61: Retail Transmission Rate - Line and Transformation Connection Service Rate | C61: $/kW | D61: 3.909993196 | E61: 0 | F61: 1605512.026 | G61: 6261874.987 | H61: 0.03075190095 | I61: 6913615.965 | J61: =IF(ISERROR(I61/F61), 0, I61/F61) -> 4.306175136
A62: UNMETERED SCATTERED LOAD SERVICE CLASSIFICATION | B62: Retail Transmission Rate - Line and Transformation Connection Service Rate | C62: $/kWh | D62: 0.007236938396 | E62: 50637681.42 | F62: 0 | G62: 348637.8389 | H62: 0.001712151123 | I62: 384924.3452 | J62: =IF(ISERROR(I62/E62), 0, I62/E62) -> 0.007601539692
A63: SENTINEL LIGHTING SERVICE CLASSIFICATION | B63: Retail Transmission Rate - Line and Transformation Connection Service Rate | C63: $/kW | D63: 2.268527318 | E63: 0 | F63: 1418.9 | G63: 4509.273538 | H63: 2.214492201e-05 | I63: 4978.60235 | J63: =IF(ISERROR(I63/F63), 0, I63/F63) -> 3.508776059
A64: STREET LIGHTING SERVICE CLASSIFICATION | B64: Retail Transmission Rate - Line and Transformation Connection Service Rate | C64: $/kW | D64: 2.277136627 | E64: 0 | F64: 265260 | G64: 596653.4891 | H64: 0.002930149362 | I64: 658753.6635 | J64: =IF(ISERROR(I64/F64), 0, I64/F64) -> 2.483426312

Sheet 9. 2027 LV Rates
A13: The purpose of this sheet is to calculate Low Voltage service rates based on a forecasted host distribution expense.
B15: Low Voltage Charges | D15: Bridge Year | E15: Forecast
B17: Host I:
D18: =TestYear-5 -> 2022 | E18: =D18+1 -> 2023 | F18: 2024 | G18: 2025 | H18: =G18+1&" " &E15 -> 2026 Forecast | I18: =G18+2&" Forecast" -> 2027 Forecast | J18: =$G18+3&" Forecast" -> 2028 Forecast | K18: =$G18+4&" Forecast" -> 2029 Forecast | L18: =$G18+5&" Forecast" -> 2030 Forecast | M18: =$G18+6&" Forecast" -> 2031 Forecast
B19: Host Volume (kW) | I19: 6699565.18 | J19: 6830822.399 | K19: 6957637.7 | L19: 7118182.317 | M19: 7270964.816
B20: Host Charges | I20: 12434339.38 | J20: 12931510.76 | K20: 13435018.04 | L20: 14019926.04 | M20: 14607262.37
B22: Host II:
D23: =D18 -> 2022 | E23: 2023 | F23: 2024 | G23: 2025 | H23: 2026 Forecast | I23: 2027 Forecast | J23: 2028 Forecast | K23: 2029 Forecast | L23: 2030 Forecast | M23: 2031 Forecast
B24: Host Volume
B25: Host Charges
B27: Instructions: The methodology of the test year forecast for host charges is at the distributor's discretion. Please ensure that the value for Host Charges in the test year is completed. All other entries are optional, and may be used to support the derivation.
B28: Regardless of methodology chosen, please provide a brief descrioptor of the methdology used, and a complated description with rationale in the filed evidence.
B30: Low Voltage Rates
B32: Proposed Loss Factor | C32: 1.0356
B34: Instructions: Please enter the rate class volumes consistent with the proposed load forecast, and proposed loss factor.
B35: If Low Voltage charges are applied based on volumes uplifted for losses, please select Loss Adjusted Volume in cell J37
J36: Select Loss adjusted or Delivered
B37: Rate Class | C37: Unit | D37: =TestYear&" Forecasted Volume" -> 2027 Forecasted Volume | E37: RTSR Connection Rate | F37: Loss Adjusted Volume | G37: RTSR Connection Revenue | H37: Allocation | I37: Allocated Low Voltage Charges | J37: Loss Adjusted Volume | K37: Low Voltage Rates
B39: RESIDENTIAL SERVICE CLASSIFICATION | C39: $/kWh | D39: 8726286424 | E39: 0.007585577763 | F39: =IF(C39="$/kWh",D39*C$32,D39) -> 9036942221 | G39: =+'8. 2027 RTSR Rates to Forecast'!G56 -> 67206301.92 | H39: =G39/$G48 -> 0.3300483552 | I39: =H39*(I20+I25) -> 4103933.26 | J39: =IF(J$37="Loss Adjusted Volume",F39,D39) -> 9036942221 | K39: =IFERROR(I39/D39,0) -> 0.0004702955026
B40: GENERAL SERVICE LESS THAN 50 KW SERVICE CLASSIFICATION | C40: $/kWh | D40: 2875761314 | E40: 0.006935813502 | F40: 2978138417 | G40: =+'8. 2027 RTSR Rates to Forecast'!G57 -> 20250796.71 | H40: =G40/$G48 -> 0.09945112219 | I40: =H40*(I20+I25) -> 1236609.005 | J40: =IF(J$37="Loss Adjusted Volume",F40,D40) -> 2978138417 | K40: =IFERROR(I40/D40,0) -> 0.0004300110023
B41: GENERAL SERVICE 50 to 4,999 kW SERVICE CLASSIFICATION | C41: $/kW | D41: 34388479.68 | E41: 2.859953361 | F41: 34388479.68 | G41: =+'8. 2027 RTSR Rates to Forecast'!G58+'8. 2027 RTSR Rates to Forecast'!G59 -> 96059866.24 | H41: =G41/$G48 -> 0.4717474396 | I41: =H41*(I20+I25) -> 5865867.764 | J41: 34388479.68 | K41: =IFERROR(I41/J41,0) -> 0.1705765366
B42: LARGE USE SERVICE CLASSIFICATION | C42: $/kW | D42: 4047427.378 | E42: 3.250193488 | F42: 4047427.378 | G42: ='8. 2027 RTSR Rates to Forecast'!G60 -> 12896982.46 | H42: =G42/$G48 -> 0.06333673669 | I42: =H42*(I20+I25) -> 787550.479 | J42: 4047427.378 | K42: =IFERROR(I42/J42,0) -> 0.1945805089
B43: LARGE USE WITH DEDICATED ASSETS SERVICE CLASSIFICATION | C43: $/kW | D43: 1605512.026 | E43: 3.978240203 | F43: 1605512.026 | G43: ='8. 2027 RTSR Rates to Forecast'!G61 -> 6261874.987 | H43: =G43/$G48 -> 0.03075190095 | I43: =H43*(I20+I25) -> 382379.573 | J43: 1605512.026 | K43: =IFERROR(I43/J43,0) -> 0.2381667448
B44: UNMETERED SCATTERED LOAD SERVICE CLASSIFICATION | C44: $/kWh | D44: 47436520 | E44: 0.007238854204 | F44: 49125260.11 | G44: ='8. 2027 RTSR Rates to Forecast'!G62 -> 348637.8389 | H44: =G44/$G48 -> 0.001712151123 | I44: =H44*(I20+I25) -> 21289.46813 | J44: 49125260.11 | K44: =IFERROR(I44/D44,0) -> 0.0004487991136
B45: SENTINEL LIGHTING SERVICE CLASSIFICATION | C45: $/kW | D45: 1608.9 | E45: 2.858760028 | F45: 1608.9 | G45: ='8. 2027 RTSR Rates to Forecast'!G63 -> 4509.273538 | H45: =G45/$G48 -> 2.214492201e-05 | I45: =H45*(I20+I25) -> 275.3574757 | J45: 1608.9 | K45: =IFERROR(I45/J45,0) -> 0.1711464204
B46: STREET LIGHTING SERVICE CLASSIFICATION | C46: $/kW | D46: 264100 | E46: 2.304379246 | F46: 264100 | G46: ='8. 2027 RTSR Rates to Forecast'!G64 -> 596653.4891 | H46: =G46/$G48 -> 0.002930149362 | I46: =H46*(I20+I25) -> 36434.4716 | J46: 264100 | K46: =IFERROR(I46/J46,0) -> 0.1379571056
B48: TOTAL | G48: =SUM(G39:G46) -> 203625622.9 | H48: =SUM(H39:H46) -> 1 | I48: =I20+I25 -> 12434339.38

Sheet 9. 2028 LV Rates
A13: The purpose of this sheet is to calculate Low Voltage service rates based on a forecasted host distribution expense.
B15: Low Voltage Charges | D15: Bridge Year | E15: Forecast
B17: Host I:
D18: =TestYear-5 -> 2022 | E18: =D18+1 -> 2023 | F18: 2024 | G18: 2025 | H18: =G18+1&" " &E15 -> 2026 Forecast | I18: =G18+2&" Forecast" -> 2027 Forecast | J18: =$G18+3&" Forecast" -> 2028 Forecast | K18: =$G18+4&" Forecast" -> 2029 Forecast | L18: =$G18+5&" Forecast" -> 2030 Forecast | M18: =$G18+6&" Forecast" -> 2031 Forecast
B19: Host Volume | I19: 6699565.18 | J19: 6830822.399 | K19: 6957637.7 | L19: 7118182.317 | M19: 7270964.816
B20: Host Charges | I20: 12434339.38 | J20: 12931510.76 | K20: 13435018.04 | L20: 14019926.04 | M20: 14607262.37
B22: Host II:
D23: =D18 -> 2022 | E23: 2023 | F23: 2024 | G23: 2025 | H23: 2026 Forecast | I23: 2027 Forecast | J23: 2028 Forecast | K23: 2029 Forecast | L23: 2030 Forecast | M23: 2031 Forecast
B24: Host Volume
B25: Host Charges
B27: Instructions: The methodology of the test year forecast for host charges is at the distributor's discretion. Please ensure that the value for Host Charges in the test year is completed. All other entries are optional, and may be used to support the derivation.
B28: Regardless of methodology chosen, please provide a brief descrioptor of the methdology used, and a complated description with rationale in the filed evidence.
B30: Low Voltage Rates
B32: Proposed Loss Factor | C32: 1.0356
B34: Instructions: Please enter the rate class volumes consistent with the proposed load forecast, and proposed loss factor.
B35: If Low Voltage charges are applied based on volumes uplifted for losses, please select Loss Adjusted Volume in cell J37
J36: Select Loss adjusted or Delivered
B37: Rate Class | C37: Unit | D37: =2028&" Forecasted Volume" -> 2028 Forecasted Volume | E37: RTSR Connection Rate | F37: Loss Adjusted Volume | G37: RTSR Connection Revenue | H37: Allocation | I37: Allocated Low Voltage Charges | J37: Loss Adjusted Volume | K37: Low Voltage Rates
B39: RESIDENTIAL SERVICE CLASSIFICATION | C39: $/kWh | D39: 9039740601 | E39: 0.007468997808 | F39: =IF(C39="$/kWh",D39*C$32,D39) -> 9361555367 | G39: =+'8. 2028 RTSR Rates to Forecast'!G56 -> 67206301.92 | H39: =G39/$G48 -> 0.3300483552 | I39: =H39*($J$20+$J$25) -> 4268023.857 | J39: =IF(J$37="Loss Adjusted Volume",F39,D39) -> 9361555367 | K39: =IFERROR(I39/D39,0) -> 0.0004721400807
B40: GENERAL SERVICE LESS THAN 50 KW SERVICE CLASSIFICATION | C40: $/kWh | D40: 2959530314 | E40: 0.006874286415 | F40: 3064889593 | G40: =+'8. 2028 RTSR Rates to Forecast'!G57 -> 20250796.71 | H40: =G40/$G48 -> 0.09945112219 | I40: =H40*($J$20+$J$25) -> 1286053.257 | J40: 3064889593 | K40: =IFERROR(I40/D40,0) -> 0.0004345464045
B41: GENERAL SERVICE 50 to 4,999 kW SERVICE CLASSIFICATION | C41: $/kW | D41: 34563166.3 | E41: 2.902560213 | F41: 34563166.3 | G41: =+'8. 2028 RTSR Rates to Forecast'!G58+'8. 2028 RTSR Rates to Forecast'!G59 -> 96059866.24 | H41: =G41/$G48 -> 0.4717474396 | I41: 6100407.091 | J41: 34563166.3 | K41: =IFERROR(I41/J41,0) -> 0.1765002384
B42: LARGE USE SERVICE CLASSIFICATION | C42: $/kW | D42: 4062419.741 | E42: 3.30296262 | F42: 4062419.741 | G42: ='8. 2028 RTSR Rates to Forecast'!G60 -> 12896982.46 | H42: =G42/$G48 -> 0.06333673669 | I42: 819039.692 | J42: 4062419.741 | K42: =IFERROR(I42/J42,0) -> 0.2016137534
B43: LARGE USE WITH DEDICATED ASSETS SERVICE CLASSIFICATION | C43: $/kW | D43: 1601912.026 | E43: 4.066924171 | F43: 1601912.026 | G43: ='8. 2028 RTSR Rates to Forecast'!G61 -> 6261874.987 | H43: =G43/$G48 -> 0.03075190095 | I43: 397668.5381 | J43: 1601912.026 | K43: =IFERROR(I43/J43,0) -> 0.2482461781
B44: UNMETERED SCATTERED LOAD SERVICE CLASSIFICATION | C44: $/kWh | D44: 47800570 | E44: 0.00732739742 | F44: 49502270.29 | G44: ='8. 2028 RTSR Rates to Forecast'!G62 -> 348637.8389 | H44: =G44/$G48 -> 0.001712151123 | I44: 22140.70067 | J44: 49502270.29 | K44: =IFERROR(I44/D44,0) -> 0.0004631890513
B45: SENTINEL LIGHTING SERVICE CLASSIFICATION | C45: $/kW | D45: 1558.8 | E45: 3.009653701 | F45: 1558.8 | G45: ='8. 2028 RTSR Rates to Forecast'!G63 -> 4509.273538 | H45: =G45/$G48 -> 2.214492201e-05 | I45: 286.3672972 | J45: 1558.8 | K45: =IFERROR(I45/J45,0) -> 0.1837100957
B46: STREET LIGHTING SERVICE CLASSIFICATION | C46: $/kW | D46: 264120 | E46: 2.350288846 | F46: 264120 | G46: ='8. 2028 RTSR Rates to Forecast'!G64 -> 596653.4891 | H46: =G46/$G48 -> 0.002930149362 | I46: 37891.25801 | J46: 264120 | K46: =IFERROR(I46/J46,0) -> 0.1434622823
B48: TOTAL | G48: =SUM(G39:G46) -> 203625622.9 | H48: =SUM(H39:H46) -> 1 | I48: =J20+J25 -> 12931510.76

Sheet 9. 2029 LV Rates
A13: The purpose of this sheet is to calculate Low Voltage service rates based on a forecasted host distribution expense.
B15: Low Voltage Charges | D15: Bridge Year | E15: Forecast
B17: Host I:
D18: =TestYear-5 -> 2022 | E18: =D18+1 -> 2023 | F18: 2024 | G18: 2025 | H18: =G18+1&" " &E15 -> 2026 Forecast | I18: =G18+2&" Forecast" -> 2027 Forecast | J18: =$G18+3&" Forecast" -> 2028 Forecast | K18: =$G18+4&" Forecast" -> 2029 Forecast | L18: =$G18+5&" Forecast" -> 2030 Forecast | M18: =$G18+6&" Forecast" -> 2031 Forecast
B19: Host Volume | I19: 6699565.18 | J19: 6830822.399 | K19: 6957637.7 | L19: 7118182.317 | M19: 7270964.816
B20: Host Charges | I20: 12434339.38 | J20: 12931510.76 | K20: 13435018.04 | L20: 14019926.04 | M20: 14607262.37
B22: Host II:
D23: =D18 -> 2022 | E23: 2023 | F23: 2024 | G23: 2025 | H23: 2026 Forecast | I23: 2027 Forecast | J23: 2028 Forecast | K23: 2029 Forecast | L23: 2030 Forecast | M23: 2031 Forecast
B24: Host Volume
B25: Host Charges
B27: Instructions: The methodology of the test year forecast for host charges is at the distributor's discretion. Please ensure that the value for Host Charges in the test year is completed. All other entries are optional, and may be used to support the derivation.
B28: Regardless of methodology chosen, please provide a brief descrioptor of the methdology used, and a complated description with rationale in the filed evidence.
B30: Low Voltage Rates
B32: Proposed Loss Factor | C32: 1.0356
B34: Instructions: Please enter the rate class volumes consistent with the proposed load forecast, and proposed loss factor.
B35: If Low Voltage charges are applied based on volumes uplifted for losses, please select Loss Adjusted Volume in cell J37
J36: Select Loss adjusted or Delivered
B37: Rate Class | C37: Unit | D37: =2029&" Forecasted Volume" -> 2029 Forecasted Volume | E37: RTSR Connection Rate | F37: Loss Adjusted Volume | G37: RTSR Connection Revenue | H37: Allocation | I37: Allocated Low Voltage Charges | J37: Loss Adjusted Volume | K37: Low Voltage Rates
B39: RESIDENTIAL SERVICE CLASSIFICATION | C39: $/kWh | D39: 9367473816 | E39: 0.007351838942 | F39: =IF(C39="$/kWh",D39*C$32,D39) -> 9700955884 | G39: =+'8. 2029 RTSR Rates to Forecast'!G56 -> 67206301.92 | H39: =G39/$G48 -> 0.3300483552 | I39: =H39*($K$20+$K$25) -> 4434205.605 | J39: =IF(J$37="Loss Adjusted Volume",F39,D39) -> 9700955884 | K39: =IFERROR(I39/D39,0) -> 0.0004733619428
B40: GENERAL SERVICE LESS THAN 50 KW SERVICE CLASSIFICATION | C40: $/kWh | D40: 3048644735 | E40: 0.006806812211 | F40: 3157176488 | G40: =+'8. 2029 RTSR Rates to Forecast'!G57 -> 20250796.71 | H40: =G40/$G48 -> 0.09945112219 | I40: =H40*($K$20+$K$25) -> 1336127.62 | J40: 3157176488 | K40: =IFERROR(I40/D40,0) -> 0.0004382693742
B41: GENERAL SERVICE 50 to 4,999 kW SERVICE CLASSIFICATION | C41: $/kW | D41: 34740790.52 | E41: 2.945693924 | F41: 34740790.52 | G41: =+'8. 2029 RTSR Rates to Forecast'!G58+'8. 2029 RTSR Rates to Forecast'!G59 -> 96059866.24 | H41: =G41/$G48 -> 0.4717474396 | I41: 6337935.358 | J41: 34740790.52 | K41: =IFERROR(I41/J41,0) -> 0.1824349781
B42: LARGE USE SERVICE CLASSIFICATION | C42: $/kW | D42: 4234072.364 | E42: 3.232439076 | F42: 4234072.364 | G42: ='8. 2029 RTSR Rates to Forecast'!G60 -> 12896982.46 | H42: =G42/$G48 -> 0.06333673669 | I42: 850930.1997 | J42: 4234072.364 | K42: =IFERROR(I42/J42,0) -> 0.2009720492
B43: LARGE USE WITH DEDICATED ASSETS SERVICE CLASSIFICATION | C43: $/kW | D43: 1605512.026 | E43: 4.138961107 | F43: 1605512.026 | G43: ='8. 2029 RTSR Rates to Forecast'!G61 -> 6261874.987 | H43: =G43/$G48 -> 0.03075190095 | I43: 413152.3439 | J43: 1605512.026 | K43: =IFERROR(I43/J43,0) -> 0.2573336962
B44: UNMETERED SCATTERED LOAD SERVICE CLASSIFICATION | C44: $/kWh | D44: 48165810 | E44: 0.007417270648 | F44: 49880512.84 | G44: ='8. 2029 RTSR Rates to Forecast'!G62 -> 348637.8389 | H44: =G44/$G48 -> 0.001712151123 | I44: 23002.78122 | J44: 49880512.84 | K44: =IFERROR(I44/D44,0) -> 0.0004775748859
B45: SENTINEL LIGHTING SERVICE CLASSIFICATION | C45: $/kW | D45: 1488.9 | E45: 3.213968133 | F45: 1488.9 | G45: ='8. 2029 RTSR Rates to Forecast'!G63 -> 4509.273538 | H45: =G45/$G48 -> 2.214492201e-05 | I45: 297.5174266 | J45: 1488.9 | K45: =IFERROR(I45/J45,0) -> 0.199823646
B46: STREET LIGHTING SERVICE CLASSIFICATION | C46: $/kW | D46: 265150 | E46: 2.387982108 | F46: 265150 | G46: ='8. 2029 RTSR Rates to Forecast'!G64 -> 596653.4891 | H46: =G46/$G48 -> 0.002930149362 | I46: 39366.60953 | J46: 265150 | K46: =IFERROR(I46/J46,0) -> 0.1484692043
B48: TOTAL | G48: =SUM(G39:G46) -> 203625622.9 | H48: =SUM(H39:H46) -> 1 | I48: =K20+K25 -> 13435018.04

Sheet 9. 2030 LV Rates
A13: The purpose of this sheet is to calculate Low Voltage service rates based on a forecasted host distribution expense.
B15: Low Voltage Charges | D15: Bridge Year | E15: Forecast
B17: Host I:
D18: =TestYear-5 -> 2022 | E18: =D18+1 -> 2023 | F18: 2024 | G18: 2025 | H18: =G18+1&" " &E15 -> 2026 Forecast | I18: =G18+2&" Forecast" -> 2027 Forecast | J18: =$G18+3&" Forecast" -> 2028 Forecast | K18: =$G18+4&" Forecast" -> 2029 Forecast | L18: =$G18+5&" Forecast" -> 2030 Forecast | M18: =$G18+6&" Forecast" -> 2031 Forecast
B19: Host Volume | I19: 6699565.18 | J19: 6830822.399 | K19: 6957637.7 | L19: 7118182.317 | M19: 7270964.816
B20: Host Charges | I20: 12434339.38 | J20: 12931510.76 | K20: 13435018.04 | L20: 14019926.04 | M20: 14607262.37
B22: Host II:
D23: =D18 -> 2022 | E23: 2023 | F23: 2024 | G23: 2025 | H23: 2026 Forecast | I23: 2027 Forecast | J23: 2028 Forecast | K23: 2029 Forecast | L23: 2030 Forecast | M23: 2031 Forecast
B24: Host Volume
B25: Host Charges
B27: Instructions: The methodology of the test year forecast for host charges is at the distributor's discretion. Please ensure that the value for Host Charges in the test year is completed. All other entries are optional, and may be used to support the derivation.
B28: Regardless of methodology chosen, please provide a brief descrioptor of the methdology used, and a complated description with rationale in the filed evidence.
B30: Low Voltage Rates
B32: Proposed Loss Factor | C32: 1.0356
B34: Instructions: Please enter the rate class volumes consistent with the proposed load forecast, and proposed loss factor.
B35: If Low Voltage charges are applied based on volumes uplifted for losses, please select Loss Adjusted Volume in cell J37
J36: Select Loss adjusted or Delivered
B37: Rate Class | C37: Unit | D37: =2030&" Forecasted Volume" -> 2030 Forecasted Volume | E37: RTSR Connection Rate | F37: Loss Adjusted Volume | G37: RTSR Connection Revenue | H37: Allocation | I37: Allocated Low Voltage Charges | J37: Loss Adjusted Volume | K37: Low Voltage Rates
B39: RESIDENTIAL SERVICE CLASSIFICATION | C39: $/kWh | D39: 9787463479 | E39: 0.007177091605 | F39: =IF(C39="$/kWh",D39*C$32,D39) -> 1.013589718e+10 | G39: =+'8. 2030 RTSR Rates to Forecast'!G56 -> 67206301.92 | H39: =G39/$G48 -> 0.3300483552 | I39: =H39*($L$20+$L$25) -> 4627253.529 | J39: =IF(J$37="Loss Adjusted Volume",F39,D39) -> 1.013589718e+10 | K39: =IFERROR(I39/D39,0) -> 0.0004727735168
B40: GENERAL SERVICE LESS THAN 50 KW SERVICE CLASSIFICATION | C40: $/kWh | D40: 3156460493 | E40: 0.006705796985 | F40: 3268830486 | G40: =+'8. 2030 RTSR Rates to Forecast'!G57 -> 20250796.71 | H40: =G40/$G48 -> 0.09945112219 | I40: =H40*($L$20+$L$25) -> 1394297.378 | J40: 3268830486 | K40: =IFERROR(I40/D40,0) -> 0.0004417281258
B41: GENERAL SERVICE 50 to 4,999 kW SERVICE CLASSIFICATION | C41: $/kW | D41: 34851353.54 | E41: 2.995286058 | F41: 34851353.54 | G41: =+'8. 2030 RTSR Rates to Forecast'!G58+'8. 2030 RTSR Rates to Forecast'!G59 -> 96059866.24 | H41: =G41/$G48 -> 0.4717474396 | I41: 6613864.212 | J41: 34851353.54 | K41: =IFERROR(I41/J41,0) -> 0.189773525
B42: LARGE USE SERVICE CLASSIFICATION | C42: $/kW | D42: 4611469.44 | E42: 3.027258179 | F42: 4611469.44 | G42: ='8. 2030 RTSR Rates to Forecast'!G60 -> 12896982.46 | H42: =G42/$G48 -> 0.06333673669 | I42: 887976.3639 | J42: 4611469.44 | K42: =IFERROR(I42/J42,0) -> 0.1925582236
B43: LARGE USE WITH DEDICATED ASSETS SERVICE CLASSIFICATION | C43: $/kW | D43: 1605512.026 | E43: 4.221740329 | F43: 1605512.026 | G43: ='8. 2030 RTSR Rates to Forecast'!G61 -> 6261874.987 | H43: =G43/$G48 -> 0.03075190095 | I43: 431139.3769 | J43: 1605512.026 | K43: =IFERROR(I43/J43,0) -> 0.2685369963
B44: UNMETERED SCATTERED LOAD SERVICE CLASSIFICATION | C44: $/kWh | D44: 48531370 | E44: 0.007508628455 | F44: 50259086.77 | G44: ='8. 2030 RTSR Rates to Forecast'!G62 -> 348637.8389 | H44: =G44/$G48 -> 0.001712151123 | I44: 24004.23211 | J44: 50259086.77 | K44: =IFERROR(I44/D44,0) -> 0.0004946127033
B45: SENTINEL LIGHTING SERVICE CLASSIFICATION | C45: $/kW | D45: 1448.9 | E45: 3.368750567 | F45: 1448.9 | G45: ='8. 2030 RTSR Rates to Forecast'!G63 -> 4509.273538 | H45: =G45/$G48 -> 2.214492201e-05 | I45: 310.4701687 | J45: 1448.9 | K45: =IFERROR(I45/J45,0) -> 0.2142799149
B46: STREET LIGHTING SERVICE CLASSIFICATION | C46: $/kW | D46: 265240 | E46: 2.434915265 | F46: 265240 | G46: ='8. 2030 RTSR Rates to Forecast'!G64 -> 596653.4891 | H46: =G46/$G48 -> 0.002930149362 | I46: 41080.47734 | J46: 265240 | K46: =IFERROR(I46/J46,0) -> 0.1548804002
B48: TOTAL | G48: =SUM(G39:G46) -> 203625622.9 | H48: =SUM(H39:H46) -> 1 | I48: =L20+L25 -> 14019926.04

Sheet 9. 2031 LV Rates
A13: The purpose of this sheet is to calculate Low Voltage service rates based on a forecasted host distribution expense.
B15: Low Voltage Charges | D15: Bridge Year | E15: Forecast
B17: Host I:
D18: =TestYear-5 -> 2022 | E18: =D18+1 -> 2023 | F18: 2024 | G18: 2025 | H18: =G18+1&" " &E15 -> 2026 Forecast | I18: =G18+2&" Forecast" -> 2027 Forecast | J18: =$G18+3&" Forecast" -> 2028 Forecast | K18: =$G18+4&" Forecast" -> 2029 Forecast | L18: =$G18+5&" Forecast" -> 2030 Forecast | M18: =$G18+6&" Forecast" -> 2031 Forecast
B19: Host Volume | I19: 6699565.18 | J19: 6830822.399 | K19: 6957637.7 | L19: 7118182.317 | M19: 7270964.816
B20: Host Charges | I20: 12434339.38 | J20: 12931510.76 | K20: 13435018.04 | L20: 14019926.04 | M20: 14607262.37
B22: Host II:
D23: =D18 -> 2022 | E23: 2023 | F23: 2024 | G23: 2025 | H23: 2026 Forecast | I23: 2027 Forecast | J23: 2028 Forecast | K23: 2029 Forecast | L23: 2030 Forecast | M23: 2031 Forecast
B24: Host Volume
B25: Host Charges
B27: Instructions: The methodology of the test year forecast for host charges is at the distributor's discretion. Please ensure that the value for Host Charges in the test year is completed. All other entries are optional, and may be used to support the derivation.
B28: Regardless of methodology chosen, please provide a brief descrioptor of the methdology used, and a complated description with rationale in the filed evidence.
B30: Low Voltage Rates
B32: Proposed Loss Factor | C32: 1.0356
B34: Instructions: Please enter the rate class volumes consistent with the proposed load forecast, and proposed loss factor.
B35: If Low Voltage charges are applied based on volumes uplifted for losses, please select Loss Adjusted Volume in cell J37
J36: Select Loss adjusted or Delivered
B37: Rate Class | C37: Unit | D37: =2031&" Forecasted Volume" -> 2031 Forecasted Volume | E37: RTSR Connection Rate | F37: Loss Adjusted Volume | G37: RTSR Connection Revenue | H37: Allocation | I37: Allocated Low Voltage Charges | J37: Loss Adjusted Volume | K37: Low Voltage Rates
B39: RESIDENTIAL SERVICE CLASSIFICATION | C39: $/kWh | D39: 1.01806278e+10 | E39: 0.007037918859 | F39: =IF(C39="$/kWh",D39*C$32,D39) -> 1.054305815e+10 | G39: =+'8. 2031 RTSR Rates to Forecast'!G56 -> 67206301.92 | H39: =G39/$G48 -> 0.3300483552 | I39: =H39*($M$20+$M$25) -> 4821102.92 | J39: =IF(J$37="Loss Adjusted Volume",F39,D39) -> 1.054305815e+10 | K39: =IFERROR(I39/D39,0) -> 0.0004735565443
B40: GENERAL SERVICE LESS THAN 50 KW SERVICE CLASSIFICATION | C40: $/kWh | D40: 3259485792 | E40: 0.006623718064 | F40: 3375523486 | G40: =+'8. 2031 RTSR Rates to Forecast'!G57 -> 20250796.71 | H40: =G40/$G48 -> 0.09945112219 | I40: =H40*($M$20+$M$25) -> 1452708.635 | J40: 3375523486 | K40: =IFERROR(I40/D40,0) -> 0.000445686445
B41: GENERAL SERVICE 50 to 4,999 kW SERVICE CLASSIFICATION | C41: $/kW | D41: 34981171.86 | E41: 3.04409001 | F41: 34981171.86 | G41: =+'8. 2031 RTSR Rates to Forecast'!G58+'8. 2031 RTSR Rates to Forecast'!G59 -> 96059866.24 | H41: =G41/$G48 -> 0.4717474396 | I41: 6890938.623 | J41: 34981171.86 | K41: =IFERROR(I41/J41,0) -> 0.1969899308
B42: LARGE USE SERVICE CLASSIFICATION | C42: $/kW | D42: 4855310.426 | E42: 2.932729219 | F42: 4855310.426 | G42: ='8. 2031 RTSR Rates to Forecast'!G60 -> 12896982.46 | H42: =G42/$G48 -> 0.06333673669 | I42: 925176.3306 | J42: 4855310.426 | K42: =IFERROR(I42/J42,0) -> 0.1905493675
B43: LARGE USE WITH DEDICATED ASSETS SERVICE CLASSIFICATION | C43: $/kW | D43: 1605512.026 | E43: 4.306175136 | F43: 1605512.026 | G43: ='8. 2031 RTSR Rates to Forecast'!G61 -> 6261874.987 | H43: =G43/$G48 -> 0.03075190095 | I43: 449201.0857 | J43: 1605512.026 | K43: =IFERROR(I43/J43,0) -> 0.2797868085
B44: UNMETERED SCATTERED LOAD SERVICE CLASSIFICATION | C44: $/kWh | D44: 48896950 | E44: 0.007601539692 | F44: 50637681.42 | G44: ='8. 2031 RTSR Rates to Forecast'!G62 -> 348637.8389 | H44: =G44/$G48 -> 0.001712151123 | I44: 25009.84068 | J44: 50637681.42 | K44: =IFERROR(I44/D44,0) -> 0.0005114805867
B45: SENTINEL LIGHTING SERVICE CLASSIFICATION | C45: $/kW | D45: 1418.9 | E45: 3.508776059 | F45: 1418.9 | G45: ='8. 2031 RTSR Rates to Forecast'!G63 -> 4509.273538 | H45: =G45/$G48 -> 2.214492201e-05 | I45: 323.476686 | J45: 1418.9 | K45: =IFERROR(I45/J45,0) -> 0.2279770851
B46: STREET LIGHTING SERVICE CLASSIFICATION | C46: $/kW | D46: 265260 | E46: 2.483426312 | F46: 265260 | G46: ='8. 2031 RTSR Rates to Forecast'!G64 -> 596653.4891 | H46: =G46/$G48 -> 0.002930149362 | I46: 42801.46053 | J46: 265260 | K46: =IFERROR(I46/J46,0) -> 0.1613566332
B48: TOTAL | G48: =SUM(G39:G46) -> 203625622.9 | H48: =SUM(H39:H46) -> 1 | I48: =M20+M25 -> 14607262.37

Sheet RateClasses (hidden)
A1: 1 | B1: 2 | C1: 3 | D1: 4 | E1: 5 | F1: 6 | G1: 7 | H1: 8 | I1: 9 | J1: 10 | K1: 11
A2: Alectra Utilities Corporation-Brampton Rate Zone | B2: RESIDENTIAL SERVICE CLASSIFICATION~Retail Transmission Rate - Network Service Rate | C2: RESIDENTIAL SERVICE CLASSIFICATION~Retail Transmission Rate - Line and Transformation Connection Service Rate | D2: GENERAL SERVICE LESS THAN 50 KW SERVICE CLASSIFICATION~Retail Transmission Rate - Network Service Rate | E2: GENERAL SERVICE LESS THAN 50 KW SERVICE CLASSIFICATION~Retail Transmission Rate - Line and Transformation Connection Service Rate | F2: GENERAL SERVICE 50 TO 699 KW SERVICE CLASSIFICATION~Retail Transmission Rate - Network Service Rate | G2: GENERAL SERVICE 50 TO 699 KW SERVICE CLASSIFICATION~Retail Transmission Rate - Line and Transformation Connection Service Rate | H2: GENERAL SERVICE 50 TO 699 KW SERVICE CLASSIFICATION~Retail Transmission Rate - Network Service Rate - EV CHARGING | I2: GENERAL SERVICE 50 TO 699 KW SERVICE CLASSIFICATION~Retail Transmission Rate - Line and Transformation Connection Service Rate - EV CHARGING | J2: GENERAL SERVICE 700 TO 4,999 KW SERVICE CLASSIFICATION~Retail Transmission Rate - Network Service Rate | K2: GENERAL SERVICE 700 TO 4,999 KW SERVICE CLASSIFICATION~Retail Transmission Rate - Line and Transformation Connection Service Rate | L2: GENERAL SERVICE 700 TO 4,999 KW SERVICE CLASSIFICATION~Retail Transmission Rate - Network Service Rate - EV CHARGING | M2: GENERAL SERVICE 700 TO 4,999 KW SERVICE CLASSIFICATION~Retail Transmission Rate - Line and Transformation Connection Service Rate - EV CHARGING | N2: LARGE USE SERVICE CLASSIFICATION~Retail Transmission Rate - Network Service Rate | O2: LARGE USE SERVICE CLASSIFICATION~Retail Transmission Rate - Line and Transformation Connection Service Rate | P2: UNMETERED SCATTERED LOAD SERVICE CLASSIFICATION~Retail Transmission Rate - Network Service Rate | Q2: UNMETERED SCATTERED LOAD SERVICE CLASSIFICATION~Retail Transmission Rate - Line and Transformation Connection Service Rate | R2: STREET LIGHTING SERVICE CLASSIFICATION~Retail Transmission Rate - Network Service Rate | S2: STREET LIGHTING SERVICE CLASSIFICATION~Retail Transmission Rate - Line and Transformation Connection Service Rate | T2: EMBEDDED DISTRIBUTOR SERVICE CLASSIFICATION~Retail Transmission Rate - Network Service Rate | U2: EMBEDDED DISTRIBUTOR SERVICE CLASSIFICATION~Retail Transmission Rate - Line and Transformation Connection Service Rate | V2: DISTRIBUTED GENERATION [DGEN] SERVICE CLASSIFICATION~Retail Transmission Rate - Network Service Rate | W2: DISTRIBUTED GENERATION [DGEN] SERVICE CLASSIFICATION~Retail Transmission Rate - Line and Transformation Connection Service Rate
A3: Alectra Utilities Corporation-Enersource Rate Zone | B3: RESIDENTIAL SERVICE CLASSIFICATION~Retail Transmission Rate - Network Service Rate | C3: RESIDENTIAL SERVICE CLASSIFICATION~Retail Transmission Rate - Line and Transformation Connection Service Rate | D3: GENERAL SERVICE LESS THAN 50 KW SERVICE CLASSIFICATION~Retail Transmission Rate - Network Service Rate | E3: GENERAL SERVICE LESS THAN 50 KW SERVICE CLASSIFICATION~Retail Transmission Rate - Line and Transformation Connection Service Rate | F3: GENERAL SERVICE 50 TO 499 KW SERVICE CLASSIFICATION~Retail Transmission Rate - Network Service Rate | G3: GENERAL SERVICE 50 TO 499 KW SERVICE CLASSIFICATION~Retail Transmission Rate - Line and Transformation Connection Service Rate | H3: GENERAL SERVICE 50 TO 499 KW SERVICE CLASSIFICATION~Retail Transmission Rate - Network Service Rate -EV CHARGING | I3: GENERAL SERVICE 50 TO 499 KW SERVICE CLASSIFICATION~Retail Transmission Rate - Line and Transformation Connection Service Rate - EV CHARGING | J3: GENERAL SERVICE 500 TO 4,999 KW SERVICE CLASSIFICATION~Retail Transmission Rate - Network Service Rate | K3: GENERAL SERVICE 500 TO 4,999 KW SERVICE CLASSIFICATION~Retail Transmission Rate - Line and Transformation Connection Service Rate | L3: GENERAL SERVICE 500 TO 4,999 KW SERVICE CLASSIFICATION~Retail Transmission Rate - Network Service Rate - EV CHARGING | M3: GENERAL SERVICE 500 TO 4,999 KW SERVICE CLASSIFICATION~Retail Transmission Rate - Line and Transformation Connection Service Rate - EV CHARGING | N3: LARGE USE SERVICE CLASSIFICATION~Retail Transmission Rate - Network Service Rate – Interval Metered | O3: LARGE USE SERVICE CLASSIFICATION~Retail Transmission Rate - Line and Transformation Connection Service Rate – Interval Metered | P3: UNMETERED SCATTERED LOAD SERVICE CLASSIFICATION~Retail Transmission Rate - Network Service Rate | Q3: UNMETERED SCATTERED LOAD SERVICE CLASSIFICATION~Retail Transmission Rate - Line and Transformation Connection Service Rate | R3: STREET LIGHTING SERVICE CLASSIFICATION~Retail Transmission Rate - Network Service Rate | S3: STREET LIGHTING SERVICE CLASSIFICATION~Retail Transmission Rate - Line and Transformation Connection Service Rate
A4: Alectra Utilities Corporation-Horizon Utilities Rate Zone | B4: RESIDENTIAL SERVICE CLASSIFICATION~Retail Transmission Rate - Network Service Rate | C4: RESIDENTIAL SERVICE CLASSIFICATION~Retail Transmission Rate - Line and Transformation Connection Service Rate | D4: GENERAL SERVICE LESS THAN 50 KW SERVICE CLASSIFICATION~Retail Transmission Rate - Network Service Rate | E4: GENERAL SERVICE LESS THAN 50 KW SERVICE CLASSIFICATION~Retail Transmission Rate - Line and Transformation Connection Service Rate | F4: GENERAL SERVICE 50 to 4,999 kW SERVICE CLASSIFICATION~Retail Transmission Rate - Network Service Rate | G4: GENERAL SERVICE 50 to 4,999 kW SERVICE CLASSIFICATION~Retail Transmission Rate - Line and Transformation Connection Service Rate | H4: GENERAL SERVICE 50 to 4,999 kW SERVICE CLASSIFICATION~Retail Transmission Rate - Network Service Rate - EV CHARGING | I4: GENERAL SERVICE 50 to 4,999 kW SERVICE CLASSIFICATION~Retail Transmission Rate - Line and Transformation Connection Service Rate - EV CHARGING | J4: LARGE USE SERVICE CLASSIFICATION~Retail Transmission Rate - Network Service Rate | K4: LARGE USE SERVICE CLASSIFICATION~Retail Transmission Rate - Line and Transformation Connection Service Rate | L4: LARGE USE WITH DEDICATED ASSETS SERVICE CLASSIFICATION~Retail Transmission Rate - Network Service Rate | M4: LARGE USE WITH DEDICATED ASSETS SERVICE CLASSIFICATION~Retail Transmission Rate - Line and Transformation Connection Service Rate | N4: UNMETERED SCATTERED LOAD SERVICE CLASSIFICATION~Retail Transmission Rate - Network Service Rate | O4: UNMETERED SCATTERED LOAD SERVICE CLASSIFICATION~Retail Transmission Rate - Line and Transformation Connection Service Rate | P4: SENTINEL LIGHTING SERVICE CLASSIFICATION~Retail Transmission Rate - Network Service Rate | Q4: SENTINEL LIGHTING SERVICE CLASSIFICATION~Retail Transmission Rate - Line and Transformation Connection Service Rate | R4: STREET LIGHTING SERVICE CLASSIFICATION~Retail Transmission Rate - Network Service Rate | S4: STREET LIGHTING SERVICE CLASSIFICATION~Retail Transmission Rate - Line and Transformation Connection Service Rate
A5: Alectra Utilities Corporation-PowerStream Rate Zone | B5: RESIDENTIAL SERVICE CLASSIFICATION~Retail Transmission Rate - Network Service Rate | C5: RESIDENTIAL SERVICE CLASSIFICATION~Retail Transmission Rate - Line and Transformation Connection Service Rate | D5: GENERAL SERVICE LESS THAN 50 KW SERVICE CLASSIFICATION~Retail Transmission Rate - Network Service Rate | E5: GENERAL SERVICE LESS THAN 50 KW SERVICE CLASSIFICATION~Retail Transmission Rate - Line and Transformation Connection Service Rate | F5: GENERAL SERVICE 50 to 4,999 kW SERVICE CLASSIFICATION~Retail Transmission Rate - Network Service Rate | G5: GENERAL SERVICE 50 to 4,999 kW SERVICE CLASSIFICATION~Retail Transmission Rate - Line and Transformation Connection Service Rate | H5: GENERAL SERVICE 50 to 4,999 kW SERVICE CLASSIFICATION~Retail Transmission Rate - Network Service Rate - EV CHARGING | I5: GENERAL SERVICE 50 to 4,999 kW SERVICE CLASSIFICATION~Retail Transmission Rate - Line and Transformation Connection Service Rate - EV CHARGING | J5: GENERAL SERVICE 50 to 4,999 kW SERVICE CLASSIFICATION~Retail Transmission Rate - Network Service Rate – Interval Metered | K5: GENERAL SERVICE 50 to 4,999 kW SERVICE CLASSIFICATION~Retail Transmission Rate - Line and Transformation Connection Service Rate – Interval Metered | L5: LARGE USE SERVICE CLASSIFICATION~Retail Transmission Rate - Network Service Rate | M5: LARGE USE SERVICE CLASSIFICATION~Retail Transmission Rate - Line and Transformation Connection Service Rate | N5: UNMETERED SCATTERED LOAD SERVICE CLASSIFICATION~Retail Transmission Rate - Network Service Rate | O5: UNMETERED SCATTERED LOAD SERVICE CLASSIFICATION~Retail Transmission Rate - Line and Transformation Connection Service Rate | P5: SENTINEL LIGHTING SERVICE CLASSIFICATION~Retail Transmission Rate - Network Service Rate | Q5: SENTINEL LIGHTING SERVICE CLASSIFICATION~Retail Transmission Rate - Line and Transformation Connection Service Rate | R5: STREET LIGHTING SERVICE CLASSIFICATION~Retail Transmission Rate - Network Service Rate | S5: STREET LIGHTING SERVICE CLASSIFICATION~Retail Transmission Rate - Line and Transformation Connection Service Rate
A6: Algoma Power Inc. | B6: RESIDENTIAL R1 SERVICE CLASSIFICATION~Retail Transmission Rate - Network Service Rate | C6: RESIDENTIAL R1 SERVICE CLASSIFICATION~Retail Transmission Rate - Line and Transformation Connection Service Rate | D6: RESIDENTIAL R2 SERVICE CLASSIFICATION~Retail Transmission Rate - Network Service Rate | E6: RESIDENTIAL R2 SERVICE CLASSIFICATION~Retail Transmission Rate - Line and Transformation Connection Service Rate | F6: SEASONAL CUSTOMERS SERVICE CLASSIFICATION~Retail Transmission Rate - Network Service Rate | G6: SEASONAL CUSTOMERS SERVICE CLASSIFICATION~Retail Transmission Rate - Line and Transformation Connection Service Rate | H6: STREET LIGHTING SERVICE CLASSIFICATION~Retail Transmission Rate - Network Service Rate | I6: STREET LIGHTING SERVICE CLASSIFICATION~Retail Transmission Rate - Line and Transformation Connection Service Rate
A7: Centre Wellington Hydro Ltd. | B7: RESIDENTIAL SERVICE CLASSIFICATION~Retail Transmission Rate - Network Service Rate | C7: RESIDENTIAL SERVICE CLASSIFICATION~Retail Transmission Rate - Line and Transformation Connection Service Rate | D7: GENERAL SERVICE LESS THAN 50 KW SERVICE CLASSIFICATION~Retail Transmission Rate - Network Service Rate | E7: GENERAL SERVICE LESS THAN 50 KW SERVICE CLASSIFICATION~Retail Transmission Rate - Line and Transformation Connection Service Rate | F7: GENERAL SERVICE 50 TO 2,999 KW SERVICE CLASSIFICATION~Retail Transmission Rate - Network Service Rate | G7: GENERAL SERVICE 50 TO 2,999 KW SERVICE CLASSIFICATION~Retail Transmission Rate - Line and Transformation Connection Service Rate | H7: GENERAL SERVICE 50 TO 2,999 KW SERVICE CLASSIFICATION~Retail Transmission Rate - Network Service Rate - EV CHARGING | I7: GENERAL SERVICE 50 TO 2,999 KW SERVICE CLASSIFICATION~Retail Transmission Rate - Line and Transformation Connection Service Rate - EV CHARGING | J7: GENERAL SERVICE 3,000 TO 4,999 KW SERVICE CLASSIFICATION~Retail Transmission Rate - Network Service Rate | K7: GENERAL SERVICE 3,000 TO 4,999 KW SERVICE CLASSIFICATION~Retail Transmission Rate - Line and Transformation Connection Service Rate | L7: GENERAL SERVICE 3,000 TO 4,999 KW SERVICE CLASSIFICATION~Retail Transmission Rate - Network Service Rate - EV CHARGING | M7: GENERAL SERVICE 3,000 TO 4,999 KW SERVICE CLASSIFICATION~Retail Transmission Rate - Line and Transformation Connection Service Rate - EV CHARGING | N7: UNMETERED SCATTERED LOAD SERVICE CLASSIFICATION~Retail Transmission Rate - Network Service Rate | O7: UNMETERED SCATTERED LOAD SERVICE CLASSIFICATION~Retail Transmission Rate - Line and Transformation Connection Service Rate | P7: SENTINEL LIGHTING SERVICE CLASSIFICATION~Retail Transmission Rate - Network Service Rate | Q7: SENTINEL LIGHTING SERVICE CLASSIFICATION~Retail Transmission Rate - Line and Transformation Connection Service Rate | R7: STREET LIGHTING SERVICE CLASSIFICATION~Retail Transmission Rate - Network Service Rate | S7: STREET LIGHTING SERVICE CLASSIFICATION~Retail Transmission Rate - Line and Transformation Connection Service Rate
A8: Canadian Niagara Power Inc. | B8: RESIDENTIAL SERVICE CLASSIFICATION~Retail Transmission Rate - Network Service Rate | C8: RESIDENTIAL SERVICE CLASSIFICATION~Retail Transmission Rate - Line and Transformation Connection Service Rate | D8: GENERAL SERVICE LESS THAN 50 KW SERVICE CLASSIFICATION~Retail Transmission Rate - Network Service Rate | E8: GENERAL SERVICE LESS THAN 50 KW SERVICE CLASSIFICATION~Retail Transmission Rate - Line and Transformation Connection Service Rate | F8: GENERAL SERVICE 50 to 4,999 kW SERVICE CLASSIFICATION~Retail Transmission Rate - Network Service Rate | G8: GENERAL SERVICE 50 to 4,999 kW SERVICE CLASSIFICATION~Retail Transmission Rate - Line and Transformation Connection Service Rate | H8: GENERAL SERVICE 50 to 4,999 kW SERVICE CLASSIFICATION~Retail Transmission Rate - Network Service Rate - EV CHARGING | I8: GENERAL SERVICE 50 to 4,999 kW SERVICE CLASSIFICATION~Retail Transmission Rate - Line and Transformation Connection Service Rate - EV CHARGING | J8: EMBEDDED DISTRIBUTOR SERVICE CLASSIFICATION~Retail Transmission Rate - Network Service Rate | K8: EMBEDDED DISTRIBUTOR SERVICE CLASSIFICATION~Retail Transmission Rate - Line and Transformation Connection Service Rate | L8: UNMETERED SCATTERED LOAD SERVICE CLASSIFICATION~Retail Transmission Rate - Network Service Rate | M8: UNMETERED SCATTERED LOAD SERVICE CLASSIFICATION~Retail Transmission Rate - Line and Transformation Connection Service Rate | N8: SENTINEL LIGHTING SERVICE CLASSIFICATION~Retail Transmission Rate - Network Service Rate | O8: SENTINEL LIGHTING SERVICE CLASSIFICATION~Retail Transmission Rate - Line and Transformation Connection Service Rate | P8: STREET LIGHTING SERVICE CLASSIFICATION~Retail Transmission Rate - Network Service Rate | Q8: STREET LIGHTING SERVICE CLASSIFICATION~Retail Transmission Rate - Line and Transformation Connection Service Rate
A9: Entegrus Powerlines Inc. | B9: RESIDENTIAL SERVICE CLASSIFICATION~Retail Transmission Rate - Network Service Rate | C9: RESIDENTIAL SERVICE CLASSIFICATION~Retail Transmission Rate - Line and Transformation Connection Service Rate | D9: GENERAL SERVICE LESS THAN 50 KW SERVICE CLASSIFICATION~Retail Transmission Rate - Network Service Rate | E9: GENERAL SERVICE LESS THAN 50 KW SERVICE CLASSIFICATION~Retail Transmission Rate - Line and Transformation Connection Service Rate | F9: GENERAL SERVICE 50 to 4,999 kW SERVICE CLASSIFICATION~Retail Transmission Rate - Network Service Rate | G9: GENERAL SERVICE 50 to 4,999 kW SERVICE CLASSIFICATION~Retail Transmission Rate - Line and Transformation Connection Service Rate (see Note 1) | H9: GENERAL SERVICE 50 to 4,999 kW SERVICE CLASSIFICATION~Retail Transmission Rate - Network Service Rate - EV CHARGING | I9: GENERAL SERVICE 50 to 4,999 kW SERVICE CLASSIFICATION~Retail Transmission Rate - Line and Transformation Connection Service Rate (see Note 1) - EV CHARGING | J9: LARGE USE SERVICE CLASSIFICATION~Retail Transmission Rate - Network Service Rate | K9: LARGE USE SERVICE CLASSIFICATION~Retail Transmission Rate - Line and Transformation Connection Service Rate (see Note 1) | L9: UNMETERED SCATTERED LOAD SERVICE CLASSIFICATION~Retail Transmission Rate - Network Service Rate | M9: UNMETERED SCATTERED LOAD SERVICE CLASSIFICATION~Retail Transmission Rate - Line and Transformation Connection Service Rate | N9: SENTINEL LIGHTING SERVICE CLASSIFICATION~Retail Transmission Rate - Network Service Rate | O9: SENTINEL LIGHTING SERVICE CLASSIFICATION~Retail Transmission Rate - Line and Transformation Connection Service Rate | P9: STREET LIGHTING SERVICE CLASSIFICATION~Retail Transmission Rate - Network Service Rate | Q9: STREET LIGHTING SERVICE CLASSIFICATION~Retail Transmission Rate - Line and Transformation Connection Service Rate | R9: EMBEDDED DISTRIBUTOR SERVICE CLASSIFICATION~Retail Transmission Rate - Network Service Rate | S9: EMBEDDED DISTRIBUTOR SERVICE CLASSIFICATION~Retail Transmission Rate - Line and Transformation Connection Service Rate
A10: Entegrus Powerlines Inc.-For Former St. Thomas Energy Rate Zone | B10: RESIDENTIAL SERVICE CLASSIFICATION~Retail Transmission Rate - Network Service Rate | C10: RESIDENTIAL SERVICE CLASSIFICATION~Retail Transmission Rate - Line and Transformation Connection Service Rate | D10: GENERAL SERVICE LESS THAN 50 KW SERVICE CLASSIFICATION~Retail Transmission Rate - Network Service Rate | E10: GENERAL SERVICE LESS THAN 50 KW SERVICE CLASSIFICATION~Retail Transmission Rate - Line and Transformation Connection Service Rate | F10: GENERAL SERVICE 50 to 4,999 kW SERVICE CLASSIFICATION~Retail Transmission Rate - Network Service Rate | G10: GENERAL SERVICE 50 to 4,999 kW SERVICE CLASSIFICATION~Retail Transmission Rate - Line and Transformation Connection Service Rate | H10: GENERAL SERVICE 50 to 4,999 kW SERVICE CLASSIFICATION~Retail Transmission Rate - Network Service Rate - EV CHARGING | I10: GENERAL SERVICE 50 to 4,999 kW SERVICE CLASSIFICATION~Retail Transmission Rate - Line and Transformation Connection Service Rate - EV CHARGING | J10: SENTINEL LIGHTING SERVICE CLASSIFICATION~Retail Transmission Rate - Network Service Rate | K10: SENTINEL LIGHTING SERVICE CLASSIFICATION~Retail Transmission Rate - Line and Transformation Connection Service Rate | L10: STREET LIGHTING SERVICE CLASSIFICATION~Retail Transmission Rate - Network Service Rate | M10: STREET LIGHTING SERVICE CLASSIFICATION~Retail Transmission Rate - Line and Transformation Connection Service Rate
A11: Festival Hydro Inc. | B11: RESIDENTIAL SERVICE CLASSIFICATION~Retail Transmission Rate - Network Service Rate | C11: RESIDENTIAL SERVICE CLASSIFICATION~Retail Transmission Rate - Line and Transformation Connection Service Rate | D11: GENERAL SERVICE LESS THAN 50 KW SERVICE CLASSIFICATION~Retail Transmission Rate - Network Service Rate | E11: GENERAL SERVICE LESS THAN 50 KW SERVICE CLASSIFICATION~Retail Transmission Rate - Line and Transformation Connection Service Rate | F11: GENERAL SERVICE 50 to 4,999 kW SERVICE CLASSIFICATION~Retail Transmission Rate - Network Service Rate | G11: GENERAL SERVICE 50 to 4,999 kW SERVICE CLASSIFICATION~Retail Transmission Rate - Line and Transformation Connection Service Rate | H11: GENERAL SERVICE 50 to 4,999 kW SERVICE CLASSIFICATION~Retail Transmission Rate - Network Service Rate - EV CHARGING | I11: GENERAL SERVICE 50 to 4,999 kW SERVICE CLASSIFICATION~Retail Transmission Rate - Line and Transformation Connection Service Rate - EV CHARGING | J11: GENERAL SERVICE 50 to 4,999 kW SERVICE CLASSIFICATION~Retail Transmission Rate - Network Service Rate - Interval Metered | K11: GENERAL SERVICE 50 to 4,999 kW SERVICE CLASSIFICATION~Retail Transmission Rate - Line and Transformation Connection Service Rate - Interval Metered | L11: LARGE USE SERVICE CLASSIFICATION~Retail Transmission Rate - Network Service Rate - Interval Metered | M11: LARGE USE SERVICE CLASSIFICATION~Retail Transmission Rate - Line and Transformation Connection Service Rate - Interval Metered | N11: UNMETERED SCATTERED LOAD SERVICE CLASSIFICATION~Retail Transmission Rate - Network Service Rate | O11: UNMETERED SCATTERED LOAD SERVICE CLASSIFICATION~Retail Transmission Rate - Line and Transformation Connection Service Rate | P11: SENTINEL LIGHTING SERVICE CLASSIFICATION~Retail Transmission Rate - Network Service Rate | Q11: SENTINEL LIGHTING SERVICE CLASSIFICATION~Retail Transmission Rate - Line and Transformation Connection Service Rate | R11: STREET LIGHTING SERVICE CLASSIFICATION~Retail Transmission Rate - Network Service Rate | S11: STREET LIGHTING SERVICE CLASSIFICATION~Retail Transmission Rate - Line and Transformation Connection Service Rate
A12: Grimsby Power Incorporated | B12: RESIDENTIAL SERVICE CLASSIFICATION~Retail Transmission Rate - Network Service Rate | C12: RESIDENTIAL SERVICE CLASSIFICATION~Retail Transmission Rate - Line and Transformation Connection Service Rate | D12: GENERAL SERVICE LESS THAN 50 KW SERVICE CLASSIFICATION~Retail Transmission Rate - Network Service Rate | E12: GENERAL SERVICE LESS THAN 50 KW SERVICE CLASSIFICATION~Retail Transmission Rate - Line and Transformation Connection Service Rate | F12: GENERAL SERVICE 50 to 4,999 kW SERVICE CLASSIFICATION~Retail Transmission Rate - Network Service Rate | G12: GENERAL SERVICE 50 to 4,999 kW SERVICE CLASSIFICATION~Retail Transmission Rate - Line and Transformation Connection Service Rate | H12: GENERAL SERVICE 50 to 4,999 kW SERVICE CLASSIFICATION~Retail Transmission Rate - Network Service Rate - EV CHARGING | I12: GENERAL SERVICE 50 to 4,999 kW SERVICE CLASSIFICATION~Retail Transmission Rate - Line and Transformation Connection Service Rate - EV CHARGING | J12: GENERAL SERVICE 50 to 4,999 kW SERVICE CLASSIFICATION~Retail Transmission Rate - Network Service Rate - Interval Metered | K12: GENERAL SERVICE 50 to 4,999 kW SERVICE CLASSIFICATION~Retail Transmission Rate - Line and Transformation Connection Service Rate - Interval Metered | L12: UNMETERED SCATTERED LOAD SERVICE CLASSIFICATION~Retail Transmission Rate - Network Service Rate | M12: UNMETERED SCATTERED LOAD SERVICE CLASSIFICATION~Retail Transmission Rate - Line and Transformation Connection Service Rate | N12: STREET LIGHTING SERVICE CLASSIFICATION~Retail Transmission Rate - Network Service Rate | O12: STREET LIGHTING SERVICE CLASSIFICATION~Retail Transmission Rate - Line and Transformation Connection Service Rate | P12: EMBEDDED DISTRIBUTOR SERVICE CLASSIFICATION~Retail Transmission Rate - Network Service Rate | Q12: EMBEDDED DISTRIBUTOR SERVICE CLASSIFICATION~Retail Transmission Rate - Line and Transformation Connection Service Rate
A13: Alectra Utilities Corporation-Guelph Rate Zone | B13: RESIDENTIAL SERVICE CLASSIFICATION~Retail Transmission Rate - Network Service Rate | C13: RESIDENTIAL SERVICE CLASSIFICATION~Retail Transmission Rate - Line and Transformation Connection Service Rate | D13: GENERAL SERVICE LESS THAN 50 KW SERVICE CLASSIFICATION~Retail Transmission Rate - Network Service Rate | E13: GENERAL SERVICE LESS THAN 50 KW SERVICE CLASSIFICATION~Retail Transmission Rate - Line and Transformation Connection Service Rate | F13: GENERAL SERVICE 50 TO 999 KW SERVICE CLASSIFICATION~Retail Transmission Rate - Network Service Rate | G13: GENERAL SERVICE 50 TO 999 KW SERVICE CLASSIFICATION~Retail Transmission Rate - Network Service Rate - Interval Metered | H13: GENERAL SERVICE 50 TO 999 KW SERVICE CLASSIFICATION~Retail Transmission Rate - Line and Transformation Connection Service Rate | I13: GENERAL SERVICE 50 TO 999 KW SERVICE CLASSIFICATION~Retail Transmission Rate - Network Service Rate - EV CHARGING | J13: GENERAL SERVICE 50 TO 999 KW SERVICE CLASSIFICATION~Retail Transmission Rate - Line and Transformation Connection Service Rate - EV CHARGING | K13: GENERAL SERVICE 50 TO 999 KW SERVICE CLASSIFICATION~Retail Transmission Rate - Line and Transformation Connection Service Rate - Interval Metered | L13: GENERAL SERVICE 1,000 TO 4,999 KW SERVICE CLASSIFICATION~Retail Transmission Rate - Network Service Rate - Interval Metered | M13: GENERAL SERVICE 1,000 TO 4,999 KW SERVICE CLASSIFICATION~Retail Transmission Rate - Line and Transformation Connection Service Rate - Interval Metered | N13: GENERAL SERVICE 1,000 TO 4,999 KW SERVICE CLASSIFICATION~Retail Transmission Rate - Network Service Rate - EV CHARGING | O13: GENERAL SERVICE 1,000 TO 4,999 KW SERVICE CLASSIFICATION~Retail Transmission Rate - Line and Transformation Connection Service Rate - EV CHARGING | P13: LARGE USE SERVICE CLASSIFICATION~Retail Transmission Rate - Network Service Rate - Interval Metered | Q13: LARGE USE SERVICE CLASSIFICATION~Retail Transmission Rate - Line and Transformation Connection Service Rate - Interval Metered | R13: UNMETERED SCATTERED LOAD SERVICE CLASSIFICATION~Retail Transmission Rate - Network Service Rate | S13: UNMETERED SCATTERED LOAD SERVICE CLASSIFICATION~Retail Transmission Rate - Line and Transformation Connection Service Rate | T13: SENTINEL LIGHTING SERVICE CLASSIFICATION~Retail Transmission Rate - Network Service Rate | U13: SENTINEL LIGHTING SERVICE CLASSIFICATION~Retail Transmission Rate - Line and Transformation Connection Service Rate | V13: STREET LIGHTING SERVICE CLASSIFICATION~Retail Transmission Rate - Network Service Rate | W13: STREET LIGHTING SERVICE CLASSIFICATION~Retail Transmission Rate - Line and Transformation Connection Service Rate
A14: Hydro Hawkesbury Inc. | B14: RESIDENTIAL SERVICE CLASSIFICATION~Retail Transmission Rate - Network Service Rate | C14: RESIDENTIAL SERVICE CLASSIFICATION~Retail Transmission Rate - Line and Transformation Connection Service Rate | D14: GENERAL SERVICE LESS THAN 50 KW SERVICE CLASSIFICATION~Retail Transmission Rate - Network Service Rate | E14: GENERAL SERVICE LESS THAN 50 KW SERVICE CLASSIFICATION~Retail Transmission Rate - Line and Transformation Connection Service Rate | F14: GENERAL SERVICE 50 to 4,999 kW SERVICE CLASSIFICATION~Retail Transmission Rate - Network Service Rate | G14: GENERAL SERVICE 50 to 4,999 kW SERVICE CLASSIFICATION~Retail Transmission Rate - Line and Transformation Connection Service Rate | H14: GENERAL SERVICE 50 to 4,999 kW SERVICE CLASSIFICATION~Retail Transmission Rate - Network Service Rate - EV CHARGING | I14: GENERAL SERVICE 50 to 4,999 kW SERVICE CLASSIFICATION~Retail Transmission Rate - Line and Transformation Connection Service Rate - EV CHARGING | J14: UNMETERED SCATTERED LOAD SERVICE CLASSIFICATION~Retail Transmission Rate - Network Service Rate | K14: UNMETERED SCATTERED LOAD SERVICE CLASSIFICATION~Retail Transmission Rate - Line and Transformation Connection Service Rate | L14: SENTINEL LIGHTING SERVICE CLASSIFICATION~Retail Transmission Rate - Network Service Rate | M14: SENTINEL LIGHTING SERVICE CLASSIFICATION~Retail Transmission Rate - Line and Transformation Connection Service Rate | N14: STREET LIGHTING SERVICE CLASSIFICATION~Retail Transmission Rate - Network Service Rate | O14: STREET LIGHTING SERVICE CLASSIFICATION~Retail Transmission Rate - Line and Transformation Connection Service Rate
A15: Hydro Ottawa Limited | B15: RESIDENTIAL SERVICE CLASSIFICATION~Retail Transmission Rate - Network Service Rate | C15: RESIDENTIAL SERVICE CLASSIFICATION~Retail Transmission Rate - Line and Transformation Connection Service Rate | D15: GENERAL SERVICE LESS THAN 50 KW SERVICE CLASSIFICATION~Retail Transmission Rate - Network Service Rate | E15: GENERAL SERVICE LESS THAN 50 KW SERVICE CLASSIFICATION~Retail Transmission Rate - Line and Transformation Connection Service Rate | F15: GENERAL SERVICE 50 TO 1,499 KW SERVICE CLASSIFICATION~Retail Transmission Rate - Network Service Rate | G15: GENERAL SERVICE 50 TO 1,499 KW SERVICE CLASSIFICATION~Retail Transmission Rate - Line and Transformation Connection Service Rate | H15: GENERAL SERVICE 50 TO 1,499 KW SERVICE CLASSIFICATION~Retail Transmission Rate - Network Service Rate - EV CHARGING | I15: GENERAL SERVICE 50 TO 1,499 KW SERVICE CLASSIFICATION~Retail Transmission Rate - Line and Transformation Connection Service Rate - EV CHARGING | J15: GENERAL SERVICE 1,500 TO 4,999 KW SERVICE CLASSIFICATION~Retail Transmission Rate - Network Service Rate | K15: GENERAL SERVICE 1,500 TO 4,999 KW SERVICE CLASSIFICATION~Retail Transmission Rate - Line and Transformation Connection Service Rate | L15: GENERAL SERVICE 1,500 TO 4,999 KW SERVICE CLASSIFICATION~Retail Transmission Rate - Network Service Rate - EV CHARGING | M15: GENERAL SERVICE 1,500 TO 4,999 KW SERVICE CLASSIFICATION~Retail Transmission Rate - Line and Transformation Connection Service Rate - EV CHARGING | N15: LARGE USE SERVICE CLASSIFICATION~Retail Transmission Rate - Network Service Rate | O15: LARGE USE SERVICE CLASSIFICATION~Retail Transmission Rate - Line and Transformation Connection Service Rate | P15: UNMETERED SCATTERED LOAD SERVICE CLASSIFICATION~Retail Transmission Rate - Network Service Rate | Q15: UNMETERED SCATTERED LOAD SERVICE CLASSIFICATION~Retail Transmission Rate - Line and Transformation Connection Service Rate | R15: SENTINEL LIGHTING SERVICE CLASSIFICATION~Retail Transmission Rate - Network Service Rate | S15: SENTINEL LIGHTING SERVICE CLASSIFICATION~Retail Transmission Rate - Line and Transformation Connection Service Rate | T15: STREET LIGHTING SERVICE CLASSIFICATION~Retail Transmission Rate - Network Service Rate | U15: STREET LIGHTING SERVICE CLASSIFICATION~Retail Transmission Rate - Line and Transformation Connection Service Rate
A16: InnPower Corporation | B16: RESIDENTIAL SERVICE CLASSIFICATION~Retail Transmission Rate - Network Service Rate | C16: RESIDENTIAL SERVICE CLASSIFICATION~Retail Transmission Rate - Line and Transformation Connection Service Rate | D16: GENERAL SERVICE LESS THAN 50 KW SERVICE CLASSIFICATION~Retail Transmission Rate - Network Service Rate | E16: GENERAL SERVICE LESS THAN 50 KW SERVICE CLASSIFICATION~Retail Transmission Rate - Line and Transformation Connection Service Rate | F16: GENERAL SERVICE 50 to 4,999 kW SERVICE CLASSIFICATION~Retail Transmission Rate - Network Service Rate | G16: GENERAL SERVICE 50 to 4,999 kW SERVICE CLASSIFICATION~Retail Transmission Rate - Line and Transformation Connection Service Rate | H16: GENERAL SERVICE 50 to 4,999 kW SERVICE CLASSIFICATION~Retail Transmission Rate - Network Service Rate - EV CHARGING | I16: GENERAL SERVICE 50 to 4,999 kW SERVICE CLASSIFICATION~Retail Transmission Rate - Line and Transformation Connection Service Rate - EV CHARGING | J16: GENERAL SERVICE 50 to 4,999 kW SERVICE CLASSIFICATION~Retail Transmission Rate - Network Service Rate - Interval Metered | K16: GENERAL SERVICE 50 to 4,999 kW SERVICE CLASSIFICATION~Retail Transmission Rate - Line and Transformation Connection Service Rate - Interval Metered | L16: UNMETERED SCATTERED LOAD SERVICE CLASSIFICATION~Retail Transmission Rate - Network Service Rate | M16: UNMETERED SCATTERED LOAD SERVICE CLASSIFICATION~Retail Transmission Rate - Line and Transformation Connection Service Rate | N16: SENTINEL LIGHTING SERVICE CLASSIFICATION~Retail Transmission Rate - Network Service Rate | O16: SENTINEL LIGHTING SERVICE CLASSIFICATION~Retail Transmission Rate - Line and Transformation Connection Service Rate | P16: STREET LIGHTING SERVICE CLASSIFICATION~Retail Transmission Rate - Network Service Rate | Q16: STREET LIGHTING SERVICE CLASSIFICATION~Retail Transmission Rate - Line and Transformation Connection Service Rate
A17: Kingston Hydro Corporation | B17: RESIDENTIAL SERVICE CLASSIFICATION~Retail Transmission Rate - Network Service Rate | C17: RESIDENTIAL SERVICE CLASSIFICATION~Retail Transmission Rate - Line and Transformation Connection Service Rate | D17: GENERAL SERVICE LESS THAN 50 KW SERVICE CLASSIFICATION~Retail Transmission Rate - Network Service Rate | E17: GENERAL SERVICE LESS THAN 50 KW SERVICE CLASSIFICATION~Retail Transmission Rate - Line and Transformation Connection Service Rate | F17: GENERAL SERVICE 50 to 4,999 kW SERVICE CLASSIFICATION~Retail Transmission Rate - Network Service Rate | G17: GENERAL SERVICE 50 to 4,999 kW SERVICE CLASSIFICATION~Retail Transmission Rate - Line and Transformation Connection Service Rate | H17: GENERAL SERVICE 50 to 4,999 kW SERVICE CLASSIFICATION~Retail Transmission Rate - Network Service Rate - EV CHARGING | I17: GENERAL SERVICE 50 to 4,999 kW SERVICE CLASSIFICATION~Retail Transmission Rate - Line and Transformation Connection Service Rate - EV CHARGING | J17: LARGE USE SERVICE CLASSIFICATION~Retail Transmission Rate - Network Service Rate | K17: LARGE USE SERVICE CLASSIFICATION~Retail Transmission Rate - Line and Transformation Connection Service Rate | L17: UNMETERED SCATTERED LOAD SERVICE CLASSIFICATION~Retail Transmission Rate - Network Service Rate | M17: UNMETERED SCATTERED LOAD SERVICE CLASSIFICATION~Retail Transmission Rate - Line and Transformation Connection Service Rate | N17: STREET LIGHTING SERVICE CLASSIFICATION~Retail Transmission Rate - Network Service Rate | O17: STREET LIGHTING SERVICE CLASSIFICATION~Retail Transmission Rate - Line and Transformation Connection Service Rate
A18: Renfrew Hydro Inc. | B18: RESIDENTIAL SERVICE CLASSIFICATION~Retail Transmission Rate - Network Service Rate | C18: RESIDENTIAL SERVICE CLASSIFICATION~Retail Transmission Rate - Line and Transformation Connection Service Rate | D18: GENERAL SERVICE LESS THAN 50 KW SERVICE CLASSIFICATION~Retail Transmission Rate - Network Service Rate | E18: GENERAL SERVICE LESS THAN 50 KW SERVICE CLASSIFICATION~Retail Transmission Rate - Line and Transformation Connection Service Rate | F18: GENERAL SERVICE 50 to 4,999 kW SERVICE CLASSIFICATION~Retail Transmission Rate - Network Service Rate | G18: GENERAL SERVICE 50 to 4,999 kW SERVICE CLASSIFICATION~Retail Transmission Rate - Line and Transformation Connection Service Rate | H18: GENERAL SERVICE 50 to 4,999 kW SERVICE CLASSIFICATION~Retail Transmission Rate - Network Service Rate - EV CHARGING | I18: GENERAL SERVICE 50 to 4,999 kW SERVICE CLASSIFICATION~Retail Transmission Rate - Line and Transformation Connection Service Rate - EV CHARGING | J18: UNMETERED SCATTERED LOAD SERVICE CLASSIFICATION~Retail Transmission Rate - Network Service Rate | K18: UNMETERED SCATTERED LOAD SERVICE CLASSIFICATION~Retail Transmission Rate - Line and Transformation Connection Service Rate | L18: STREET LIGHTING SERVICE CLASSIFICATION~Retail Transmission Rate - Network Service Rate | M18: STREET LIGHTING SERVICE CLASSIFICATION~Retail Transmission Rate - Line and Transformation Connection Service Rate
A19: Cooperative Hydro Embrun Inc. | B19: RESIDENTIAL SERVICE CLASSIFICATION~Retail Transmission Rate - Network Service Rate | C19: RESIDENTIAL SERVICE CLASSIFICATION~Retail Transmission Rate - Line and Transformation Connection Service Rate | D19: GENERAL SERVICE LESS THAN 50 KW SERVICE CLASSIFICATION~Retail Transmission Rate - Network Service Rate | E19: GENERAL SERVICE LESS THAN 50 KW SERVICE CLASSIFICATION~Retail Transmission Rate - Line and Transformation Connection Service Rate | F19: GENERAL SERVICE 50 to 4,999 kW SERVICE CLASSIFICATION~Retail Transmission Rate - Network Service Rate | G19: GENERAL SERVICE 50 to 4,999 kW SERVICE CLASSIFICATION~Retail Transmission Rate - Line and Transformation Connection Service Rate | H19: GENERAL SERVICE 50 to 4,999 kW SERVICE CLASSIFICATION~Retail Transmission Rate - Network Service Rate - EV CHARGING | I19: GENERAL SERVICE 50 to 4,999 kW SERVICE CLASSIFICATION~Retail Transmission Rate - Line and Transformation Connection Service Rate - EV CHARGING | J19: UNMETERED SCATTERED LOAD SERVICE CLASSIFICATION~Retail Transmission Rate - Network Service Rate | K19: UNMETERED SCATTERED LOAD SERVICE CLASSIFICATION~Retail Transmission Rate - Line and Transformation Connection Service Rate | L19: STREET LIGHTING SERVICE CLASSIFICATION~Retail Transmission Rate - Network Service Rate | M19: STREET LIGHTING SERVICE CLASSIFICATION~Retail Transmission Rate - Line and Transformation Connection Service Rate
A20: Lakefront Utilities Inc. | B20: RESIDENTIAL SERVICE CLASSIFICATION~Retail Transmission Rate - Network Service Rate | C20: RESIDENTIAL SERVICE CLASSIFICATION~Retail Transmission Rate - Line and Transformation Connection Service Rate | D20: GENERAL SERVICE LESS THAN 50 KW SERVICE CLASSIFICATION~Retail Transmission Rate - Network Service Rate | E20: GENERAL SERVICE LESS THAN 50 KW SERVICE CLASSIFICATION~Retail Transmission Rate - Line and Transformation Connection Service Rate | F20: GENERAL SERVICE 50 TO 2,999 KW SERVICE CLASSIFICATION~Retail Transmission Rate - Network Service Rate | G20: GENERAL SERVICE 50 TO 2,999 KW SERVICE CLASSIFICATION~Retail Transmission Rate - Line and Transformation Connection Service Rate | H20: GENERAL SERVICE 50 TO 2,999 KW SERVICE CLASSIFICATION~Retail Transmission Rate - Network Service Rate - EV CHARGING | I20: GENERAL SERVICE 50 TO 2,999 KW SERVICE CLASSIFICATION~Retail Transmission Rate - Line and Transformation Connection Service Rate - EV CHARGING | J20: GENERAL SERVICE 3,000 TO 4,999 KW SERVICE CLASSIFICATION~Retail Transmission Rate - Network Service Rate | K20: GENERAL SERVICE 3,000 TO 4,999 KW SERVICE CLASSIFICATION~Retail Transmission Rate - Line and Transformation Connection Service Rate | L20: GENERAL SERVICE 3,000 TO 4,999 KW SERVICE CLASSIFICATION~Retail Transmission Rate - Network Service Rate - EV CHARGING | M20: GENERAL SERVICE 3,000 TO 4,999 KW SERVICE CLASSIFICATION~Retail Transmission Rate - Line and Transformation Connection Service Rate - EV CHARGING | N20: UNMETERED SCATTERED LOAD SERVICE CLASSIFICATION~Retail Transmission Rate - Network Service Rate | O20: UNMETERED SCATTERED LOAD SERVICE CLASSIFICATION~Retail Transmission Rate - Line and Transformation Connection Service Rate | P20: SENTINEL LIGHTING SERVICE CLASSIFICATION~Retail Transmission Rate - Network Service Rate | Q20: SENTINEL LIGHTING SERVICE CLASSIFICATION~Retail Transmission Rate - Line and Transformation Connection Service Rate | R20: STREET LIGHTING SERVICE CLASSIFICATION~Retail Transmission Rate - Network Service Rate | S20: STREET LIGHTING SERVICE CLASSIFICATION~Retail Transmission Rate - Line and Transformation Connection Service Rate
A21: Toronto Hydro-Electric System Limited | B21: RESIDENTIAL SERVICE CLASSIFICATION~Retail Transmission Rate - Network Service Rate | C21: RESIDENTIAL SERVICE CLASSIFICATION~Retail Transmission Rate - Line and Transformation Connection Service Rate | D21: COMPETITIVE SECTOR MULTI-UNIT RESIDENTIAL SERVICE CLASSIFICATION~Retail Transmission Rate - Network Service Rate | E21: COMPETITIVE SECTOR MULTI-UNIT RESIDENTIAL SERVICE CLASSIFICATION~Retail Transmission Rate - Line and Transformation Connection Service Rate | F21: GENERAL SERVICE LESS THAN 50 KW SERVICE CLASSIFICATION~Retail Transmission Rate - Network Service Rate | G21: GENERAL SERVICE LESS THAN 50 KW SERVICE CLASSIFICATION~Retail Transmission Rate - Line and Transformation Connection Service Rate | H21: GENERAL SERVICE 50 TO 999 KW SERVICE CLASSIFICATION~Retail Transmission Rate - Network Service Rate | I21: GENERAL SERVICE LESS THAN 50 KW SERVICE CLASSIFICATION~Retail Transmission Rate - Line and Transformation Connection Service Rate - EV CHARGING | J21: GENERAL SERVICE 50 TO 999 KW SERVICE CLASSIFICATION~Retail Transmission Rate - Network Service Rate - EV CHARGING | K21: GENERAL SERVICE 50 TO 999 KW SERVICE CLASSIFICATION~Retail Transmission Rate - Line and Transformation Connection Service Rate | L21: GENERAL SERVICE 1,000 TO 4,999 KW SERVICE CLASSIFICATION~Retail Transmission Rate - Network Service Rate | M21: GENERAL SERVICE 1,000 TO 4,999 KW SERVICE CLASSIFICATION~Retail Transmission Rate - Line and Transformation Connection Service Rate | N21: GENERAL SERVICE 1,000 TO 4,999 KW SERVICE CLASSIFICATION~Retail Transmission Rate - Network Service Rate - EV CHARGING | O21: GENERAL SERVICE 1,000 TO 4,999 KW SERVICE CLASSIFICATION~Retail Transmission Rate - Line and Transformation Connection Service Rate - EV CHARGING | P21: LARGE USE SERVICE CLASSIFICATION~Retail Transmission Rate - Network Service Rate | Q21: LARGE USE SERVICE CLASSIFICATION~Retail Transmission Rate - Line and Transformation Connection Service Rate | R21: UNMETERED SCATTERED LOAD SERVICE CLASSIFICATION~Retail Transmission Rate - Network Service Rate | S21: UNMETERED SCATTERED LOAD SERVICE CLASSIFICATION~Retail Transmission Rate - Line and Transformation Connection Service Rate | T21: STREET LIGHTING SERVICE CLASSIFICATION~Retail Transmission Rate - Network Service Rate | U21: STREET LIGHTING SERVICE CLASSIFICATION~Retail Transmission Rate - Line and Transformation Connection Service Rate
A22: Westario Power Inc. | B22: RESIDENTIAL SERVICE CLASSIFICATION~Retail Transmission Rate - Network Service Rate | C22: RESIDENTIAL SERVICE CLASSIFICATION~Retail Transmission Rate - Line and Transformation Connection Service Rate | D22: GENERAL SERVICE LESS THAN 50 KW SERVICE CLASSIFICATION~Retail Transmission Rate - Network Service Rate | E22: GENERAL SERVICE LESS THAN 50 KW SERVICE CLASSIFICATION~Retail Transmission Rate - Line and Transformation Connection Service Rate | F22: GENERAL SERVICE 50 to 4,999 kW SERVICE CLASSIFICATION~Retail Transmission Rate - Network Service Rate | G22: GENERAL SERVICE 50 to 4,999 kW SERVICE CLASSIFICATION~Retail Transmission Rate - Line and Transformation Connection Service Rate | H22: GENERAL SERVICE 50 to 4,999 kW SERVICE CLASSIFICATION~Retail Transmission Rate - Network Service Rate - EV CHARGING | I22: GENERAL SERVICE 50 to 4,999 kW SERVICE CLASSIFICATION~Retail Transmission Rate - Line and Transformation Connection Service Rate - EV CHARGING | J22: UNMETERED SCATTERED LOAD SERVICE CLASSIFICATION~Retail Transmission Rate - Network Service Rate | K22: UNMETERED SCATTERED LOAD SERVICE CLASSIFICATION~Retail Transmission Rate - Line and Transformation Connection Service Rate | L22: SENTINEL LIGHTING SERVICE CLASSIFICATION~Retail Transmission Rate - Network Service Rate | M22: SENTINEL LIGHTING SERVICE CLASSIFICATION~Retail Transmission Rate - Line and Transformation Connection Service Rate | N22: STREET LIGHTING SERVICE CLASSIFICATION~Retail Transmission Rate - Network Service Rate | O22: STREET LIGHTING SERVICE CLASSIFICATION~Retail Transmission Rate - Line and Transformation Connection Service Rate
A23: Elexicon Energy Inc.-Whitby Rate Zone | B23: RESIDENTIAL SERVICE CLASSIFICATION~Retail Transmission Rate - Network Service Rate | C23: RESIDENTIAL SERVICE CLASSIFICATION~Retail Transmission Rate - Line and Transformation Connection Service Rate | D23: GENERAL SERVICE LESS THAN 50 KW SERVICE CLASSIFICATION~Retail Transmission Rate - Network Service Rate | E23: GENERAL SERVICE LESS THAN 50 KW SERVICE CLASSIFICATION~Retail Transmission Rate - Line and Transformation Connection Service Rate | F23: GENERAL SERVICE 50 to 4,999 kW SERVICE CLASSIFICATION~Retail Transmission Rate - Network Service Rate | G23: GENERAL SERVICE 50 to 4,999 kW SERVICE CLASSIFICATION~Retail Transmission Rate - Line and Transformation Connection Service Rate | H23: GENERAL SERVICE 50 to 4,999 kW SERVICE CLASSIFICATION~Retail Transmission Rate - Network Service Rate - EV CHARGING | I23: GENERAL SERVICE 50 to 4,999 kW SERVICE CLASSIFICATION~Retail Transmission Rate - Line and Transformation Connection Service Rate - EV CHARGING | J23: UNMETERED SCATTERED LOAD SERVICE CLASSIFICATION~Retail Transmission Rate - Network Service Rate | K23: UNMETERED SCATTERED LOAD SERVICE CLASSIFICATION~Retail Transmission Rate - Line and Transformation Connection Service Rate | L23: SENTINEL LIGHTING SERVICE CLASSIFICATION~Retail Transmission Rate - Network Service Rate | M23: SENTINEL LIGHTING SERVICE CLASSIFICATION~Retail Transmission Rate - Line and Transformation Connection Service Rate | N23: STREET LIGHTING SERVICE CLASSIFICATION~Retail Transmission Rate - Network Service Rate | O23: STREET LIGHTING SERVICE CLASSIFICATION~Retail Transmission Rate - Line and Transformation Connection Service Rate
A24: Erie Thames Powerlines Corporation | B24: RESIDENTIAL SERVICE CLASSIFICATION~Retail Transmission Rate - Network Service Rate | C24: RESIDENTIAL SERVICE CLASSIFICATION~Retail Transmission Rate - Line and Transformation Connection Service Rate | D24: GENERAL SERVICE LESS THAN 50 KW SERVICE CLASSIFICATION~Retail Transmission Rate - Network Service Rate | E24: GENERAL SERVICE LESS THAN 50 KW SERVICE CLASSIFICATION~Retail Transmission Rate - Line and Transformation Connection Service Rate | F24: GENERAL SERVICE 50 TO 999 KW SERVICE CLASSIFICATION~Retail Transmission Rate - Network Service Rate | G24: GENERAL SERVICE 50 TO 999 KW SERVICE CLASSIFICATION~Retail Transmission Rate - Line and Transformation Connection Service Rate | H24: GENERAL SERVICE 50 TO 999 KW SERVICE CLASSIFICATION~Retail Transmission Rate - Network Service Rate - EV CHARGING | I24: GENERAL SERVICE 50 TO 999 KW SERVICE CLASSIFICATION~Retail Transmission Rate - Line and Transformation Connection Service Rate - EV CHARGING | J24: GENERAL SERVICE 1,000 TO 4,999 KW SERVICE CLASSIFICATION~Retail Transmission Rate - Network Service Rate | K24: GENERAL SERVICE 1,000 TO 4,999 KW SERVICE CLASSIFICATION~Retail Transmission Rate - Line and Transformation Connection Service Rate | L24: GENERAL SERVICE 1,000 TO 4,999 KW SERVICE CLASSIFICATION~Retail Transmission Rate - Network Service Rate - EV CHARGING | M24: GENERAL SERVICE 1,000 TO 4,999 KW SERVICE CLASSIFICATION~Retail Transmission Rate - Line and Transformation Connection Service Rate - EV CHARGING | N24: LARGE USE SERVICE CLASSIFICATION~Retail Transmission Rate - Network Service Rate | O24: LARGE USE SERVICE CLASSIFICATION~Retail Transmission Rate - Line and Transformation Connection Service Rate | P24: UNMETERED SCATTERED LOAD SERVICE CLASSIFICATION~Retail Transmission Rate - Network Service Rate | Q24: UNMETERED SCATTERED LOAD SERVICE CLASSIFICATION~Retail Transmission Rate - Line and Transformation Connection Service Rate | R24: SENTINEL LIGHTING SERVICE CLASSIFICATION~Retail Transmission Rate - Network Service Rate | S24: SENTINEL LIGHTING SERVICE CLASSIFICATION~Retail Transmission Rate - Line and Transformation Connection Service Rate | T24: STREET LIGHTING SERVICE CLASSIFICATION~Retail Transmission Rate - Network Service Rate | U24: STREET LIGHTING SERVICE CLASSIFICATION~Retail Transmission Rate - Line and Transformation Connection Service Rate | V24: EMBEDDED DISTRIBUTOR SERVICE CLASSIFICATION~Retail Transmission Rate - Network Service Rate | W24: EMBEDDED DISTRIBUTOR SERVICE CLASSIFICATION~Retail Transmission Rate - Line and Transformation Connection Service Rate
A25: Entegrus Powerlines Inc.-For Entegrus-Main Rate Zone | B25: RESIDENTIAL SERVICE CLASSIFICATION~Retail Transmission Rate - Network Service Rate | C25: RESIDENTIAL SERVICE CLASSIFICATION~Retail Transmission Rate - Line and Transformation Connection Service Rate | D25: GENERAL SERVICE LESS THAN 50 KW SERVICE CLASSIFICATION~Retail Transmission Rate - Network Service Rate | E25: GENERAL SERVICE LESS THAN 50 KW SERVICE CLASSIFICATION~Retail Transmission Rate - Line and Transformation Connection Service Rate | F25: GENERAL SERVICE 50 to 4,999 kW SERVICE CLASSIFICATION~Retail Transmission Rate - Network Service Rate | G25: GENERAL SERVICE 50 to 4,999 kW SERVICE CLASSIFICATION~Retail Transmission Rate - Line and Transformation Connection Service Rate (see Note 1) | H25: GENERAL SERVICE 50 to 4,999 kW SERVICE CLASSIFICATION~Retail Transmission Rate - Network Service Rate - EV CHARGING | I25: GENERAL SERVICE 50 to 4,999 kW SERVICE CLASSIFICATION~Retail Transmission Rate - Line and Transformation Connection Service Rate (see Note 1) - EV CHARGING | J25: LARGE USE SERVICE CLASSIFICATION~Retail Transmission Rate - Network Service Rate | K25: LARGE USE SERVICE CLASSIFICATION~Retail Transmission Rate - Line and Transformation Connection Service Rate (see Note 1) | L25: UNMETERED SCATTERED LOAD SERVICE CLASSIFICATION~Retail Transmission Rate - Network Service Rate | M25: UNMETERED SCATTERED LOAD SERVICE CLASSIFICATION~Retail Transmission Rate - Line and Transformation Connection Service Rate | N25: SENTINEL LIGHTING SERVICE CLASSIFICATION~Retail Transmission Rate - Network Service Rate | O25: SENTINEL LIGHTING SERVICE CLASSIFICATION~Retail Transmission Rate - Line and Transformation Connection Service Rate | P25: STREET LIGHTING SERVICE CLASSIFICATION~Retail Transmission Rate - Network Service Rate | Q25: STREET LIGHTING SERVICE CLASSIFICATION~Retail Transmission Rate - Line and Transformation Connection Service Rate | R25: EMBEDDED DISTRIBUTOR SERVICE CLASSIFICATION~Retail Transmission Rate - Network Service Rate | S25: EMBEDDED DISTRIBUTOR SERVICE CLASSIFICATION~Retail Transmission Rate - Line and Transformation Connection Service Rate
A26: Lakeland Power Distribution Ltd. | B26: RESIDENTIAL SERVICE CLASSIFICATION~Retail Transmission Rate - Network Service Rate | C26: RESIDENTIAL SERVICE CLASSIFICATION~Retail Transmission Rate - Line and Transformation Connection Service Rate | D26: GENERAL SERVICE LESS THAN 50 KW SERVICE CLASSIFICATION~Retail Transmission Rate - Network Service Rate | E26: GENERAL SERVICE LESS THAN 50 KW SERVICE CLASSIFICATION~Retail Transmission Rate - Line and Transformation Connection Service Rate | F26: GENERAL SERVICE 50 to 4,999 kW SERVICE CLASSIFICATION~Retail Transmission Rate - Network Service Rate | G26: GENERAL SERVICE 50 to 4,999 kW SERVICE CLASSIFICATION~Retail Transmission Rate - Line and Transformation Connection Service Rate | H26: GENERAL SERVICE 50 to 4,999 kW SERVICE CLASSIFICATION~Retail Transmission Rate - Network Service Rate - EV CHARGING | I26: GENERAL SERVICE 50 to 4,999 kW SERVICE CLASSIFICATION~Retail Transmission Rate - Line and Transformation Connection Service Rate - EV CHARGING | J26: UNMETERED SCATTERED LOAD SERVICE CLASSIFICATION~Retail Transmission Rate - Network Service Rate | K26: UNMETERED SCATTERED LOAD SERVICE CLASSIFICATION~Retail Transmission Rate - Line and Transformation Connection Service Rate | L26: SENTINEL LIGHTING SERVICE CLASSIFICATION~Retail Transmission Rate - Network Service Rate | M26: SENTINEL LIGHTING SERVICE CLASSIFICATION~Retail Transmission Rate - Line and Transformation Connection Service Rate | N26: STREET LIGHTING SERVICE CLASSIFICATION~Retail Transmission Rate - Network Service Rate | O26: STREET LIGHTING SERVICE CLASSIFICATION~Retail Transmission Rate - Line and Transformation Connection Service Rate
A27: Newmarket-Tay Power Distribution Ltd.-For Former Midland Power Utility Rate Zone | B27: RESIDENTIAL SERVICE CLASSIFICATION~Retail Transmission Rate - Network Service Rate | C27: RESIDENTIAL SERVICE CLASSIFICATION~Retail Transmission Rate - Line and Transformation Connection Service Rate | D27: GENERAL SERVICE LESS THAN 50 KW SERVICE CLASSIFICATION~Retail Transmission Rate - Network Service Rate | E27: GENERAL SERVICE LESS THAN 50 KW SERVICE CLASSIFICATION~Retail Transmission Rate - Line and Transformation Connection Service Rate | F27: GENERAL SERVICE 50 to 4,999 kW SERVICE CLASSIFICATION~Retail Transmission Rate - Network Service Rate | G27: GENERAL SERVICE 50 to 4,999 kW SERVICE CLASSIFICATION~Retail Transmission Rate - Line and Transformation Connection Service Rate | H27: GENERAL SERVICE 50 to 4,999 kW SERVICE CLASSIFICATION~Retail Transmission Rate - Network Service Rate - EV CHARGING | I27: GENERAL SERVICE 50 to 4,999 kW SERVICE CLASSIFICATION~Retail Transmission Rate - Line and Transformation Connection Service Rate - EV CHARGING | J27: UNMETERED SCATTERED LOAD SERVICE CLASSIFICATION~Retail Transmission Rate - Network Service Rate | K27: UNMETERED SCATTERED LOAD SERVICE CLASSIFICATION~Retail Transmission Rate - Line and Transformation Connection Service Rate | L27: STREET LIGHTING SERVICE CLASSIFICATION~Retail Transmission Rate - Network Service Rate | M27: STREET LIGHTING SERVICE CLASSIFICATION~Retail Transmission Rate - Line and Transformation Connection Service Rate
A28: Newmarket-Tay Power Distribution Ltd.-For Newmarket-Tay Power Main Rate Zone | B28: RESIDENTIAL SERVICE CLASSIFICATION~Retail Transmission Rate - Network Service Rate | C28: RESIDENTIAL SERVICE CLASSIFICATION~Retail Transmission Rate - Line and Transformation Connection Service Rate | D28: GENERAL SERVICE LESS THAN 50 KW SERVICE CLASSIFICATION~Retail Transmission Rate - Network Service Rate | E28: GENERAL SERVICE LESS THAN 50 KW SERVICE CLASSIFICATION~Retail Transmission Rate - Line and Transformation Connection Service Rate | F28: GENERAL SERVICE 50 to 4,999 kW SERVICE CLASSIFICATION~Retail Transmission Rate - Network Service Rate | G28: GENERAL SERVICE 50 to 4,999 kW SERVICE CLASSIFICATION~Retail Transmission Rate - Line and Transformation Connection Service Rate | H28: GENERAL SERVICE 50 to 4,999 kW SERVICE CLASSIFICATION~Retail Transmission Rate - Network Service Rate - EV CHARGING | I28: GENERAL SERVICE 50 to 4,999 kW SERVICE CLASSIFICATION~Retail Transmission Rate - Line and Transformation Connection Service Rate - EV CHARGING | J28: UNMETERED SCATTERED LOAD SERVICE CLASSIFICATION~Retail Transmission Rate - Network Service Rate | K28: UNMETERED SCATTERED LOAD SERVICE CLASSIFICATION~Retail Transmission Rate - Line and Transformation Connection Service Rate | L28: SENTINEL LIGHTING SERVICE CLASSIFICATION~Retail Transmission Rate - Network Service Rate | M28: SENTINEL LIGHTING SERVICE CLASSIFICATION~Retail Transmission Rate - Line and Transformation Connection Service Rate | N28: STREET LIGHTING SERVICE CLASSIFICATION~Retail Transmission Rate - Network Service Rate | O28: STREET LIGHTING SERVICE CLASSIFICATION~Retail Transmission Rate - Line and Transformation Connection Service Rate
A29: Bluewater Power Distribution Corporation | B29: RESIDENTIAL SERVICE CLASSIFICATION~Retail Transmission Rate - Network Service Rate | C29: RESIDENTIAL SERVICE CLASSIFICATION~Retail Transmission Rate - Line and Transformation Connection Service Rate | D29: GENERAL SERVICE LESS THAN 50 KW SERVICE CLASSIFICATION~Retail Transmission Rate - Network Service Rate | E29: GENERAL SERVICE LESS THAN 50 KW SERVICE CLASSIFICATION~Retail Transmission Rate - Line and Transformation Connection Service Rate | F29: GENERAL SERVICE 50 TO 999 KW SERVICE CLASSIFICATION~Retail Transmission Rate - Network Service Rate | G29: GENERAL SERVICE 50 TO 999 KW SERVICE CLASSIFICATION~Retail Transmission Rate - Line and Transformation Connection Service Rate | H29: GENERAL SERVICE 50 TO 999 KW SERVICE CLASSIFICATION~Retail Transmission Rate - Network Service Rate - EV CHARGING | I29: GENERAL SERVICE 50 TO 999 KW SERVICE CLASSIFICATION~Retail Transmission Rate - Line and Transformation Connection Service Rate - EV CHARGING | J29: GENERAL SERVICE 1,000 TO 4,999 KW SERVICE CLASSIFICATION~Retail Transmission Rate - Network Service Rate | K29: GENERAL SERVICE 1,000 TO 4,999 KW SERVICE CLASSIFICATION~Retail Transmission Rate - Line and Transformation Connection Service Rate | L29: GENERAL SERVICE 1,000 TO 4,999 KW SERVICE CLASSIFICATION~Retail Transmission Rate - Network Service Rate - EV CHARGING | M29: GENERAL SERVICE 1,000 TO 4,999 KW SERVICE CLASSIFICATION~Retail Transmission Rate - Line and Transformation Connection Service Rate - EV CHARGING | N29: LARGE USE SERVICE CLASSIFICATION~Retail Transmission Rate - Network Service Rate - Interval Metered | O29: LARGE USE SERVICE CLASSIFICATION~Retail Transmission Rate - Line and Transformation Connection Service Rate - Interval Metered | P29: UNMETERED SCATTERED LOAD SERVICE CLASSIFICATION~Retail Transmission Rate - Network Service Rate | Q29: UNMETERED SCATTERED LOAD SERVICE CLASSIFICATION~Retail Transmission Rate - Line and Transformation Connection Service Rate | R29: SENTINEL LIGHTING SERVICE CLASSIFICATION~Retail Transmission Rate - Network Service Rate | S29: SENTINEL LIGHTING SERVICE CLASSIFICATION~Retail Transmission Rate - Line and Transformation Connection Service Rate | T29: STREET LIGHTING SERVICE CLASSIFICATION~Retail Transmission Rate - Network Service Rate | U29: STREET LIGHTING SERVICE CLASSIFICATION~Retail Transmission Rate - Line and Transformation Connection Service Rate
A30: Atikokan Hydro Inc. | B30: RESIDENTIAL SERVICE CLASSIFICATION~Retail Transmission Rate - Network Service Rate | C30: RESIDENTIAL SERVICE CLASSIFICATION~Retail Transmission Rate - Transformation Connection Service Rate | D30: GENERAL SERVICE LESS THAN 50 KW SERVICE CLASSIFICATION~Retail Transmission Rate - Network Service Rate | E30: GENERAL SERVICE LESS THAN 50 KW SERVICE CLASSIFICATION~Retail Transmission Rate - Transformation Connection Service Rate | F30: GENERAL SERVICE 50 to 4,999 kW SERVICE CLASSIFICATION~Retail Transmission Rate - Network Service Rate | G30: GENERAL SERVICE 50 to 4,999 kW SERVICE CLASSIFICATION~Retail Transmission Rate - Line and Transformation Connection Service Rate | H30: GENERAL SERVICE 50 to 4,999 kW SERVICE CLASSIFICATION~Retail Transmission Rate - Network Service Rate - EV CHARGING | I30: GENERAL SERVICE 50 to 4,999 kW SERVICE CLASSIFICATION~Retail Transmission Rate - Line and Transformation Connection Service Rate - EV CHARGING | J30: GENERAL SERVICE 50 to 4,999 kW SERVICE CLASSIFICATION~Retail Transmission Rate - Network Service Rate - Interval Metered | K30: GENERAL SERVICE 50 to 4,999 kW SERVICE CLASSIFICATION~Retail Transmission Rate - Line and Transformation Connection Service Rate - Interval Metered | L30: STREET LIGHTING SERVICE CLASSIFICATION~Retail Transmission Rate - Network Service Rate | M30: STREET LIGHTING SERVICE CLASSIFICATION~Retail Transmission Rate - Line and Transformation Connection Service Rate
A31: Burlington Hydro Inc. | B31: RESIDENTIAL SERVICE CLASSIFICATION~Retail Transmission Rate - Network Service Rate | C31: RESIDENTIAL SERVICE CLASSIFICATION~Retail Transmission Rate - Line and Transformation Connection Service Rate | D31: GENERAL SERVICE LESS THAN 50 KW SERVICE CLASSIFICATION~Retail Transmission Rate - Network Service Rate | E31: GENERAL SERVICE LESS THAN 50 KW SERVICE CLASSIFICATION~Retail Transmission Rate - Line and Transformation Connection Service Rate | F31: GENERAL SERVICE 50 to 4,999 kW SERVICE CLASSIFICATION~Retail Transmission Rate - Network Service Rate - Interval Metered | G31: GENERAL SERVICE 50 to 4,999 kW SERVICE CLASSIFICATION~Retail Transmission Rate - Line and Transformation Connection Service Rate - Interval Metered | H31: GENERAL SERVICE 50 to 4,999 kW SERVICE CLASSIFICATION~Retail Transmission Rate - Network Service Rate - EV CHARGING | I31: GENERAL SERVICE 50 to 4,999 kW SERVICE CLASSIFICATION~Retail Transmission Rate - Line and Transformation Connection Service Rate - EV CHARGING | J31: UNMETERED SCATTERED LOAD SERVICE CLASSIFICATION~Retail Transmission Rate - Network Service Rate | K31: UNMETERED SCATTERED LOAD SERVICE CLASSIFICATION~Retail Transmission Rate - Line and Transformation Connection Service Rate | L31: STREET LIGHTING SERVICE CLASSIFICATION~Retail Transmission Rate - Network Service Rate | M31: STREET LIGHTING SERVICE CLASSIFICATION~Retail Transmission Rate - Line Connection Service Rate
A32: E.L.K. Energy Inc. | B32: RESIDENTIAL SERVICE CLASSIFICATION~Retail Transmission Rate - Network Service Rate | C32: RESIDENTIAL SERVICE CLASSIFICATION~Retail Transmission Rate - Line and Transformation Connection Service Rate | D32: GENERAL SERVICE LESS THAN 50 KW SERVICE CLASSIFICATION~Retail Transmission Rate - Network Service Rate | E32: GENERAL SERVICE LESS THAN 50 KW SERVICE CLASSIFICATION~Retail Transmission Rate - Line and Transformation Connection Service Rate | F32: GENERAL SERVICE 50 to 4,999 kW SERVICE CLASSIFICATION~Retail Transmission Rate - Network Service Rate | G32: GENERAL SERVICE 50 to 4,999 kW SERVICE CLASSIFICATION~Retail Transmission Rate - Line and Transformation Connection Service Rate | H32: GENERAL SERVICE 50 to 4,999 kW SERVICE CLASSIFICATION~Retail Transmission Rate - Network Service Rate - EV CHARGING | I32: GENERAL SERVICE 50 to 4,999 kW SERVICE CLASSIFICATION~Retail Transmission Rate - Line and Transformation Connection Service Rate - EV CHARGING | J32: UNMETERED SCATTERED LOAD SERVICE CLASSIFICATION~Retail Transmission Rate - Network Service Rate | K32: UNMETERED SCATTERED LOAD SERVICE CLASSIFICATION~Retail Transmission Rate - Line and Transformation Connection Service Rate | L32: SENTINEL LIGHTING SERVICE CLASSIFICATION~Retail Transmission Rate - Network Service Rate | M32: SENTINEL LIGHTING SERVICE CLASSIFICATION~Retail Transmission Rate - Line and Transformation Connection Service Rate | N32: STREET LIGHTING SERVICE CLASSIFICATION~Retail Transmission Rate - Network Service Rate | O32: STREET LIGHTING SERVICE CLASSIFICATION~Retail Transmission Rate - Line and Transformation Connection Service Rate | P32: EMBEDDED DISTRIBUTOR SERVICE CLASSIFICATION~Retail Transmission Rate - Network Service Rate | Q32: EMBEDDED DISTRIBUTOR SERVICE CLASSIFICATION~Retail Transmission Rate - Line and Transformation Connection Service Rate
A33: EPCOR Electricity Distribution Ontario Inc. | B33: RESIDENTIAL SERVICE CLASSIFICATION~Retail Transmission Rate - Network Service Rate | C33: RESIDENTIAL SERVICE CLASSIFICATION~Retail Transmission Rate - Line and Transformation Connection Service Rate | D33: GENERAL SERVICE LESS THAN 50 KW SERVICE CLASSIFICATION~Retail Transmission Rate - Network Service Rate | E33: GENERAL SERVICE LESS THAN 50 KW SERVICE CLASSIFICATION~Retail Transmission Rate - Line and Transformation Connection Service Rate | F33: GENERAL SERVICE 50 to 4,999 kW SERVICE CLASSIFICATION~Retail Transmission Rate - Network Service Rate | G33: GENERAL SERVICE 50 to 4,999 kW SERVICE CLASSIFICATION~Retail Transmission Rate - Line and Transformation Connection Service Rate | H33: GENERAL SERVICE 50 to 4,999 kW SERVICE CLASSIFICATION~Retail Transmission Rate - Network Service Rate - EV CHARGING | I33: GENERAL SERVICE 50 to 4,999 kW SERVICE CLASSIFICATION~Retail Transmission Rate - Line and Transformation Connection Service Rate - EV CHARGING | J33: UNMETERED SCATTERED LOAD SERVICE CLASSIFICATION~Retail Transmission Rate - Network Service Rate | K33: UNMETERED SCATTERED LOAD SERVICE CLASSIFICATION~Retail Transmission Rate - Line and Transformation Connection Service Rate | L33: STREET LIGHTING SERVICE CLASSIFICATION~Retail Transmission Rate - Network Service Rate | M33: STREET LIGHTING SERVICE CLASSIFICATION~Retail Transmission Rate - Line and Transformation Connection Service Rate
A34: Essex Powerlines Corporation | B34: RESIDENTIAL SERVICE CLASSIFICATION~Retail Transmission Rate - Network Service Rate | C34: RESIDENTIAL SERVICE CLASSIFICATION~Retail Transmission Rate - Line and Transformation Connection Service Rate | D34: GENERAL SERVICE LESS THAN 50 KW SERVICE CLASSIFICATION~Retail Transmission Rate - Network Service Rate | E34: GENERAL SERVICE LESS THAN 50 KW SERVICE CLASSIFICATION~Retail Transmission Rate - Line and Transformation Connection Service Rate | F34: GENERAL SERVICE 50 to 4,999 kW SERVICE CLASSIFICATION~Retail Transmission Rate - Network Service Rate | G34: GENERAL SERVICE 50 to 4,999 kW SERVICE CLASSIFICATION~Retail Transmission Rate - Line and Transformation Connection Service Rate | H34: GENERAL SERVICE 50 to 4,999 kW SERVICE CLASSIFICATION~Retail Transmission Rate - Network Service Rate - EV CHARGING | I34: GENERAL SERVICE 50 to 4,999 kW SERVICE CLASSIFICATION~Retail Transmission Rate - Line and Transformation Connection Service Rate - EV CHARGING | J34: GENERAL SERVICE 50 to 4,999 kW SERVICE CLASSIFICATION~Retail Transmission Rate - Network Service Rate - Interval Metered | K34: GENERAL SERVICE 50 to 4,999 kW SERVICE CLASSIFICATION~Retail Transmission Rate - Line and Transformation Connection Service Rate - Interval Metered | L34: UNMETERED SCATTERED LOAD SERVICE CLASSIFICATION~Retail Transmission Rate - Network Service Rate | M34: UNMETERED SCATTERED LOAD SERVICE CLASSIFICATION~Retail Transmission Rate - Line and Transformation Connection Service Rate | N34: SENTINEL LIGHTING SERVICE CLASSIFICATION~Retail Transmission Rate - Network Service Rate | O34: SENTINEL LIGHTING SERVICE CLASSIFICATION~Retail Transmission Rate - Line and Transformation Connection Service Rate | P34: STREET LIGHTING SERVICE CLASSIFICATION~Retail Transmission Rate - Network Service Rate | Q34: STREET LIGHTING SERVICE CLASSIFICATION~Retail Transmission Rate - Line and Transformation Connection Service Rate
A35: Fort Frances Power Corporation | B35: RESIDENTIAL SERVICE CLASSIFICATION~Retail Transmission Rate - Network Service Rate | C35: RESIDENTIAL SERVICE CLASSIFICATION~Retail Transmission Rate - Line and Transformation Connection Service Rate | D35: GENERAL SERVICE LESS THAN 50 KW SERVICE CLASSIFICATION~Retail Transmission Rate - Network Service Rate | E35: GENERAL SERVICE LESS THAN 50 KW SERVICE CLASSIFICATION~Retail Transmission Rate - Line and Transformation Connection Service Rate | F35: GENERAL SERVICE 50 to 4,999 kW SERVICE CLASSIFICATION~Retail Transmission Rate - Network Service Rate | G35: GENERAL SERVICE 50 to 4,999 kW SERVICE CLASSIFICATION~Retail Transmission Rate - Line and Transformation Connection Service Rate | H35: GENERAL SERVICE 50 to 4,999 kW SERVICE CLASSIFICATION~Retail Transmission Rate - Network Service Rate - EV CHARGING | I35: GENERAL SERVICE 50 to 4,999 kW SERVICE CLASSIFICATION~Retail Transmission Rate - Line and Transformation Connection Service Rate - EV CHARGING | J35: UNMETERED SCATTERED LOAD SERVICE CLASSIFICATION~Retail Transmission Rate - Network Service Rate | K35: UNMETERED SCATTERED LOAD SERVICE CLASSIFICATION~Retail Transmission Rate - Line and Transformation Connection Service Rate | L35: STREET LIGHTING SERVICE CLASSIFICATION~Retail Transmission Rate - Network Service Rate | M35: STREET LIGHTING SERVICE CLASSIFICATION~Retail Transmission Rate - Line and Transformation Connection Service Rate
A36: Greater Sudbury Hydro Inc. | B36: RESIDENTIAL SERVICE CLASSIFICATION~Retail Transmission Rate - Network Service Rate | C36: RESIDENTIAL SERVICE CLASSIFICATION~Retail Transmission Rate - Line and Transformation Connection Service Rate | D36: GENERAL SERVICE LESS THAN 50 KW SERVICE CLASSIFICATION~Retail Transmission Rate - Network Service Rate | E36: GENERAL SERVICE LESS THAN 50 KW SERVICE CLASSIFICATION~Retail Transmission Rate - Line and Transformation Connection Service Rate | F36: GENERAL SERVICE 50 to 4,999 kW SERVICE CLASSIFICATION~Retail Transmission Rate - Network Service Rate | G36: GENERAL SERVICE 50 to 4,999 kW SERVICE CLASSIFICATION~Retail Transmission Rate - Line and Transformation Connection Service Rate | H36: GENERAL SERVICE 50 to 4,999 kW SERVICE CLASSIFICATION~Retail Transmission Rate - Network Service Rate - EV CHARGING | I36: GENERAL SERVICE 50 to 4,999 kW SERVICE CLASSIFICATION~Retail Transmission Rate - Line and Transformation Connection Service Rate - EV CHARGING | J36: UNMETERED SCATTERED LOAD SERVICE CLASSIFICATION~Retail Transmission Rate - Network Service Rate | K36: UNMETERED SCATTERED LOAD SERVICE CLASSIFICATION~Retail Transmission Rate - Line and Transformation Connection Service Rate | L36: SENTINEL LIGHTING SERVICE CLASSIFICATION~Retail Transmission Rate - Network Service Rate | M36: SENTINEL LIGHTING SERVICE CLASSIFICATION~Retail Transmission Rate - Line and Transformation Connection Service Rate | N36: STREET LIGHTING SERVICE CLASSIFICATION~Retail Transmission Rate - Network Service Rate | O36: STREET LIGHTING SERVICE CLASSIFICATION~Retail Transmission Rate - Line and Transformation Connection Service Rate
